Workbook

Sheet __snloffice (hidden)
A1: 允䅁䅁䅯䅁䍁䅁䅁䅁䅁䅁䅁䅑䅁䕁䅅兤あ䝁䅧睢祂䝁䅫来求䝁䅑䅉卂䝁䅕䅤ㅂ䡁䅉杢杁䝁䄸杢杁䕁䅕兣ㅂ䝁䅫䅤㕂䍁䅁䅋汁䍁䅫䅁䡁䅁䅁杆䅁䕁䅍兙穂䝁䅕䅉啂䡁䅫䅣求䍁䅁䅁䍁䅁䅁䅈䅁䕁䅍睢瑂䡁䅁兙畂䡁䅫䅉佂䝁䅅兢求䍁䅁䅁䉁䅁䅁杈䅁䕁䅑睢橂䝁䅳党あ䍁䅁杔ㅂ䝁䄰杙求䡁䅉䅉䅁䅁䅧䅁佂䅁䅁杕桂䡁䅑党杁䕁䅍兙穂䝁䅕䅉䑂䝁䄸兢睂䝁䅷党あ䝁䅫睢畂䍁䅁䅒桂䡁䅑党杁䍁䅧兢瑂䍁䄸䅚歂䍁䄸入㕂䡁䅫入灁䅁䅁杂䅁䉁䄴䅁卂䝁䅅䅤求䍁䅁睑桂䡁䅍党杁䕁䄸兓䕂䍁䅁䅁䩁䅁䅁䅊䅁䙁䅉兙あ䝁䅕䅉䑂䝁䅅督求䍁䅁睕あ䝁䅅䅤ㅂ䡁䅍䅉䅁䅁䅍䅁捁䅁䅁睕求䡁䅉杤灂䝁䅍党杁䙁䅑入睂䝁䅕䅉䅁䅁䅕䅁佁䅁䅁睕あ䝁䅅䅤求䍁䅁䅁䕁䅁䅁䅁䅁䅁㴽

Sheet MPG-11
A1: Kentucky Utilities Company / Louisville Gas & Electric Company | F1: =Utility -> Kentucky Utilities Company / Louisville Gas & Electric Company
A3: Market/Book Ratio
F4: Common Stock Market/Book Ratio
C7: Market | D7: Book | E7: Electric Utilities
A8: Line | B8: Year | C8: Price | D8: Value | E8: Market/Book
C9: -1 | D9: -2 | E9: -3
A11: =MAX($A$10:A10)+1 -> 1 | B11: 1980 | C11: 54.42 | D11: 83.82 | E11: =C11/D11 -> 0.6492483894
A12: =MAX($A$10:A11)+1 -> 2 | B12: 1981 | C12: 57.2 | D12: 81.91 | E12: 0.6983274325
A13: =MAX($A$10:A12)+1 -> 3 | B13: 1982 | C13: 70.26 | D13: 82.77 | E13: 0.848858282
A14: =MAX($A$10:A13)+1 -> 4 | B14: 1983 | C14: 72.03 | D14: 82.9 | E14: 0.8688781665
A15: =MAX($A$10:A14)+1 -> 5 | B15: 1984 | C15: 80.16 | D15: 85.08 | E15: 0.9421720733
A16: =MAX($A$10:A15)+1 -> 6 | B16: 1985 | C16: 94.98 | D16: 87.76 | E16: 1.082269827
A17: =MAX($A$10:A16)+1 -> 7 | B17: 1986 | C17: 113.66 | D17: 90.35 | E17: 1.25799668
A18: =MAX($A$10:A17)+1 -> 8 | B18: 1987 | C18: 94.24 | D18: 90.12 | E18: 1.045716822
A19: =MAX($A$10:A18)+1 -> 9 | B19: 1988 | C19: 100.94 | D19: 88.04 | E19: 1.146524307
A20: =MAX($A$10:A19)+1 -> 10 | B20: 1989 | C20: 122.52 | D20: 89.41 | E20: 1.370316519
A21: =MAX($A$10:A20)+1 -> 11 | B21: 1990 | C21: 117.77 | D21: 84.45 | E21: 1.39455299
A22: =MAX($A$10:A21)+1 -> 12 | B22: 1991 | C22: 144.02 | D22: 91.07 | E22: 1.581420885
A23: =MAX($A$10:A22)+1 -> 13 | B23: 1992 | C23: 141.06 | D23: 93.68 | E23: 1.505764304
A24: =MAX($A$10:A23)+1 -> 14 | B24: 1993 | C24: 146.7 | D24: 92.42 | E24: 1.587318762
A25: =MAX($A$10:A24)+1 -> 15 | B25: 1994 | C25: 115.5 | D25: 93.8 | E25: 1.231343284
A26: =MAX($A$10:A25)+1 -> 16 | B26: 1995 | C26: 142.9 | D26: 93.71 | E26: 1.524917298
A27: =MAX($A$10:A26)+1 -> 17 | B27: 1996 | C27: 136 | D27: 98.63 | E27: 1.378890804
A28: =MAX($A$10:A27)+1 -> 18 | B28: 1997 | C28: 155.73 | D28: 103.06 | E28: 1.511061518
A29: =MAX($A$10:A28)+1 -> 19 | B29: 1998 | C29: 181.84 | D29: 92.11 | E29: 1.974161329
A30: =MAX($A$10:A29)+1 -> 20 | B30: 1999 | C30: 137.3 | D30: 128.25 | E30: 1.070565302
A31: =MAX($A$10:A30)+1 -> 21 | B31: 2000 | C31: 227.09 | D31: 166.4 | E31: 1.364723558
A32: =MAX($A$10:A31)+1 -> 22 | B32: 2001 | E32: 1.73
A33: =MAX($A$10:A32)+1 -> 23 | B33: 2002 | E33: 1.35
A34: =MAX($A$10:A33)+1 -> 24 | B34: 2003 | E34: 1.57
A35: =MAX($A$10:A34)+1 -> 25 | B35: 2004 | E35: 1.63
A36: =MAX($A$10:A35)+1 -> 26 | B36: 2005 | E36: 1.7
A37: =MAX($A$10:A36)+1 -> 27 | B37: 2006 | E37: 2.06 | F37: Source:
A38: =MAX($A$10:A37)+1 -> 28 | B38: 2007 | E38: 1.74 | F38: 1980 - 2000: Mergent Public Utility Manual.
A39: =MAX($A$10:A38)+1 -> 29 | B39: 2008 | E39: 1.18 | F39: 2001 - 2015: AUS Utility Reports, multiple dates.
A40: =MAX($A$10:A39)+1 -> 30 | B40: 2009 | E40: 1.36 | F40: 2016 - 2024: Value Line Investment Survey, multiple dates.
A41: =MAX($A$10:A40)+1 -> 31 | B41: 2010 | E41: 1.426 | F41: * Value Line Investment Survey Reports, May 9, May 23, June 6, and July 18, 2025.
A42: =MAX($A$10:A41)+1 -> 32 | B42: 2011 | E42: 1.498
A43: =MAX($A$10:A42)+1 -> 33 | B43: 2012 | E43: 1.715
A44: =MAX($A$10:A43)+1 -> 34 | B44: 2013 | E44: =198.2/100 -> 1.982
A45: =MAX($A$10:A44)+1 -> 35 | B45: 2014 | E45: 1.727
A46: =MAX($A$10:A45)+1 -> 36 | B46: 2015 | E46: 1.92
A47: =MAX($A$10:A46)+1 -> 37 | B47: 2016 | E47: 1.833
A48: =MAX($A$10:A47)+1 -> 38 | B48: 2017 | E48: 2.018575978
A49: =MAX($A$10:A48)+1 -> 39 | B49: 2018 | E49: 1.926604129
A50: =MAX($A$10:A49)+1 -> 40 | B50: 2019 | E50: 2.073508643
A51: =MAX($A$10:A50)+1 -> 41 | B51: 2020 | E51: 2.07464801
A52: =MAX($A$10:A51)+1 -> 42 | B52: 2021 | E52: 1.879076042
A53: =MAX($A$10:A52)+1 -> 43 | B53: 2022 | E53: 1.940508928
A54: =MAX($A$10:A53)+1 -> 44 | B54: 2023 | E54: 1.678246858
A55: =MAX($A$10:A54)+1 -> 45 | B55: 2024 | E55: 1.71239436
A56: =MAX($A$10:A55)+1 -> 46 | B56: 2025* | E56: 1.730366801

Sheet MPG-12 pg1
A1: ='MPG-11'!A1:E1 -> Kentucky Utilities Company / Louisville Gas & Electric Company
A4: Equity Risk Premium - Treasury Bond
D7: Authorized | E7: 30 yr. | F7: Indicated | G7: Rolling | H7: Rolling
D8: Electric | E8: Treasury | F8: Risk | G8: 5 - Year | H8: 10 - Year
A9: Line | B9: Year | D9: Returns1 | E9: Bond Yield2 | F9: Premium | G9: Average | H9: Average
D10: -1 | E10: -2 | F10: -3 | G10: -4 | H10: -5
A12: =MAX($A$11:A11)+1 -> 1 | B12: 1986 | D12: 0.1393 | E12: ='ROE Period Annual Yields (WP)'!B12 -> 0.07798333333 | F12: =D12-E12 -> 0.06131666667 | J12: =IFERROR(VLOOKUP(L12,$M$13:$N$52,2,),VLOOKUP(L12,$M$12:$N$52,2,)) -> 0.03830833333 | L12: 1 | M12: =RANK(F12,$F$12:$F$52,1) -> 27 | N12: =F12 -> 0.06131666667
A13: =MAX($A$11:A12)+1 -> 2 | B13: 1987 | D13: 0.1299 | E13: ='ROE Period Annual Yields (WP)'!B13 -> 0.0858 | F13: 0.0441 | J13: 0.0397 | L13: 2 | M13: 4 | N13: =F13 -> 0.0441
A14: =MAX($A$11:A13)+1 -> 3 | B14: 1988 | D14: 0.1279 | E14: ='ROE Period Annual Yields (WP)'!B14 -> 0.08959166667 | F14: 0.03830833333 | J14: 0.04091666667 | L14: 3 | M14: 1 | N14: 0.03830833333
A15: =MAX($A$11:A14)+1 -> 4 | B15: 1989 | D15: 0.1297 | E15: ='ROE Period Annual Yields (WP)'!B15 -> 0.08449166667 | F15: 0.04520833333 | J15: 0.0441 | L15: 4 | M15: 7 | N15: 0.04520833333
A16: =MAX($A$11:A15)+1 -> 5 | B16: 1990 | D16: 0.127 | E16: ='ROE Period Annual Yields (WP)'!B16 -> 0.08608333333 | F16: 0.04091666667 | G16: =AVERAGE(F12:F16) -> 0.04597 | J16: 0.04414166667 | L16: 5 | M16: 3 | N16: 0.04091666667
A17: =MAX($A$11:A16)+1 -> 6 | B17: 1991 | D17: 0.1255 | E17: ='ROE Period Annual Yields (WP)'!B17 -> 0.08135833333 | F17: 0.04414166667 | G17: 0.042535 | J17: 0.04423333333 | L17: 6 | M17: 5 | N17: 0.04414166667
A18: =MAX($A$11:A17)+1 -> 7 | B18: 1992 | D18: 0.1209 | E18: ='ROE Period Annual Yields (WP)'!B18 -> 0.07666666667 | F18: 0.04423333333 | G18: 0.04256166667 | J18: 0.04520833333 | L18: 7 | M18: 6 | N18: 0.04423333333
A19: =MAX($A$11:A18)+1 -> 8 | B19: 1993 | D19: 0.1141 | E19: ='ROE Period Annual Yields (WP)'!B19 -> 0.06598333333 | F19: 0.04811666667 | G19: 0.04452333333 | J19: 0.04665833333 | L19: 8 | M19: 11 | N19: 0.04811666667
A20: =MAX($A$11:A19)+1 -> 9 | B20: 1994 | D20: 0.1134 | E20: ='ROE Period Annual Yields (WP)'!B20 -> 0.0737 | F20: 0.0397 | G20: 0.04342166667 | J20: 0.04689166667 | L20: 9 | M20: 2 | N20: 0.0397
A21: =MAX($A$11:A20)+1 -> 10 | B21: 1995 | D21: 0.1155 | E21: ='ROE Period Annual Yields (WP)'!B21 -> 0.06884166667 | F21: 0.04665833333 | G21: 0.04457 | H21: =AVERAGE(F12:F21) -> 0.04527 | J21: 0.04794166667 | L21: 10 | M21: 8 | N21: 0.04665833333
A22: =MAX($A$11:A21)+1 -> 11 | B22: 1996 | D22: 0.1139 | E22: ='ROE Period Annual Yields (WP)'!B22 -> 0.06700833333 | F22: 0.04689166667 | G22: 0.04512 | H22: 0.0438275 | J22: 0.04811666667 | L22: 11 | M22: 9 | N22: 0.04689166667
A23: =MAX($A$11:A22)+1 -> 12 | B23: 1997 | D23: 0.114 | E23: ='ROE Period Annual Yields (WP)'!B23 -> 0.06605833333 | F23: 0.04794166667 | G23: 0.04586166667 | H23: 0.04421166667 | J23: 0.04904166667 | L23: 12 | M23: 10 | N23: 0.04794166667
A24: =MAX($A$11:A23)+1 -> 13 | B24: 1998 | D24: 0.1166 | E24: ='ROE Period Annual Yields (WP)'!B24 -> 0.05578333333 | F24: 0.06081666667 | G24: 0.04840166667 | H24: 0.0464625 | J24: 0.0501 | L24: 13 | M24: 25 | N24: 0.06081666667
A25: =MAX($A$11:A24)+1 -> 14 | B25: 1999 | D25: 0.1077 | E25: ='ROE Period Annual Yields (WP)'!B25 -> 0.05865833333 | F25: 0.04904166667 | G25: 0.05027 | H25: 0.04684583333 | J25: 0.05370264228 | L25: 14 | M25: 12 | N25: 0.04904166667
A26: =MAX($A$11:A25)+1 -> 15 | B26: 2000 | D26: 0.1143 | E26: ='ROE Period Annual Yields (WP)'!B26 -> 0.059425 | F26: 0.054875 | G26: 0.05191333333 | H26: 0.04824166667 | J26: 0.05466666667 | L26: 15 | M26: 17 | N26: 0.054875
A27: =MAX($A$11:A26)+1 -> 16 | B27: 2001 | D27: 0.1109 | E27: ='ROE Period Annual Yields (WP)'!B27 -> 0.05493333333 | F27: 0.05596666667 | G27: 0.05372833333 | H27: 0.04942416667 | J27: 0.05475833333 | L27: 16 | M27: 19 | N27: 0.05596666667
A28: =MAX($A$11:A27)+1 -> 17 | B28: 2002 | D28: 0.1116 | E28: ='ROE Period Annual Yields (WP)'!B28 -> 0.0543 | F28: 0.0573 | G28: 0.0556 | H28: 0.05073083333 | J28: 0.054875 | L28: 17 | M28: 21 | N28: 0.0573
A29: =MAX($A$11:A28)+1 -> 18 | B29: 2003 | D29: 0.1097 | E29: ='ROE Period Annual Yields (WP)'!B29 -> 0.049575 | F29: 0.060125 | G29: 0.05546166667 | H29: 0.05193166667 | J29: 0.05528120567 | L29: 18 | M29: 23 | N29: 0.060125
A30: =MAX($A$11:A29)+1 -> 19 | B30: 2004 | D30: 0.1075 | E30: ='ROE Period Annual Yields (WP)'!B30 -> 0.05046666667 | F30: 0.05703333333 | G30: 0.05706 | H30: 0.053665 | J30: 0.05596666667 | L30: 19 | M30: 20 | N30: 0.05703333333
A31: =MAX($A$11:A30)+1 -> 20 | B31: 2005 | D31: 0.1054 | E31: ='ROE Period Annual Yields (WP)'!B31 -> 0.04645833333 | F31: 0.05894166667 | G31: 0.05787333333 | H31: 0.05489333333 | J31: 0.05703333333 | L31: 20 | M31: 22 | N31: 0.05894166667
A32: =MAX($A$11:A31)+1 -> 21 | B32: 2006 | D32: 0.1034 | E32: ='ROE Period Annual Yields (WP)'!B32 -> 0.04873333333 | F32: 0.05466666667 | G32: 0.05761333333 | H32: 0.05567083333 | J32: 0.0573 | L32: 21 | M32: 15 | N32: 0.05466666667
A33: =MAX($A$11:A32)+1 -> 22 | B33: 2007 | D33: 0.1031 | E33: ='ROE Period Annual Yields (WP)'!B33 -> 0.04834166667 | F33: 0.05475833333 | G33: 0.057105 | H33: 0.0563525 | J33: 0.05894166667 | L33: 22 | M33: 16 | N33: 0.05475833333
A34: =MAX($A$11:A33)+1 -> 23 | B34: 2008 | D34: 0.1037 | E34: ='ROE Period Annual Yields (WP)'!B34 -> 0.04279166667 | F34: 0.06090833333 | G34: 0.05726166667 | H34: 0.05636166667 | J34: 0.060125 | L34: 23 | M34: 26 | N34: 0.06090833333
A35: =MAX($A$11:A34)+1 -> 24 | B35: 2009 | D35: 0.1052 | E35: ='ROE Period Annual Yields (WP)'!B35 -> 0.04069166667 | F35: 0.06450833333 | G35: 0.05875666667 | H35: 0.05790833333 | J35: 0.06039166667 | L35: 24 | M35: 33 | N35: 0.06450833333
A36: =MAX($A$11:A35)+1 -> 25 | B36: 2010 | D36: 0.1029 | E36: ='ROE Period Annual Yields (WP)'!B36 -> 0.04250833333 | F36: 0.06039166667 | G36: 0.05904666667 | H36: 0.05846 | J36: 0.06081666667 | L36: 25 | M36: 24 | N36: 0.06039166667
A37: =MAX($A$11:A36)+1 -> 26 | B37: 2011 | D37: 0.1019 | E37: ='ROE Period Annual Yields (WP)'!B37 -> 0.03910833333 | F37: 0.06279166667 | G37: 0.06067166667 | H37: 0.0591425 | J37: 0.06090833333 | L37: 26 | M37: 28 | N37: 0.06279166667
A38: =MAX($A$11:A37)+1 -> 27 | B38: 2012 | D38: 0.1001 | E38: ='ROE Period Annual Yields (WP)'!B38 -> 0.02920833333 | F38: 0.07089166667 | G38: 0.06389833333 | H38: 0.06050166667 | J38: 0.06131666667 | L38: 27 | M38: 38 | N38: 0.07089166667
A39: =MAX($A$11:A38)+1 -> 28 | B39: 2013 | D39: 0.0981 | E39: ='ROE Period Annual Yields (WP)'!B39 -> 0.03448333333 | F39: 0.06361666667 | G39: 0.06444 | H39: 0.06085083333 | J39: 0.06279166667 | L39: 28 | M39: 29 | N39: 0.06361666667
A40: =MAX($A$11:A39)+1 -> 29 | B40: 2014 | D40: 0.0975 | E40: ='ROE Period Annual Yields (WP)'!B40 -> 0.0334 | F40: 0.0641 | G40: 0.06435833333 | H40: 0.0615575 | J40: 0.06361666667 | L40: 29 | M40: 31 | N40: 0.0641
A41: =MAX($A$11:A40)+1 -> 30 | B41: 2015 | D41: 0.096 | E41: ='ROE Period Annual Yields (WP)'!B41 -> 0.02840833333 | F41: 0.06759166667 | G41: 0.06579833333 | H41: 0.0624225 | J41: 0.06405 | L41: 30 | M41: 34 | N41: 0.06759166667
A42: =MAX($A$11:A41)+1 -> 31 | B42: 2016 | D42: 0.096 | E42: ='ROE Period Annual Yields (WP)'!B42 -> 0.025975 | F42: 0.070025 | G42: 0.067245 | H42: 0.06395833333 | J42: 0.0641 | L42: 31 | M42: 36 | N42: 0.070025
A43: =MAX($A$11:A42)+1 -> 32 | B43: 2017 | D43: 0.0968 | E43: ='ROE Period Annual Yields (WP)'!B43 -> 0.02895 | F43: 0.06785 | G43: =AVERAGE(F39:F43) -> 0.06663666667 | H43: =AVERAGE(F34:F43) -> 0.0652675 | J43: 0.064375 | L43: 32 | M43: 35 | N43: 0.06785
A44: =MAX($A$11:A43)+1 -> 33 | B44: 2018 | D44: 0.0955 | E44: ='ROE Period Annual Yields (WP)'!B44 -> 0.031125 | F44: =D44-E44 -> 0.064375 | G44: 0.06678833333 | H44: 0.06561416667 | J44: 0.06450833333 | L44: 33 | M44: 32 | N44: 0.064375
A45: =MAX($A$11:A44)+1 -> 34 | B45: 2019 | D45: 0.0964 | E45: ='ROE Period Annual Yields (WP)'!B45 -> 0.025825 | F45: =D45-E45 -> 0.070575 | G45: 0.06808333333 | H45: 0.06622083333 | J45: 0.06759166667 | L45: 34 | M45: 37 | N45: =F45 -> 0.070575
A46: =MAX($A$11:A45)+1 -> 35 | B46: 2020 | D46: 0.0939 | E46: ='ROE Period Annual Yields (WP)'!B46 -> 0.01561666667 | F46: =D46-E46 -> 0.07828333333 | G46: 0.07022166667 | H46: 0.06801 | J46: 0.06785 | L46: 35 | M46: 40 | N46: 0.07828333333
A47: =MAX($A$11:A46)+1 -> 36 | B47: 2021 | D47: 0.0939 | E47: ='ROE Period Annual Yields (WP)'!B47 -> 0.020525 | F47: =D47-E47 -> 0.073375 | G47: 0.07089166667 | H47: 0.06906833333 | J47: 0.070025 | L47: 36 | M47: 39 | N47: 0.073375
A48: =MAX($A$11:A47)+1 -> 37 | B48: 2022 | D48: 0.0952 | E48: ='ROE Period Annual Yields (WP)'!B48 -> 0.03115 | F48: 0.06405 | G48: 0.07013166667 | H48: 0.06838416667 | J48: 0.070575 | L48: 37 | M48: 30 | N48: 0.06405
A49: =MAX($A$11:A48)+1 -> 38 | B49: 2023 | D49: 0.09619787234 | E49: ='ROE Period Annual Yields (WP)'!B49 -> 0.04091666667 | F49: =D49-E49 -> 0.05528120567 | G49: =AVERAGE(F45:F49) -> 0.0683129078 | H49: =AVERAGE(F40:F49) -> 0.06755062057 | J49: 0.07089166667 | L49: 38 | M49: 18 | N49: 0.05528120567
A50: =MAX($A$11:A49)+1 -> 39 | B50: 2024 | D50: 0.09776097561 | E50: ='ROE Period Annual Yields (WP)'!B50 -> 0.04405833333 | F50: 0.05370264228 | G50: 0.06493843626 | H50: 0.0665108848 | J50: 0.073375 | L50: 39 | M50: 14 | N50: 0.05370264228
A51: =MAX($A$11:A50)+1 -> 40 | B51: 2025 | C51: 3 | D51: 0.0972 | E51: ='ROE Period Annual Yields (WP)'!B51 -> 0.0471 | F51: =D51-E51 -> 0.0501 | G51: =AVERAGE(F47:F51) -> 0.05930176959 | H51: =AVERAGE(F42:F51) -> 0.06476171813 | J51: =IFERROR(VLOOKUP(L51,$M$13:$N$52,2,),VLOOKUP(L51,$M$12:$N$52,2,)) -> 0.07828333333 | L51: 40 | M51: =RANK(F51,$F$12:$F$52,1) -> 13 | N51: =F51 -> 0.0501
A53: =MAX($A$12:A52)+1 -> 41 | B53: Average | D53: =AVERAGE(D12:D52) -> 0.1081389712 | E53: =AVERAGE(E12:E52) -> 0.05130208333 | F53: =AVERAGE(F12:F52) -> 0.05683688787 | G53: =AVERAGE(G$12:G$52) -> 0.05739925316 | H53: =AVERAGE(H$12:H$52) -> 0.0577444857 | J53: =_xlfn.PERCENTILE.INC(G12:G52,0.5) -> 0.05774333333
A54: =MAX($A$12:A53)+1 -> 42 | B54: Minimum | G54: =MIN(G$12:G$52) -> 0.042535 | H54: =MIN(H$12:H$52) -> 0.0438275 | J54: =+_xlfn.PERCENTILE.INC(G12:G52,0.75) -> 0.06515341053
A55: =MAX($A$12:A54)+1 -> 43 | B55: Maximum | G55: =MAX(G$12:G$52) -> 0.07089166667 | H55: =MAX(H$12:H$52) -> 0.06906833333 | J55: =AVERAGEIFS($G$12:$G$52,$G$12:$G$52,">="&$J$53,$G$12:$G$52,"<="&$J$54) -> 0.06147613398
A59: Sources:
A60: 1 Regulatory Research Associates, Inc., Regulatory Focus, Major Rate Case Decisions, Jan. 1997 p. 5, and Jan. 2011 p. 3.
A61: S&P Global Market Intelligence, RRA Regulatory Focus, Major Electric Rate Case Decisions in the US,
A62: January - March 2025, April 25, 2025 at page 3.
A63: 2006 - 2025 Authorized Returns exclude limited issue rider cases.
A64: 2 St. Louis Federal Reserve: Economic Research, http://research.stlouisfed.org/.
A65: The yields from 2002 to 2005 represent the 20-Year Treasury yields obtained from the Federal Reserve Bank.
A66: 3 Data represents January - March, 2025.

Sheet MPG-12 pg2
A1: ='MPG-11'!A1:E1 -> Kentucky Utilities Company / Louisville Gas & Electric Company
A4: Equity Risk Premium - Treasury Bond
D8: Authorized | E8: 30 yr. | F8: Indicated | G8: Rolling | H8: Rolling
D9: Gas | E9: Treasury | F9: Risk | G9: 5 - Year | H9: 10 - Year
A10: Line | B10: Year | D10: Returns1 | E10: Bond Yield2 | F10: Premium | G10: Average | H10: Average
D11: -1 | E11: -2 | F11: -3 | G11: -4 | H11: -5
A13: =MAX($A$12:A12)+1 -> 1 | B13: 1986 | D13: 0.1346 | E13: ='GR Period Annual Yields (WP)'!B12 -> 0.07798333333 | F13: =D13-E13 -> 0.05661666667 | J13: =IFERROR(VLOOKUP(L13,$M$13:$N$53,2,),VLOOKUP(L13,$M$13:$N$53,2,)) -> 0.03890833333 | L13: 1 | M13: =RANK(F13,$F$13:$F$53,1) -> 22 | N13: =F13 -> 0.05661666667
A14: =MAX($A$12:A13)+1 -> 2 | B14: 1987 | D14: 0.1274 | E14: ='GR Period Annual Yields (WP)'!B13 -> 0.0858 | F14: 0.0416 | J14: 0.0398 | L14: 2 | M14: 4 | N14: =F14 -> 0.0416
A15: =MAX($A$12:A14)+1 -> 3 | B15: 1988 | D15: 0.1285 | E15: ='GR Period Annual Yields (WP)'!B14 -> 0.08959166667 | F15: 0.03890833333 | J15: 0.04061666667 | L15: 3 | M15: 1 | N15: 0.03890833333
A16: =MAX($A$12:A15)+1 -> 4 | B16: 1989 | D16: 0.1288 | E16: ='GR Period Annual Yields (WP)'!B15 -> 0.08449166667 | F16: 0.04430833333 | J16: 0.0416 | L16: 4 | M16: 7 | N16: 0.04430833333
A17: =MAX($A$12:A16)+1 -> 5 | B17: 1990 | D17: 0.1267 | E17: ='GR Period Annual Yields (WP)'!B16 -> 0.08608333333 | F17: 0.04061666667 | G17: =AVERAGE(F13:F17) -> 0.04441 | J17: 0.04324166667 | L17: 5 | M17: 3 | N17: 0.04061666667
A18: =MAX($A$12:A17)+1 -> 6 | B18: 1991 | D18: 0.1246 | E18: ='GR Period Annual Yields (WP)'!B17 -> 0.08135833333 | F18: 0.04324166667 | G18: 0.041735 | J18: 0.04343333333 | L18: 6 | M18: 5 | N18: 0.04324166667
A19: =MAX($A$12:A18)+1 -> 7 | B19: 1992 | D19: 0.1201 | E19: ='GR Period Annual Yields (WP)'!B18 -> 0.07666666667 | F19: 0.04343333333 | G19: 0.04210166667 | J19: 0.04430833333 | L19: 7 | M19: 6 | N19: 0.04343333333
A20: =MAX($A$12:A19)+1 -> 8 | B20: 1993 | D20: 0.1135 | E20: ='GR Period Annual Yields (WP)'!B19 -> 0.06598333333 | F20: 0.04751666667 | G20: 0.04382333333 | J20: 0.04489166667 | L20: 8 | M20: 11 | N20: 0.04751666667
A21: =MAX($A$12:A20)+1 -> 9 | B21: 1994 | D21: 0.1135 | E21: ='GR Period Annual Yields (WP)'!B20 -> 0.0737 | F21: 0.0398 | G21: 0.04292166667 | J21: 0.04545833333 | L21: 9 | M21: 2 | N21: 0.0398
A22: =MAX($A$12:A21)+1 -> 10 | B22: 1995 | D22: 0.1143 | E22: ='GR Period Annual Yields (WP)'!B21 -> 0.06884166667 | F22: 0.04545833333 | G22: 0.04389 | H22: =AVERAGE(F13:F22) -> 0.04415 | J22: 0.04684166667 | L22: 10 | M22: 9 | N22: 0.04545833333
A23: =MAX($A$12:A22)+1 -> 11 | B23: 1996 | D23: 0.1119 | E23: ='GR Period Annual Yields (WP)'!B22 -> 0.06700833333 | F23: 0.04489166667 | G23: 0.04422 | H23: 0.0429775 | J23: 0.04751666667 | L23: 11 | M23: 8 | N23: 0.04489166667
A24: =MAX($A$12:A23)+1 -> 12 | B24: 1997 | D24: 0.1129 | E24: ='GR Period Annual Yields (WP)'!B23 -> 0.06605833333 | F24: 0.04684166667 | G24: 0.04490166667 | H24: 0.04350166667 | J24: 0.04794166667 | L24: 12 | M24: 10 | N24: 0.04684166667
A25: =MAX($A$12:A24)+1 -> 13 | B25: 1998 | D25: 0.1151 | E25: ='GR Period Annual Yields (WP)'!B24 -> 0.05578333333 | F25: 0.05931666667 | G25: 0.04726166667 | H25: 0.0455425 | J25: 0.0502 | L25: 13 | M25: 25 | N25: 0.05931666667
A26: =MAX($A$12:A25)+1 -> 14 | B26: 1999 | D26: 0.1066 | E26: ='GR Period Annual Yields (WP)'!B25 -> 0.05865833333 | F26: 0.04794166667 | G26: 0.04889 | H26: 0.04590583333 | J26: 0.05248782051 | L26: 14 | M26: 12 | N26: 0.04794166667
A27: =MAX($A$12:A26)+1 -> 15 | B27: 2000 | D27: 0.1139 | E27: ='GR Period Annual Yields (WP)'!B26 -> 0.059425 | F27: 0.054475 | G27: 0.05069333333 | H27: 0.04729166667 | J27: 0.05385833333 | L27: 15 | M27: 16 | N27: 0.054475
A28: =MAX($A$12:A27)+1 -> 16 | B28: 2001 | D28: 0.1095 | E28: ='GR Period Annual Yields (WP)'!B27 -> 0.05493333333 | F28: 0.05456666667 | G28: 0.05262833333 | H28: 0.04842416667 | J28: 0.054475 | L28: 16 | M28: 17 | N28: 0.05456666667
A29: =MAX($A$12:A28)+1 -> 17 | B29: 2002 | D29: 0.1103 | E29: ='GR Period Annual Yields (WP)'!B28 -> 0.0543 | F29: 0.056 | G29: 0.05446 | H29: 0.04968083333 | J29: 0.05456666667 | L29: 17 | M29: 21 | N29: 0.056
A30: =MAX($A$12:A29)+1 -> 18 | B30: 2003 | D30: 0.1099 | E30: ='GR Period Annual Yields (WP)'!B29 -> 0.049575 | F30: 0.060325 | G30: 0.05466166667 | H30: 0.05096166667 | J30: 0.05508333333 | L30: 18 | M30: 27 | N30: 0.060325
A31: =MAX($A$12:A30)+1 -> 19 | B31: 2004 | D31: 0.1059 | E31: ='GR Period Annual Yields (WP)'!B30 -> 0.05046666667 | F31: 0.05543333333 | G31: 0.05616 | H31: 0.052525 | J31: 0.05526666667 | L31: 19 | M31: 20 | N31: 0.05543333333
A32: =MAX($A$12:A31)+1 -> 20 | B32: 2005 | D32: 0.1046 | E32: ='GR Period Annual Yields (WP)'!B31 -> 0.04645833333 | F32: 0.05814166667 | G32: 0.05689333333 | H32: 0.05379333333 | J32: 0.05543333333 | L32: 20 | M32: 23 | N32: 0.05814166667
A33: =MAX($A$12:A32)+1 -> 21 | B33: 2006 | D33: 0.104 | E33: ='GR Period Annual Yields (WP)'!B32 -> 0.04873333333 | F33: 0.05526666667 | G33: 0.05703333333 | H33: 0.05483083333 | J33: 0.056 | L33: 21 | M33: 19 | N33: 0.05526666667
A34: =MAX($A$12:A33)+1 -> 22 | B34: 2007 | D34: 0.1022 | E34: ='GR Period Annual Yields (WP)'!B33 -> 0.04834166667 | F34: 0.05385833333 | G34: 0.056605 | H34: 0.0555325 | J34: 0.05661666667 | L34: 22 | M34: 15 | N34: 0.05385833333
A35: =MAX($A$12:A34)+1 -> 23 | B35: 2008 | D35: 0.1039 | E35: ='GR Period Annual Yields (WP)'!B34 -> 0.04279166667 | F35: 0.06110833333 | G35: 0.05676166667 | H35: 0.05571166667 | J35: 0.05814166667 | L35: 23 | M35: 28 | N35: 0.06110833333
A36: =MAX($A$12:A35)+1 -> 24 | B36: 2009 | D36: 0.1022 | E36: ='GR Period Annual Yields (WP)'!B35 -> 0.04069166667 | F36: 0.06150833333 | G36: 0.05797666667 | H36: 0.05706833333 | J36: 0.05899166667 | L36: 24 | M36: 29 | N36: 0.06150833333
A37: =MAX($A$12:A36)+1 -> 25 | B37: 2010 | D37: 0.1015 | E37: ='GR Period Annual Yields (WP)'!B36 -> 0.04250833333 | F37: 0.05899166667 | G37: 0.05814666667 | H37: 0.05752 | J37: 0.05931666667 | L37: 25 | M37: 24 | N37: 0.05899166667
A38: =MAX($A$12:A37)+1 -> 26 | B38: 2011 | D38: 0.0992 | E38: ='GR Period Annual Yields (WP)'!B37 -> 0.03910833333 | F38: 0.06009166667 | G38: 0.05911166667 | H38: 0.0580725 | J38: 0.06009166667 | L38: 26 | M38: 26 | N38: 0.06009166667
A39: =MAX($A$12:A38)+1 -> 27 | B39: 2012 | D39: 0.0994 | E39: ='GR Period Annual Yields (WP)'!B38 -> 0.02920833333 | F39: 0.07019166667 | G39: 0.06237833333 | H39: 0.05949166667 | J39: 0.060325 | L39: 27 | M39: 37 | N39: 0.07019166667
A40: =MAX($A$12:A39)+1 -> 28 | B40: 2013 | D40: 0.0968 | E40: ='GR Period Annual Yields (WP)'!B39 -> 0.03448333333 | F40: 0.06231666667 | G40: 0.06262 | H40: 0.05969083333 | J40: 0.06110833333 | L40: 28 | M40: 30 | N40: 0.06231666667
A41: =MAX($A$12:A40)+1 -> 29 | B41: 2014 | D41: 0.0978 | E41: ='GR Period Annual Yields (WP)'!B40 -> 0.0334 | F41: 0.0644 | G41: 0.06319833333 | H41: 0.0605875 | J41: 0.06150833333 | L41: 29 | M41: 32 | N41: 0.0644
A42: =MAX($A$12:A41)+1 -> 30 | B42: 2015 | D42: 0.096 | E42: ='GR Period Annual Yields (WP)'!B41 -> 0.02840833333 | F42: 0.06759166667 | G42: 0.06491833333 | H42: 0.0615325 | J42: 0.06231666667 | L42: 30 | M42: 35 | N42: 0.06759166667
A43: =MAX($A$12:A42)+1 -> 31 | B43: 2016 | D43: 0.0954 | E43: ='GR Period Annual Yields (WP)'!B42 -> 0.025975 | F43: 0.069425 | G43: 0.066785 | H43: 0.06294833333 | J43: 0.06405 | L43: 31 | M43: 36 | N43: 0.069425
A44: =MAX($A$12:A43)+1 -> 32 | B44: 2017 | D44: 0.0963 | E44: ='GR Period Annual Yields (WP)'!B43 -> 0.02895 | F44: =D44-E44 -> 0.06735 | G44: =AVERAGE(F40:F44) -> 0.06621666667 | H44: =AVERAGE(F35:F44) -> 0.0642975 | J44: 0.0644 | L44: 32 | M44: 34 | N44: 0.06735
A45: =MAX($A$12:A44)+1 -> 33 | B45: 2018 | D45: 0.0959 | E45: ='GR Period Annual Yields (WP)'!B44 -> 0.031125 | F45: 0.064775 | G45: 0.06670833333 | H45: 0.06466416667 | J45: 0.064775 | L45: 33 | M45: 33 | N45: 0.064775
A46: =MAX($A$12:A45)+1 -> 34 | B46: 2019 | D46: 0.0971 | E46: ='GR Period Annual Yields (WP)'!B45 -> 0.025825 | F46: 0.071275 | G46: 0.06808333333 | H46: 0.06564083333 | J46: 0.06735 | L46: 34 | M46: 38 | N46: =F46 -> 0.071275
A47: =MAX($A$12:A46)+1 -> 35 | B47: 2020 | D47: ='ROE calc'!I68/100 -> 0.09458823529 | E47: ='GR Period Annual Yields (WP)'!B46 -> 0.01561666667 | F47: 0.07897156863 | G47: 0.07035931373 | H47: 0.06763882353 | J47: 0.06759166667 | L47: 35 | M47: 40 | N47: =F47 -> 0.07897156863
A48: =MAX($A$12:A47)+1 -> 36 | B48: 2021 | D48: 0.0956 | E48: ='GR Period Annual Yields (WP)'!B47 -> 0.020525 | F48: 0.075075 | G48: 0.07148931373 | H48: 0.06913715686 | J48: 0.069425 | L48: 36 | M48: 39 | N48: =F48 -> 0.075075
A49: =MAX($A$12:A48)+1 -> 37 | B49: 2022 | D49: 0.0952 | E49: ='GR Period Annual Yields (WP)'!B48 -> 0.03115 | F49: 0.06405 | G49: 0.07082931373 | H49: 0.0685229902 | J49: 0.07019166667 | L49: 37 | M49: 31 | N49: =F49 -> 0.06405
A50: =MAX($A$12:A49)+1 -> 38 | B50: 2023 | D50: 0.096 | E50: ='ROE Period Annual Yields (WP)'!B49 -> 0.04091666667 | F50: =D50-E50 -> 0.05508333333 | G50: =AVERAGE(F46:F50) -> 0.06889098039 | H50: =AVERAGE(F41:F50) -> 0.06779965686 | J50: 0.071275 | L50: 38 | M50: 18 | N50: =F50 -> 0.05508333333
A51: =MAX($A$12:A50)+1 -> 39 | B51: 2024 | D51: 0.09654615385 | E51: ='ROE Period Annual Yields (WP)'!B50 -> 0.04405833333 | F51: =D51-E51 -> 0.05248782051 | G51: =AVERAGE(F47:F51) -> 0.06513354449 | H51: =AVERAGE(F42:F51) -> 0.06660843891 | J51: 0.075075 | L51: 39 | M51: 14 | N51: 0.05248782051
A52: =MAX($A$12:A51)+1 -> 40 | B52: 2025 | C52: 3 | D52: 0.0973 | E52: ='ROE Period Annual Yields (WP)'!B51 -> 0.0471 | F52: =D52-E52 -> 0.0502 | G52: =AVERAGE(F48:F52) -> 0.05937923077 | H52: =AVERAGE(F43:F52) -> 0.06486927225 | J52: 0.07897156863 | L52: 40 | M52: 13 | N52: =F52 -> 0.0502
A54: =MAX($A$12:A53)+1 -> 41 | B54: Average | D54: =AVERAGE(D13:D53) -> 0.1073883597 | E54: =AVERAGE(E13:E53) -> 0.05130208333 | F54: =AVERAGE(F13:F53) -> 0.0560862764 | G54: =AVERAGE(G$13:G$53) -> 0.05672990825 | H54: =AVERAGE(H$13:H$53) -> 0.05699740877 | J54: =_xlfn.PERCENTILE.INC(G13:G53,0.5) -> 0.05696333333
A55: =MAX($A$12:A54)+1 -> 42 | B55: Minimum | G55: =MIN(G$13:G$53) -> 0.041735 | H55: =MIN(H$13:H$53) -> 0.0429775 | J55: =+_xlfn.PERCENTILE.INC(G13:G53,0.75) -> 0.06497213612
A56: =MAX($A$12:A55)+1 -> 43 | B56: Maximum | G56: =MAX(G$13:G$53) -> 0.07148931373 | H56: =MAX(H$13:H$53) -> 0.06913715686 | J56: =AVERAGEIFS($G$13:$G$53,$G$13:$G$53,">="&$J$54,$G$13:$G$53,"<="&$J$55) -> 0.06052917379
A60: Sources:
A61: 1 Regulatory Research Associates, Inc., Regulatory Focus, Major Rate Case Decisions, Jan. 1997 p. 5, and Jan. 2011 p. 3.
A62: ='MPG-12 pg1'!A61 -> S&P Global Market Intelligence, RRA Regulatory Focus, Major Electric Rate Case Decisions in the US,
A63: ='MPG-12 pg1'!A62 -> January - March 2025, April 25, 2025 at page 3.
A64: 2 St. Louis Federal Reserve: Economic Research, http://research.stlouisfed.org/.
A65: The yields from 2002 to 2005 represent the 20-Year Treasury yields obtained from the Federal Reserve Bank.
A66: 3 Data represents January - March, 2025.

Sheet MPG-13 pg1
A1: ='MPG-11'!A1:E1 -> Kentucky Utilities Company / Louisville Gas & Electric Company
A4: Equity Risk Premium - Utility Bond
D7: Authorized | E7: Average | F7: Indicated | G7: Rolling | H7: Rolling
D8: Electric | E8: "A" Rated Utility | F8: Risk | G8: 5 - Year | H8: 10 - Year
A9: Line | B9: Year | D9: Returns1 | E9: Bond Yield2 | F9: Premium | G9: Average | H9: Average
D10: -1 | E10: -2 | F10: -3 | G10: -4 | H10: -5
A12: =MAX($A$11:A11)+1 -> 1 | B12: 1986 | D12: ='MPG-12 pg1'!D12 -> 0.1393 | E12: ='ROE Period Annual Yields (WP)'!K12 -> 0.0958 | F12: =D12-E12 -> 0.0435 | J12: =IFERROR(VLOOKUP(L12,$M$12:$N$52,2,),VLOOKUP(L12,$M$12:$N$52,2,)) -> 0.023 | L12: 1 | M12: =RANK(F12,$F$12:$F$52,1) -> 22 | N12: =F12 -> 0.0435
A13: =MAX($A$11:A12)+1 -> 2 | B13: 1987 | D13: ='MPG-12 pg1'!D13 -> 0.1299 | E13: ='ROE Period Annual Yields (WP)'!K13 -> 0.101 | F13: 0.0289 | J13: 0.0284 | L13: 2 | M13: 3 | N13: =F13 -> 0.0289
A14: =MAX($A$11:A13)+1 -> 3 | B14: 1988 | D14: ='MPG-12 pg1'!D14 -> 0.1279 | E14: ='ROE Period Annual Yields (WP)'!K14 -> 0.1049 | F14: 0.023 | J14: 0.0289 | L14: 3 | M14: 1 | N14: 0.023
A15: =MAX($A$11:A14)+1 -> 4 | B15: 1989 | D15: ='MPG-12 pg1'!D15 -> 0.1297 | E15: ='ROE Period Annual Yields (WP)'!K15 -> 0.0977 | F15: 0.032 | J15: 0.0303 | L15: 4 | M15: 8 | N15: 0.032
A16: =MAX($A$11:A15)+1 -> 5 | B16: 1990 | D16: ='MPG-12 pg1'!D16 -> 0.127 | E16: ='ROE Period Annual Yields (WP)'!K16 -> 0.0986 | F16: 0.0284 | G16: =AVERAGE(F12:F16) -> 0.03116 | J16: 0.0315 | L16: 5 | M16: 2 | N16: 0.0284
A17: =MAX($A$11:A16)+1 -> 6 | B17: 1991 | D17: ='MPG-12 pg1'!D17 -> 0.1255 | E17: ='ROE Period Annual Yields (WP)'!K17 -> 0.0936 | F17: 0.0319 | G17: 0.02884 | J17: 0.03185833333 | L17: 6 | M17: 7 | N17: 0.0319
A18: =MAX($A$11:A17)+1 -> 7 | B18: 1992 | D18: ='MPG-12 pg1'!D18 -> 0.1209 | E18: ='ROE Period Annual Yields (WP)'!K18 -> 0.0869 | F18: 0.034 | G18: 0.02986 | J18: 0.0319 | L18: 7 | M18: 10 | N18: 0.034
A19: =MAX($A$11:A18)+1 -> 8 | B19: 1993 | D19: ='MPG-12 pg1'!D19 -> 0.1141 | E19: ='ROE Period Annual Yields (WP)'!K19 -> 0.0759 | F19: 0.0382 | G19: 0.0329 | J19: 0.032 | L19: 8 | M19: 15 | N19: 0.0382
A20: =MAX($A$11:A19)+1 -> 9 | B20: 1994 | D20: ='MPG-12 pg1'!D20 -> 0.1134 | E20: ='ROE Period Annual Yields (WP)'!K20 -> 0.0831 | F20: 0.0303 | G20: 0.03256 | J20: 0.033275 | L20: 9 | M20: 4 | N20: 0.0303
A21: =MAX($A$11:A20)+1 -> 10 | B21: 1995 | D21: ='MPG-12 pg1'!D21 -> 0.1155 | E21: ='ROE Period Annual Yields (WP)'!K21 -> 0.0789 | F21: 0.0366 | G21: 0.0342 | H21: =AVERAGE(F12:F21) -> 0.03268 | J21: 0.034 | L21: 10 | M21: 12 | N21: 0.0366
A22: =MAX($A$11:A21)+1 -> 11 | B22: 1996 | D22: ='MPG-12 pg1'!D22 -> 0.1139 | E22: ='ROE Period Annual Yields (WP)'!K22 -> 0.0775 | F22: 0.0364 | G22: 0.0351 | H22: 0.03197 | J22: 0.0364 | L22: 11 | M22: 11 | N22: 0.0364
A23: =MAX($A$11:A22)+1 -> 12 | B23: 1997 | D23: ='MPG-12 pg1'!D23 -> 0.114 | E23: ='ROE Period Annual Yields (WP)'!K23 -> 0.076 | F23: 0.038 | G23: 0.0359 | H23: 0.03288 | J23: 0.0366 | L23: 12 | M23: 14 | N23: 0.038
A24: =MAX($A$11:A23)+1 -> 13 | B24: 1998 | D24: ='MPG-12 pg1'!D24 -> 0.1166 | E24: ='ROE Period Annual Yields (WP)'!K24 -> 0.0704 | F24: 0.0462 | G24: 0.0375 | H24: 0.0352 | J24: 0.037875 | L24: 13 | M24: 26 | N24: 0.0462
A25: =MAX($A$11:A24)+1 -> 14 | B25: 1999 | D25: ='MPG-12 pg1'!D25 -> 0.1077 | E25: ='ROE Period Annual Yields (WP)'!K25 -> 0.0762 | F25: 0.0315 | G25: 0.03774 | H25: 0.03515 | J25: 0.038 | L25: 14 | M25: 5 | N25: 0.0315
A26: =MAX($A$11:A25)+1 -> 15 | B26: 2000 | D26: ='MPG-12 pg1'!D26 -> 0.1143 | E26: ='ROE Period Annual Yields (WP)'!K26 -> 0.08244166667 | F26: 0.03185833333 | G26: 0.03679166667 | H26: 0.03549583333 | J26: 0.0382 | L26: 15 | M26: 6 | N26: 0.03185833333
A27: =MAX($A$11:A26)+1 -> 16 | B27: 2001 | D27: ='MPG-12 pg1'!D27 -> 0.1109 | E27: ='ROE Period Annual Yields (WP)'!K27 -> 0.077625 | F27: 0.033275 | G27: 0.03616666667 | H27: 0.03563333333 | J27: 0.03841666667 | L27: 16 | M27: 9 | N27: 0.033275
A28: =MAX($A$11:A27)+1 -> 17 | B28: 2002 | D28: ='MPG-12 pg1'!D28 -> 0.1116 | E28: ='ROE Period Annual Yields (WP)'!K28 -> 0.073725 | F28: 0.037875 | G28: 0.03614166667 | H28: 0.03602083333 | J28: 0.03946666667 | L28: 17 | M28: 13 | N28: 0.037875
A29: =MAX($A$11:A28)+1 -> 18 | B29: 2003 | D29: ='MPG-12 pg1'!D29 -> 0.1097 | E29: ='ROE Period Annual Yields (WP)'!K29 -> 0.06580833333 | F29: 0.04389166667 | G29: 0.03568 | H29: 0.03659 | J29: 0.04082287234 | L29: 18 | M29: 23 | N29: 0.04389166667
A30: =MAX($A$11:A29)+1 -> 19 | B30: 2004 | D30: ='MPG-12 pg1'!D30 -> 0.1075 | E30: ='ROE Period Annual Yields (WP)'!K30 -> 0.0616 | F30: 0.0459 | G30: 0.03856 | H30: 0.03815 | J30: 0.04235264228 | L30: 19 | M30: 25 | N30: 0.0459
A31: =MAX($A$11:A30)+1 -> 20 | B31: 2005 | D31: ='MPG-12 pg1'!D31 -> 0.1054 | E31: ='ROE Period Annual Yields (WP)'!K31 -> 0.05649166667 | F31: 0.04890833333 | G31: 0.04197 | H31: 0.03938083333 | J31: 0.04236666667 | L31: 20 | M31: 29 | N31: 0.04890833333
A32: =MAX($A$11:A31)+1 -> 21 | B32: 2006 | D32: ='MPG-12 pg1'!D32 -> 0.1034 | E32: ='ROE Period Annual Yields (WP)'!K32 -> 0.06068333333 | F32: 0.04271666667 | G32: 0.04385833333 | H32: 0.0400125 | J32: 0.04271666667 | L32: 21 | M32: 21 | N32: 0.04271666667
A33: =MAX($A$11:A32)+1 -> 22 | B33: 2007 | D33: ='MPG-12 pg1'!D33 -> 0.1031 | E33: ='ROE Period Annual Yields (WP)'!K33 -> 0.06073333333 | F33: 0.04236666667 | G33: 0.04475666667 | H33: 0.04044916667 | J33: 0.0435 | L33: 22 | M33: 20 | N33: 0.04236666667
A34: =MAX($A$11:A33)+1 -> 23 | B34: 2008 | D34: ='MPG-12 pg1'!D34 -> 0.1037 | E34: ='ROE Period Annual Yields (WP)'!K34 -> 0.06528333333 | F34: 0.03841666667 | G34: 0.04366166667 | H34: 0.03967083333 | J34: 0.04389166667 | L34: 23 | M34: 16 | N34: 0.03841666667
A35: =MAX($A$11:A34)+1 -> 24 | B35: 2009 | D35: ='MPG-12 pg1'!D35 -> 0.1052 | E35: ='ROE Period Annual Yields (WP)'!K35 -> 0.06039166667 | F35: 0.04480833333 | G35: 0.04344333333 | H35: 0.04100166667 | J35: 0.04480833333 | L35: 24 | M35: 24 | N35: 0.04480833333
A36: =MAX($A$11:A35)+1 -> 25 | B36: 2010 | D36: ='MPG-12 pg1'!D36 -> 0.1029 | E36: ='ROE Period Annual Yields (WP)'!K36 -> 0.05463333333 | F36: 0.04826666667 | G36: 0.043315 | H36: 0.0426425 | J36: 0.0459 | L36: 25 | M36: 28 | N36: 0.04826666667
A37: =MAX($A$11:A36)+1 -> 26 | B37: 2011 | D37: ='MPG-12 pg1'!D37 -> 0.1019 | E37: ='ROE Period Annual Yields (WP)'!K37 -> 0.0504 | F37: 0.0515 | G37: 0.04507166667 | H37: 0.044465 | J37: 0.0462 | L37: 26 | M37: 30 | N37: 0.0515
A38: =MAX($A$11:A37)+1 -> 27 | B38: 2012 | D38: ='MPG-12 pg1'!D38 -> 0.1001 | E38: ='ROE Period Annual Yields (WP)'!K38 -> 0.0413 | F38: 0.0588 | G38: 0.04835833333 | H38: 0.0465575 | J38: 0.04799166667 | L38: 27 | M38: 38 | N38: 0.0588
A39: =MAX($A$11:A38)+1 -> 28 | B39: 2013 | D39: ='MPG-12 pg1'!D39 -> 0.0981 | E39: ='ROE Period Annual Yields (WP)'!K39 -> 0.04476666667 | F39: 0.05333333333 | G39: 0.05134166667 | H39: 0.04750166667 | J39: 0.04826666667 | L39: 28 | M39: 32 | N39: 0.05333333333
A40: =MAX($A$11:A39)+1 -> 29 | B40: 2014 | D40: ='MPG-12 pg1'!D40 -> 0.0975 | E40: ='ROE Period Annual Yields (WP)'!K40 -> 0.042775 | F40: 0.054725 | G40: 0.053325 | H40: 0.04838416667 | J40: 0.04890833333 | L40: 29 | M40: 33 | N40: 0.054725
A41: =MAX($A$11:A40)+1 -> 30 | B41: 2015 | D41: ='MPG-12 pg1'!D41 -> 0.096 | E41: ='ROE Period Annual Yields (WP)'!K41 -> 0.04115 | F41: 0.05485 | G41: 0.05464166667 | H41: 0.04897833333 | J41: 0.0515 | L41: 30 | M41: 34 | N41: 0.05485
A42: =MAX($A$11:A41)+1 -> 31 | B42: 2016 | D42: ='MPG-12 pg1'!D42 -> 0.096 | E42: ='ROE Period Annual Yields (WP)'!K42 -> 0.039325 | F42: 0.056675 | G42: 0.05567666667 | H42: 0.05037416667 | J42: 0.05300833333 | L42: 31 | M42: 35 | N42: 0.056675
A43: =MAX($A$11:A42)+1 -> 32 | B43: 2017 | D43: ='MPG-12 pg1'!D43 -> 0.0968 | E43: ='ROE Period Annual Yields (WP)'!K43 -> 0.03998333333 | F43: =D43-E43 -> 0.05681666667 | G43: =AVERAGE(F39:F43) -> 0.05528 | H43: =AVERAGE(F34:F43) -> 0.05181916667 | J43: 0.05333333333 | L43: 32 | M43: 36 | N43: =F43 -> 0.05681666667
A44: =MAX($A$11:A43)+1 -> 33 | B44: 2018 | D44: ='MPG-12 pg1'!D44 -> 0.0955 | E44: ='ROE Period Annual Yields (WP)'!K44 -> 0.04249166667 | F44: 0.05300833333 | G44: 0.055215 | H44: 0.05327833333 | J44: 0.054725 | L44: 33 | M44: 31 | N44: 0.05300833333
A45: =MAX($A$11:A44)+1 -> 34 | B45: 2019 | D45: ='MPG-12 pg1'!D45 -> 0.0964 | E45: ='ROE Period Annual Yields (WP)'!K45 -> 0.037675 | F45: 0.058725 | G45: 0.056015 | H45: 0.05467 | J45: 0.05485 | L45: 34 | M45: 37 | N45: 0.058725
A46: =MAX($A$11:A45)+1 -> 35 | B46: 2020 | D46: ='MPG-12 pg1'!D46 -> 0.0939 | E46: ='ROE Period Annual Yields (WP)'!K46 -> 0.03015 | F46: 0.06375 | G46: 0.057795 | H46: 0.05621833333 | J46: 0.056675 | L46: 35 | M46: 40 | N46: 0.06375
A47: =MAX($A$11:A46)+1 -> 36 | B47: 2021 | D47: ='MPG-12 pg1'!D47 -> 0.0939 | E47: ='ROE Period Annual Yields (WP)'!K47 -> 0.03110833333 | F47: 0.06279166667 | G47: 0.05901833333 | H47: 0.0573475 | J47: 0.05681666667 | L47: 36 | M47: 39 | N47: 0.06279166667
A48: =MAX($A$11:A47)+1 -> 37 | B48: 2022 | D48: ='MPG-12 pg1'!D48 -> 0.0952 | E48: ='ROE Period Annual Yields (WP)'!K48 -> 0.04720833333 | F48: 0.04799166667 | G48: 0.05725333333 | H48: 0.05626666667 | J48: 0.058725 | L48: 37 | M48: 27 | N48: 0.04799166667
A49: =MAX($A$11:A48)+1 -> 38 | B49: 2023 | D49: ='MPG-12 pg1'!D49 -> 0.09619787234 | E49: ='ROE Period Annual Yields (WP)'!K49 -> 0.055375 | F49: =D49-E49 -> 0.04082287234 | G49: =AVERAGE(F45:F49) -> 0.05481624113 | H49: =AVERAGE(F40:F49) -> 0.05501562057 | J49: 0.0588 | L49: 38 | M49: 18 | N49: =F49 -> 0.04082287234
A50: =MAX($A$11:A49)+1 -> 39 | B50: 2024 | D50: ='MPG-12 pg1'!D50 -> 0.09776097561 | E50: ='ROE Period Annual Yields (WP)'!K50 -> 0.05540833333 | F50: 0.04235264228 | G50: 0.05154176959 | H50: 0.0537783848 | J50: 0.06279166667 | L50: 39 | M50: 19 | N50: 0.04235264228
A51: =MAX($A$11:A50)+1 -> 40 | B51: 2025 | C51: 3 | D51: ='MPG-12 pg1'!D51 -> 0.0972 | E51: ='ROE Period Annual Yields (WP)'!K51 -> 0.05773333333 | F51: =D51-E51 -> 0.03946666667 | G51: =AVERAGE(F47:F51) -> 0.04668510292 | H51: =AVERAGE(F42:F51) -> 0.05224005146 | J51: 0.06375 | L51: 40 | M51: 17 | N51: =F51 -> 0.03946666667
A53: =MAX($A$11:A52)+1 -> 41 | B53: Average | D53: =AVERAGE(D12:D52) -> 0.1081389712 | E53: =AVERAGE(E12:E52) -> 0.06481916667 | F53: =AVERAGE(F12:F52) -> 0.04331980453 | G53: =AVERAGE(G12:G52) -> 0.04394832723 | H53: =AVERAGE(H12:H52) -> 0.04418781904 | J53: =_xlfn.PERCENTILE.INC(G12:G52,0.5) -> 0.0435525
A54: =MAX($A$11:A53)+1 -> 42 | B54: Minimum | G54: =MIN(G$12:G$52) -> 0.02884 | H54: =MIN(H$12:H$52) -> 0.03197 | J54: =+_xlfn.PERCENTILE.INC(G12:G52,0.75) -> 0.05365416667
A55: =MAX($A$11:A54)+1 -> 43 | B55: Maximum | G55: =MAX(G$12:G$52) -> 0.05901833333 | H55: =MAX(H$12:H$52) -> 0.0573475
A59: Sources:
A60: 1 Regulatory Research Associates, Inc., Regulatory Focus, Major Rate Case Decisions, Jan. 1997 p. 5, and Jan. 2011 p. 3.
A61: ='MPG-12 pg1'!A61 -> S&P Global Market Intelligence, RRA Regulatory Focus, Major Electric Rate Case Decisions in the US,
A62: ='MPG-12 pg1'!A62 -> January - March 2025, April 25, 2025 at page 3.
A63: ='MPG-12 pg1'!A63 -> 2006 - 2025 Authorized Returns exclude limited issue rider cases.
A64: 2 St. Louis Federal Reserve: Economic Research, http://research.stlouisfed.org/.
A65: The yields from 2002 to 2005 represent the 20-Year Treasury yields obtained from the Federal Reserve Bank.
A66: 3 Data represents January - March, 2025.

Sheet MPG-13 pg2
A1: ='MPG-11'!A1:E1 -> Kentucky Utilities Company / Louisville Gas & Electric Company
A4: Equity Risk Premium - Utility Bond
D8: Authorized | E8: Average | F8: Indicated | G8: Rolling | H8: Rolling
D9: Gas | E9: "A" Rated Utility | F9: Risk | G9: 5 - Year | H9: 10 - Year
A10: Line | B10: Year | D10: Returns1 | E10: Bond Yield2 | F10: Premium | G10: Average | H10: Average
D11: -1 | E11: -2 | F11: -3 | G11: -4 | H11: -5
J12: =IFERROR(VLOOKUP(L12,$M$12:$N$52,2,),VLOOKUP(L12,$M$12:$N$52,2,)) -> 0.0236 | L12: 1 | M12: =RANK(F13,$F$13:$F$53,1) -> 17 | N12: =F13 -> 0.0388
A13: =MAX($A$12:A12)+1 -> 1 | B13: 1986 | D13: ='MPG-12 pg2'!D13 -> 0.1346 | E13: ='GR Period Annual Yields (WP)'!K12 -> 0.0958 | F13: =D13-E13 -> 0.0388 | J13: =IFERROR(VLOOKUP(L13,$M$12:$N$52,2,),VLOOKUP(L13,$M$12:$N$52,2,)) -> 0.0264 | L13: 2 | M13: 2 | N13: 0.0264
A14: =MAX($A$12:A13)+1 -> 2 | B14: 1987 | D14: ='MPG-12 pg2'!D14 -> 0.1274 | E14: ='GR Period Annual Yields (WP)'!K13 -> 0.101 | F14: 0.0264 | J14: =IFERROR(VLOOKUP(L14,$M$12:$N$52,2,),VLOOKUP(L14,$M$12:$N$52,2,)) -> 0.0281 | L14: 3 | M14: 1 | N14: 0.0236
A15: =MAX($A$12:A14)+1 -> 3 | B15: 1988 | D15: ='MPG-12 pg2'!D15 -> 0.1285 | E15: ='GR Period Annual Yields (WP)'!K14 -> 0.1049 | F15: 0.0236 | J15: =IFERROR(VLOOKUP(L15,$M$12:$N$52,2,),VLOOKUP(L15,$M$12:$N$52,2,)) -> 0.0304 | L15: 4 | M15: 7 | N15: 0.0311
A16: =MAX($A$12:A15)+1 -> 4 | B16: 1989 | D16: ='MPG-12 pg2'!D16 -> 0.1288 | E16: ='GR Period Annual Yields (WP)'!K15 -> 0.0977 | F16: 0.0311 | J16: =J15 -> 0.0304 | L16: 5 | M16: 3 | N16: 0.0281
A17: =MAX($A$12:A16)+1 -> 5 | B17: 1990 | D17: ='MPG-12 pg2'!D17 -> 0.1267 | E17: ='GR Period Annual Yields (WP)'!K16 -> 0.0986 | F17: 0.0281 | G17: =AVERAGE(F13:F17) -> 0.0296 | J17: =IFERROR(VLOOKUP(L17,$M$12:$N$52,2,),VLOOKUP(L17,$M$12:$N$52,2,)) -> 0.031 | L17: 6 | M17: 6 | N17: 0.031
A18: =MAX($A$12:A17)+1 -> 6 | B18: 1991 | D18: ='MPG-12 pg2'!D18 -> 0.1246 | E18: ='GR Period Annual Yields (WP)'!K17 -> 0.0936 | F18: 0.031 | G18: 0.02804 | J18: 0.0311 | L18: 7 | M18: 10 | N18: 0.0332
A19: =MAX($A$12:A18)+1 -> 7 | B19: 1992 | D19: ='MPG-12 pg2'!D19 -> 0.1201 | E19: ='GR Period Annual Yields (WP)'!K18 -> 0.0869 | F19: 0.0332 | G19: 0.0294 | J19: 0.03145833333 | L19: 8 | M19: 15 | N19: 0.0376
A20: =MAX($A$12:A19)+1 -> 8 | B20: 1993 | D20: ='MPG-12 pg2'!D20 -> 0.1135 | E20: ='GR Period Annual Yields (WP)'!K19 -> 0.0759 | F20: 0.0376 | G20: 0.0322 | J20: 0.031875 | L20: 9 | M20: 4 | N20: 0.0304
A21: =MAX($A$12:A20)+1 -> 9 | B21: 1994 | D21: ='MPG-12 pg2'!D21 -> 0.1135 | E21: ='GR Period Annual Yields (WP)'!K20 -> 0.0831 | F21: 0.0304 | G21: 0.03206 | J21: 0.0332 | L21: 10 | M21: 12 | N21: 0.0354
A22: =MAX($A$12:A21)+1 -> 10 | B22: 1995 | D22: ='MPG-12 pg2'!D22 -> 0.1143 | E22: ='GR Period Annual Yields (WP)'!K21 -> 0.0789 | F22: 0.0354 | G22: 0.03352 | H22: =AVERAGE(F13:F22) -> 0.03156 | J22: 0.0344 | L22: 11 | M22: 11 | N22: 0.0344
A23: =MAX($A$12:A22)+1 -> 11 | B23: 1996 | D23: ='MPG-12 pg2'!D23 -> 0.1119 | E23: ='GR Period Annual Yields (WP)'!K22 -> 0.0775 | F23: 0.0344 | G23: 0.0342 | H23: 0.03112 | J23: 0.0354 | L23: 12 | M23: 14 | N23: 0.0369
A24: =MAX($A$12:A23)+1 -> 12 | B24: 1997 | D24: ='MPG-12 pg2'!D24 -> 0.1129 | E24: ='GR Period Annual Yields (WP)'!K23 -> 0.076 | F24: 0.0369 | G24: 0.03494 | H24: 0.03217 | J24: 0.036575 | L24: 13 | M24: 26 | N24: 0.0447
A25: =MAX($A$12:A24)+1 -> 13 | B25: 1998 | D25: ='MPG-12 pg2'!D25 -> 0.1151 | E25: ='GR Period Annual Yields (WP)'!K24 -> 0.0704 | F25: 0.0447 | G25: 0.03636 | H25: 0.03428 | J25: 0.0369 | L25: 14 | M25: 4 | N25: 0.0304
A26: =MAX($A$12:A25)+1 -> 14 | B26: 1999 | D26: ='MPG-12 pg2'!D26 -> 0.1066 | E26: ='GR Period Annual Yields (WP)'!K25 -> 0.0762 | F26: 0.0304 | G26: 0.03636 | H26: 0.03421 | J26: 0.0376 | L26: 15 | M26: 8 | N26: 0.03145833333
A27: =MAX($A$12:A26)+1 -> 15 | B27: 2000 | D27: ='MPG-12 pg2'!D27 -> 0.1139 | E27: ='GR Period Annual Yields (WP)'!K26 -> 0.08244166667 | F27: 0.03145833333 | G27: 0.03557166667 | H27: 0.03454583333 | J27: 0.03861666667 | L27: 16 | M27: 9 | N27: 0.031875
A28: =MAX($A$12:A27)+1 -> 16 | B28: 2001 | D28: ='MPG-12 pg2'!D28 -> 0.1095 | E28: ='GR Period Annual Yields (WP)'!K27 -> 0.077625 | F28: 0.031875 | G28: 0.03506666667 | H28: 0.03463333333 | J28: 0.0388 | L28: 17 | M28: 13 | N28: 0.036575
A29: =MAX($A$12:A28)+1 -> 17 | B29: 2002 | D29: ='MPG-12 pg2'!D29 -> 0.1103 | E29: ='GR Period Annual Yields (WP)'!K28 -> 0.073725 | F29: 0.036575 | G29: 0.03500166667 | H29: 0.03497083333 | J29: 0.03956666667 | L29: 18 | M29: 24 | N29: 0.04409166667
A30: =MAX($A$12:A29)+1 -> 18 | B30: 2003 | D30: ='MPG-12 pg2'!D30 -> 0.1099 | E30: ='GR Period Annual Yields (WP)'!K29 -> 0.06580833333 | F30: 0.04409166667 | G30: 0.03488 | H30: 0.03562 | J30: 0.040625 | L30: 19 | M30: 25 | N30: 0.0443
A31: =MAX($A$12:A30)+1 -> 19 | B31: 2004 | D31: ='MPG-12 pg2'!D31 -> 0.1059 | E31: ='GR Period Annual Yields (WP)'!K30 -> 0.0616 | F31: 0.0443 | G31: 0.03766 | H31: 0.03701 | J31: 0.04113782051 | L31: 20 | M31: 29 | N31: 0.04810833333
A32: =MAX($A$12:A31)+1 -> 20 | B32: 2005 | D32: ='MPG-12 pg2'!D32 -> 0.1046 | E32: ='GR Period Annual Yields (WP)'!K31 -> 0.05649166667 | F32: 0.04810833333 | G32: 0.04099 | H32: 0.03828083333 | J32: 0.04146666667 | L32: 21 | M32: 23 | N32: 0.04331666667
A33: =MAX($A$12:A32)+1 -> 21 | B33: 2006 | D33: ='MPG-12 pg2'!D33 -> 0.104 | E33: ='GR Period Annual Yields (WP)'!K32 -> 0.06068333333 | F33: 0.04331666667 | G33: 0.04327833333 | H33: 0.0391725 | J33: 0.04180833333 | L33: 22 | M33: 21 | N33: 0.04146666667
A34: =MAX($A$12:A33)+1 -> 22 | B34: 2007 | D34: ='MPG-12 pg2'!D34 -> 0.1022 | E34: ='GR Period Annual Yields (WP)'!K33 -> 0.06073333333 | F34: 0.04146666667 | G34: 0.04425666667 | H34: 0.03962916667 | J34: 0.04331666667 | L34: 23 | M34: 16 | N34: 0.03861666667
A35: =MAX($A$12:A34)+1 -> 23 | B35: 2008 | D35: ='MPG-12 pg2'!D35 -> 0.1039 | E35: ='GR Period Annual Yields (WP)'!K34 -> 0.06528333333 | F35: 0.03861666667 | G35: 0.04316166667 | H35: 0.03902083333 | J35: 0.04409166667 | L35: 24 | M35: 22 | N35: 0.04180833333
A36: =MAX($A$12:A35)+1 -> 24 | B36: 2009 | D36: ='MPG-12 pg2'!D36 -> 0.1022 | E36: ='GR Period Annual Yields (WP)'!K35 -> 0.06039166667 | F36: 0.04180833333 | G36: 0.04266333333 | H36: 0.04016166667 | J36: 0.0443 | L36: 25 | M36: 27 | N36: 0.04686666667
A37: =MAX($A$12:A36)+1 -> 25 | B37: 2010 | D37: ='MPG-12 pg2'!D37 -> 0.1015 | E37: ='GR Period Annual Yields (WP)'!K36 -> 0.05463333333 | F37: 0.04686666667 | G37: 0.042415 | H37: 0.0417025 | J37: 0.0447 | L37: 26 | M37: 30 | N37: 0.0488
A38: =MAX($A$12:A37)+1 -> 26 | B38: 2011 | D38: ='MPG-12 pg2'!D38 -> 0.0992 | E38: ='GR Period Annual Yields (WP)'!K37 -> 0.0504 | F38: 0.0488 | G38: 0.04351166667 | H38: 0.043395 | J38: 0.04686666667 | L38: 27 | M38: 37 | N38: 0.0581
A39: =MAX($A$12:A38)+1 -> 27 | B39: 2012 | D39: ='MPG-12 pg2'!D39 -> 0.0994 | E39: ='GR Period Annual Yields (WP)'!K38 -> 0.0413 | F39: 0.0581 | G39: 0.04683833333 | H39: 0.0455475 | J39: 0.04799166667 | L39: 28 | M39: 31 | N39: 0.05203333333
A40: =MAX($A$12:A39)+1 -> 28 | B40: 2013 | D40: ='MPG-12 pg2'!D40 -> 0.0968 | E40: ='GR Period Annual Yields (WP)'!K39 -> 0.04476666667 | F40: 0.05203333333 | G40: 0.04952166667 | H40: 0.04634166667 | J40: 0.04810833333 | L40: 29 | M40: 34 | N40: 0.055025
A41: =MAX($A$12:A40)+1 -> 29 | B41: 2014 | D41: ='MPG-12 pg2'!D41 -> 0.0978 | E41: ='GR Period Annual Yields (WP)'!K40 -> 0.042775 | F41: 0.055025 | G41: 0.052165 | H41: 0.04741416667 | J41: 0.0488 | L41: 30 | M41: 33 | N41: 0.05485
A42: =MAX($A$12:A41)+1 -> 30 | B42: 2015 | D42: ='MPG-12 pg2'!D42 -> 0.096 | E42: ='GR Period Annual Yields (WP)'!K41 -> 0.04115 | F42: 0.05485 | G42: 0.05376166667 | H42: 0.04808833333 | J42: 0.05203333333 | L42: 31 | M42: 35 | N42: 0.056075
A43: =MAX($A$12:A42)+1 -> 31 | B43: 2016 | D43: ='MPG-12 pg2'!D43 -> 0.0954 | E43: ='GR Period Annual Yields (WP)'!K42 -> 0.039325 | F43: 0.056075 | G43: 0.05521666667 | H43: 0.04936416667 | J43: 0.05340833333 | L43: 32 | M43: 36 | N43: =F44 -> 0.05631666667
A44: =MAX($A$12:A43)+1 -> 32 | B44: 2017 | D44: ='MPG-12 pg2'!D44 -> 0.0963 | E44: ='GR Period Annual Yields (WP)'!K43 -> 0.03998333333 | F44: =D44-E44 -> 0.05631666667 | G44: =AVERAGE(F40:F44) -> 0.05486 | H44: =AVERAGE(F35:F44) -> 0.05084916667 | J44: 0.05485 | L44: 33 | M44: 32 | N44: 0.05340833333
A45: =MAX($A$12:A44)+1 -> 33 | B45: 2018 | D45: ='MPG-12 pg2'!D45 -> 0.0959 | E45: ='GR Period Annual Yields (WP)'!K44 -> 0.04249166667 | F45: 0.05340833333 | G45: 0.055135 | H45: 0.05232833333 | J45: 0.055025 | L45: 34 | M45: 38 | N45: 0.059425
A46: =MAX($A$12:A45)+1 -> 34 | B46: 2019 | D46: ='MPG-12 pg2'!D46 -> 0.0971 | E46: ='GR Period Annual Yields (WP)'!K45 -> 0.037675 | F46: 0.059425 | G46: 0.056015 | H46: 0.05409 | J46: 0.056075 | L46: 35 | M46: 39 | N46: 0.06443823529
A47: =MAX($A$12:A46)+1 -> 35 | B47: 2020 | D47: ='MPG-12 pg2'!D47 -> 0.09458823529 | E47: ='GR Period Annual Yields (WP)'!K46 -> 0.03015 | F47: 0.06443823529 | G47: 0.05793264706 | H47: 0.05584715686 | J47: 0.05631666667 | L47: 36 | M47: 40 | N47: 0.06449166667
A48: =MAX($A$12:A47)+1 -> 36 | B48: 2021 | D48: ='MPG-12 pg2'!D48 -> 0.0956 | E48: ='GR Period Annual Yields (WP)'!K47 -> 0.03110833333 | F48: 0.06449166667 | G48: 0.05961598039 | H48: 0.05741632353 | J48: 0.0581 | L48: 37 | M48: 28 | N48: =F49 -> 0.04799166667
A49: =MAX($A$12:A48)+1 -> 37 | B49: 2022 | D49: ='MPG-12 pg2'!D49 -> 0.0952 | E49: ='GR Period Annual Yields (WP)'!K48 -> 0.04720833333 | F49: =D49-E49 -> 0.04799166667 | G49: =AVERAGE(F45:F49) -> 0.05795098039 | H49: =AVERAGE(F40:F49) -> 0.0564054902 | J49: 0.059425 | L49: 38 | M49: 19 | N49: 0.040625
A50: =MAX($A$12:A49)+1 -> 38 | B50: 2023 | D50: ='MPG-12 pg2'!D50 -> 0.096 | E50: ='ROE Period Annual Yields (WP)'!K49 -> 0.055375 | F50: 0.040625 | G50: 0.05539431373 | H50: 0.05526465686 | J50: 0.06443823529 | L50: 39 | M50: 20 | N50: =F51 -> 0.04113782051
A51: =MAX($A$12:A50)+1 -> 39 | B51: 2024 | D51: ='MPG-12 pg2'!D51 -> 0.09654615385 | E51: ='ROE Period Annual Yields (WP)'!K50 -> 0.05540833333 | F51: =D51-E51 -> 0.04113782051 | G51: =AVERAGE(F47:F51) -> 0.05173687783 | H51: =AVERAGE(F42:F51) -> 0.05387593891 | J51: 0.06449166667 | L51: 40 | M51: 18 | N51: =F52 -> 0.03956666667
A52: =MAX($A$12:A51)+1 -> 40 | B52: 2025 | C52: 3 | D52: ='MPG-12 pg2'!D52 -> 0.0973 | E52: ='ROE Period Annual Yields (WP)'!K51 -> 0.05773333333 | F52: =D52-E52 -> 0.03956666667 | G52: =AVERAGE(F48:F52) -> 0.0467625641 | H52: =AVERAGE(F43:F52) -> 0.05234760558
J53: =_xlfn.PERCENTILE.INC(G13:G53,0.5) -> 0.0429125
A54: =MAX($A$12:A53)+1 -> 41 | B54: Average | D54: =AVERAGE(D13:D53) -> 0.1073883597 | E54: =AVERAGE(E13:E53) -> 0.06481916667 | F54: =AVERAGE(F13:F53) -> 0.04256919306 | G54: =AVERAGE(G$13:G$53) -> 0.04327898232 | H54: =AVERAGE(H$13:H$53) -> 0.04344074211 | J54: =+_xlfn.PERCENTILE.INC(G13:G53,0.75) -> 0.05256416667
A55: =MAX($A$12:A54)+1 -> 42 | B55: Minimum | G55: =MIN(G$13:G$53) -> 0.02804 | H55: =MIN(H$13:H$53) -> 0.03112
A56: =MAX($A$12:A55)+1 -> 43 | B56: Maximum | G56: =MAX(G$13:G$53) -> 0.05961598039 | H56: =MAX(H$13:H$53) -> 0.05741632353
A60: Sources:
A61: 1 Regulatory Research Associates, Inc., Regulatory Focus, Major Rate Case Decisions, Jan. 1997 p. 5, and Jan. 2011 p. 3.
A62: ='MPG-12 pg1'!A61 -> S&P Global Market Intelligence, RRA Regulatory Focus, Major Electric Rate Case Decisions in the US,
A63: ='MPG-12 pg1'!A62 -> January - March 2025, April 25, 2025 at page 3.
A64: 2 St. Louis Federal Reserve: Economic Research, http://research.stlouisfed.org/.
A65: The yields from 2002 to 2005 represent the 20-Year Treasury yields obtained from the Federal Reserve Bank.
A66: 3 Data represents January - March, 2025.

Sheet MPG-14
A1: ='MPG-11'!A1:E1 -> Kentucky Utilities Company / Louisville Gas & Electric Company
A4: Bond Yield Spreads
E8: Public Utility Bond | J8: Corporate Bond | O8: Utility to Corporate
A9: Line | B9: Year | D9: T-Bond Yield1 | E9: A2 | F9: Baa2 | G9: A-T-Bond Spread | H9: Baa-T-Bond Spread | J9: Aaa3 | K9: Baa3 | L9: Aaa-T-Bond Spread | M9: Baa-T-Bond Spread | O9: Baa Spread | P9: A-Aaa Spread
D10: -1 | E10: -2 | F10: -3 | G10: -4 | H10: -5 | J10: -6 | K10: -7 | L10: -8 | M10: -9 | O10: -10 | P10: -11
A12: =MAX(A$11:A11)+1 -> 1 | B12: 1980 | D12: ='GR Period Annual Yields (WP)'!B6 -> 0.1129833333 | E12: ='GR Period Annual Yields (WP)'!K6 -> 0.1334 | F12: ='GR Period Annual Yields (WP)'!N6 -> 0.1395 | G12: =E12-D12 -> 0.02041666667 | H12: =F12-D12 -> 0.02651666667 | J12: ='GR Period Annual Yields (WP)'!E6 -> 0.1193833333 | K12: ='GR Period Annual Yields (WP)'!H6 -> 0.1366833333 | L12: =J12-D12 -> 0.0064 | M12: =K12-D12 -> 0.0237 | O12: =F12-K12 -> 0.002816666667 | P12: =+E12-J12 -> 0.01401666667 | R12: Utility A - T-Bond Spread
A13: =MAX(A$11:A12)+1 -> 2 | B13: =+B12+1 -> 1981 | D13: ='GR Period Annual Yields (WP)'!B7 -> 0.1344166667 | E13: ='GR Period Annual Yields (WP)'!K7 -> 0.1595 | F13: ='GR Period Annual Yields (WP)'!N7 -> 0.166 | G13: 0.02508333333 | H13: 0.03158333333 | J13: ='GR Period Annual Yields (WP)'!E7 -> 0.1417083333 | K13: ='GR Period Annual Yields (WP)'!H7 -> 0.1604416667 | L13: 0.007291666667 | M13: 0.026025 | O13: 0.005558333333 | P13: 0.01779166667 | R13: Utility Baa - T-Bond Spread
A14: =MAX(A$11:A13)+1 -> 3 | B14: 1982 | D14: ='GR Period Annual Yields (WP)'!B8 -> 0.1276166667 | E14: ='GR Period Annual Yields (WP)'!K8 -> 0.1586 | F14: ='GR Period Annual Yields (WP)'!N8 -> 0.1645 | G14: 0.03098333333 | H14: 0.03688333333 | J14: ='GR Period Annual Yields (WP)'!E8 -> 0.137875 | K14: ='GR Period Annual Yields (WP)'!H8 -> 0.1611333333 | L14: 0.01025833333 | M14: 0.03351666667 | O14: 0.003366666667 | P14: 0.020725 | R14: Corporate Aaa - T-Bond Spread
A15: =MAX(A$11:A14)+1 -> 4 | B15: 1983 | D15: ='GR Period Annual Yields (WP)'!B9 -> 0.1117833333 | E15: ='GR Period Annual Yields (WP)'!K9 -> 0.1366 | F15: ='GR Period Annual Yields (WP)'!N9 -> 0.142 | G15: 0.02481666667 | H15: 0.03021666667 | J15: ='GR Period Annual Yields (WP)'!E9 -> 0.1204166667 | K15: ='GR Period Annual Yields (WP)'!H9 -> 0.1355416667 | L15: 0.008633333333 | M15: 0.02375833333 | O15: 0.006458333333 | P15: 0.01618333333 | R15: Corporate Baa - T-Bond Spread
A16: =MAX(A$11:A15)+1 -> 5 | B16: 1984 | D16: ='GR Period Annual Yields (WP)'!B10 -> 0.1239166667 | E16: ='GR Period Annual Yields (WP)'!K10 -> 0.1403 | F16: ='GR Period Annual Yields (WP)'!N10 -> 0.1453 | G16: 0.01638333333 | H16: 0.02138333333 | J16: ='GR Period Annual Yields (WP)'!E10 -> 0.1270916667 | K16: ='GR Period Annual Yields (WP)'!H10 -> 0.1419 | L16: 0.003175 | M16: 0.01798333333 | O16: 0.0034 | P16: 0.01320833333
A17: =MAX(A$11:A16)+1 -> 6 | B17: 1985 | D17: ='GR Period Annual Yields (WP)'!B11 -> 0.1078916667 | E17: ='GR Period Annual Yields (WP)'!K11 -> 0.1247 | F17: ='GR Period Annual Yields (WP)'!N11 -> 0.1296 | G17: 0.01680833333 | H17: 0.02170833333 | J17: ='GR Period Annual Yields (WP)'!E11 -> 0.1137333333 | K17: ='GR Period Annual Yields (WP)'!H11 -> 0.12715 | L17: 0.005841666667 | M17: 0.01925833333 | O17: 0.00245 | P17: 0.01096666667
A18: =MAX(A$11:A17)+1 -> 7 | B18: 1986 | D18: ='GR Period Annual Yields (WP)'!B12 -> 0.07798333333 | E18: ='GR Period Annual Yields (WP)'!K12 -> 0.0958 | F18: ='GR Period Annual Yields (WP)'!N12 -> 0.1 | G18: 0.01781666667 | H18: 0.02201666667 | J18: ='GR Period Annual Yields (WP)'!E12 -> 0.09020833333 | K18: ='GR Period Annual Yields (WP)'!H12 -> 0.1039083333 | L18: 0.012225 | M18: 0.025925 | O18: -0.003908333333 | P18: 0.005591666667
A19: =MAX(A$11:A18)+1 -> 8 | B19: 1987 | D19: ='GR Period Annual Yields (WP)'!B13 -> 0.0858 | E19: ='GR Period Annual Yields (WP)'!K13 -> 0.101 | F19: ='GR Period Annual Yields (WP)'!N13 -> 0.1053 | G19: 0.0152 | H19: 0.0195 | J19: ='GR Period Annual Yields (WP)'!E13 -> 0.09375833333 | K19: ='GR Period Annual Yields (WP)'!H13 -> 0.1057583333 | L19: 0.007958333333 | M19: 0.01995833333 | O19: -0.0004583333333 | P19: 0.007241666667
A20: =MAX(A$11:A19)+1 -> 9 | B20: 1988 | D20: ='GR Period Annual Yields (WP)'!B14 -> 0.08959166667 | E20: ='GR Period Annual Yields (WP)'!K14 -> 0.1049 | F20: ='GR Period Annual Yields (WP)'!N14 -> 0.11 | G20: 0.01530833333 | H20: 0.02040833333 | J20: ='GR Period Annual Yields (WP)'!E14 -> 0.0971 | K20: ='GR Period Annual Yields (WP)'!H14 -> 0.1083 | L20: 0.007508333333 | M20: 0.01870833333 | O20: 0.0017 | P20: 0.0078
A21: =MAX(A$11:A20)+1 -> 10 | B21: 1989 | D21: ='GR Period Annual Yields (WP)'!B15 -> 0.08449166667 | E21: ='GR Period Annual Yields (WP)'!K15 -> 0.0977 | F21: ='GR Period Annual Yields (WP)'!N15 -> 0.0997 | G21: 0.01320833333 | H21: 0.01520833333 | J21: ='GR Period Annual Yields (WP)'!E15 -> 0.092575 | K21: ='GR Period Annual Yields (WP)'!H15 -> 0.101775 | L21: 0.008083333333 | M21: 0.01728333333 | O21: -0.002075 | P21: 0.005125
A22: =MAX(A$11:A21)+1 -> 11 | B22: 1990 | D22: ='GR Period Annual Yields (WP)'!B16 -> 0.08608333333 | E22: ='GR Period Annual Yields (WP)'!K16 -> 0.0986 | F22: ='GR Period Annual Yields (WP)'!N16 -> 0.1006 | G22: 0.01251666667 | H22: 0.01451666667 | J22: ='GR Period Annual Yields (WP)'!E16 -> 0.09321666667 | K22: ='GR Period Annual Yields (WP)'!H16 -> 0.10355 | L22: 0.007133333333 | M22: 0.01746666667 | O22: -0.00295 | P22: 0.005383333333
A23: =MAX(A$11:A22)+1 -> 12 | B23: 1991 | D23: ='GR Period Annual Yields (WP)'!B17 -> 0.08135833333 | E23: ='GR Period Annual Yields (WP)'!K17 -> 0.0936 | F23: ='GR Period Annual Yields (WP)'!N17 -> 0.0955 | G23: 0.01224166667 | H23: 0.01414166667 | J23: ='GR Period Annual Yields (WP)'!E17 -> 0.08769166667 | K23: ='GR Period Annual Yields (WP)'!H17 -> 0.09801666667 | L23: 0.006333333333 | M23: 0.01665833333 | O23: -0.002516666667 | P23: 0.005908333333
A24: =MAX(A$11:A23)+1 -> 13 | B24: 1992 | D24: ='GR Period Annual Yields (WP)'!B18 -> 0.07666666667 | E24: ='GR Period Annual Yields (WP)'!K18 -> 0.0869 | F24: ='GR Period Annual Yields (WP)'!N18 -> 0.0886 | G24: 0.01023333333 | H24: 0.01193333333 | J24: ='GR Period Annual Yields (WP)'!E18 -> 0.0814 | K24: ='GR Period Annual Yields (WP)'!H18 -> 0.08976666667 | L24: 0.004733333333 | M24: 0.0131 | O24: -0.001166666667 | P24: 0.0055
A25: =MAX(A$11:A24)+1 -> 14 | B25: 1993 | D25: ='GR Period Annual Yields (WP)'!B19 -> 0.06598333333 | E25: ='GR Period Annual Yields (WP)'!K19 -> 0.0759 | F25: ='GR Period Annual Yields (WP)'!N19 -> 0.0791 | G25: 0.009916666667 | H25: 0.01311666667 | J25: ='GR Period Annual Yields (WP)'!E19 -> 0.07219166667 | K25: ='GR Period Annual Yields (WP)'!H19 -> 0.0793 | L25: 0.006208333333 | M25: 0.01331666667 | O25: -0.0002 | P25: 0.003708333333
A26: =MAX(A$11:A25)+1 -> 15 | B26: 1994 | D26: ='GR Period Annual Yields (WP)'!B20 -> 0.0737 | E26: ='GR Period Annual Yields (WP)'!K20 -> 0.0831 | F26: ='GR Period Annual Yields (WP)'!N20 -> 0.0863 | G26: 0.0094 | H26: 0.0126 | J26: ='GR Period Annual Yields (WP)'!E20 -> 0.079625 | K26: ='GR Period Annual Yields (WP)'!H20 -> 0.086225 | L26: 0.005925 | M26: 0.012525 | O26: 7.5e-05 | P26: 0.003475
A27: =MAX(A$11:A26)+1 -> 16 | B27: 1995 | D27: ='GR Period Annual Yields (WP)'!B21 -> 0.06884166667 | E27: ='GR Period Annual Yields (WP)'!K21 -> 0.0789 | F27: ='GR Period Annual Yields (WP)'!N21 -> 0.0829 | G27: 0.01005833333 | H27: 0.01405833333 | J27: ='GR Period Annual Yields (WP)'!E21 -> 0.0759 | K27: ='GR Period Annual Yields (WP)'!H21 -> 0.08200833333 | L27: 0.007058333333 | M27: 0.01316666667 | O27: 0.0008916666667 | P27: 0.003
A28: =MAX(A$11:A27)+1 -> 17 | B28: 1996 | D28: ='GR Period Annual Yields (WP)'!B22 -> 0.06700833333 | E28: ='GR Period Annual Yields (WP)'!K22 -> 0.0775 | F28: ='GR Period Annual Yields (WP)'!N22 -> 0.0817 | G28: 0.01049166667 | H28: 0.01469166667 | J28: ='GR Period Annual Yields (WP)'!E22 -> 0.0737 | K28: ='GR Period Annual Yields (WP)'!H22 -> 0.08054166667 | L28: 0.006691666667 | M28: 0.01353333333 | O28: 0.001158333333 | P28: 0.0038
A29: =MAX(A$11:A28)+1 -> 18 | B29: 1997 | D29: ='GR Period Annual Yields (WP)'!B23 -> 0.06605833333 | E29: ='GR Period Annual Yields (WP)'!K23 -> 0.076 | F29: ='GR Period Annual Yields (WP)'!N23 -> 0.0795 | G29: 0.009941666667 | H29: 0.01344166667 | J29: ='GR Period Annual Yields (WP)'!E23 -> 0.07261666667 | K29: ='GR Period Annual Yields (WP)'!H23 -> 0.078625 | L29: 0.006558333333 | M29: 0.01256666667 | O29: 0.000875 | P29: 0.003383333333
A30: =MAX(A$11:A29)+1 -> 19 | B30: 1998 | D30: ='GR Period Annual Yields (WP)'!B24 -> 0.05578333333 | E30: ='GR Period Annual Yields (WP)'!K24 -> 0.0704 | F30: ='GR Period Annual Yields (WP)'!N24 -> 0.0726 | G30: 0.01461666667 | H30: 0.01681666667 | J30: ='GR Period Annual Yields (WP)'!E24 -> 0.06531666667 | K30: ='GR Period Annual Yields (WP)'!H24 -> 0.07220833333 | L30: 0.009533333333 | M30: 0.016425 | O30: 0.0003916666667 | P30: 0.005083333333
A31: =MAX(A$11:A30)+1 -> 20 | B31: 1999 | D31: ='GR Period Annual Yields (WP)'!B25 -> 0.05865833333 | E31: ='GR Period Annual Yields (WP)'!K25 -> 0.0762 | F31: ='GR Period Annual Yields (WP)'!N25 -> 0.0788 | G31: 0.01754166667 | H31: 0.02014166667 | J31: ='GR Period Annual Yields (WP)'!E25 -> 0.07041666667 | K31: ='GR Period Annual Yields (WP)'!H25 -> 0.07870833333 | L31: 0.01175833333 | M31: 0.02005 | O31: 9.166666667e-05 | P31: 0.005783333333
A32: =MAX(A$11:A31)+1 -> 21 | B32: 2000 | D32: ='GR Period Annual Yields (WP)'!B26 -> 0.059425 | E32: ='GR Period Annual Yields (WP)'!K26 -> 0.08244166667 | F32: ='GR Period Annual Yields (WP)'!N26 -> 0.08359166667 | G32: 0.02301666667 | H32: 0.02416666667 | J32: ='GR Period Annual Yields (WP)'!E26 -> 0.076225 | K32: ='GR Period Annual Yields (WP)'!H26 -> 0.08364166667 | L32: 0.0168 | M32: 0.02421666667 | O32: -5e-05 | P32: 0.006216666667
A33: =MAX(A$11:A32)+1 -> 22 | B33: 2001 | D33: ='GR Period Annual Yields (WP)'!B27 -> 0.05493333333 | E33: ='GR Period Annual Yields (WP)'!K27 -> 0.077625 | F33: ='GR Period Annual Yields (WP)'!N27 -> 0.08028333333 | G33: 0.02269166667 | H33: 0.02535 | J33: ='GR Period Annual Yields (WP)'!E27 -> 0.070825 | K33: ='GR Period Annual Yields (WP)'!H27 -> 0.079475 | L33: 0.01589166667 | M33: 0.02454166667 | O33: 0.0008083333333 | P33: 0.0068
A34: =MAX(A$11:A33)+1 -> 23 | B34: 2002 | D34: ='GR Period Annual Yields (WP)'!B28 -> 0.0543 | E34: ='GR Period Annual Yields (WP)'!K28 -> 0.073725 | F34: ='GR Period Annual Yields (WP)'!N28 -> 0.08023333333 | G34: 0.019425 | H34: 0.02593333333 | J34: ='GR Period Annual Yields (WP)'!E28 -> 0.06491666667 | K34: ='GR Period Annual Yields (WP)'!H28 -> 0.07801666667 | L34: 0.01061666667 | M34: 0.02371666667 | O34: 0.002216666667 | P34: 0.008808333333
A35: =MAX(A$11:A34)+1 -> 24 | B35: 2003 | D35: ='GR Period Annual Yields (WP)'!B29 -> 0.049575 | E35: ='GR Period Annual Yields (WP)'!K29 -> 0.06580833333 | F35: ='GR Period Annual Yields (WP)'!N29 -> 0.068425 | G35: 0.01623333333 | H35: 0.01885 | J35: ='GR Period Annual Yields (WP)'!E29 -> 0.05666666667 | K35: ='GR Period Annual Yields (WP)'!H29 -> 0.06765833333 | L35: 0.007091666667 | M35: 0.01808333333 | O35: 0.0007666666667 | P35: 0.009141666667
A36: =MAX(A$11:A35)+1 -> 25 | B36: 2004 | D36: ='GR Period Annual Yields (WP)'!B30 -> 0.05046666667 | E36: ='GR Period Annual Yields (WP)'!K30 -> 0.0616 | F36: ='GR Period Annual Yields (WP)'!N30 -> 0.06395 | G36: 0.01113333333 | H36: 0.01348333333 | J36: ='GR Period Annual Yields (WP)'!E30 -> 0.05628333333 | K36: ='GR Period Annual Yields (WP)'!H30 -> 0.06393333333 | L36: 0.005816666667 | M36: 0.01346666667 | O36: 1.666666667e-05 | P36: 0.005316666667
A37: =MAX(A$11:A36)+1 -> 26 | B37: 2005 | D37: ='GR Period Annual Yields (WP)'!B31 -> 0.04645833333 | E37: ='GR Period Annual Yields (WP)'!K31 -> 0.05649166667 | F37: ='GR Period Annual Yields (WP)'!N31 -> 0.05925 | G37: 0.01003333333 | H37: 0.01279166667 | J37: ='GR Period Annual Yields (WP)'!E31 -> 0.05235 | K37: ='GR Period Annual Yields (WP)'!H31 -> 0.06064166667 | L37: 0.005891666667 | M37: 0.01418333333 | O37: -0.001391666667 | P37: 0.004141666667
A38: =MAX(A$11:A37)+1 -> 27 | B38: 2006 | D38: ='GR Period Annual Yields (WP)'!B32 -> 0.04873333333 | E38: ='GR Period Annual Yields (WP)'!K32 -> 0.06068333333 | F38: ='GR Period Annual Yields (WP)'!N32 -> 0.06316666667 | G38: 0.01195 | H38: 0.01443333333 | J38: ='GR Period Annual Yields (WP)'!E32 -> 0.05584166667 | K38: ='GR Period Annual Yields (WP)'!H32 -> 0.06479166667 | L38: 0.007108333333 | M38: 0.01605833333 | O38: -0.001625 | P38: 0.004841666667
A39: =MAX(A$11:A38)+1 -> 28 | B39: 2007 | D39: ='GR Period Annual Yields (WP)'!B33 -> 0.04834166667 | E39: ='GR Period Annual Yields (WP)'!K33 -> 0.06073333333 | F39: ='GR Period Annual Yields (WP)'!N33 -> 0.0633 | G39: 0.01239166667 | H39: 0.01495833333 | J39: ='GR Period Annual Yields (WP)'!E33 -> 0.05555833333 | K39: ='GR Period Annual Yields (WP)'!H33 -> 0.064825 | L39: 0.007216666667 | M39: 0.01648333333 | O39: -0.001525 | P39: 0.005175
A40: =MAX(A$11:A39)+1 -> 29 | B40: 2008 | D40: ='GR Period Annual Yields (WP)'!B34 -> 0.04279166667 | E40: ='GR Period Annual Yields (WP)'!K34 -> 0.06528333333 | F40: ='GR Period Annual Yields (WP)'!N34 -> 0.07245833333 | G40: 0.02249166667 | H40: 0.02966666667 | J40: ='GR Period Annual Yields (WP)'!E34 -> 0.056325 | K40: ='GR Period Annual Yields (WP)'!H34 -> 0.074475 | L40: 0.01353333333 | M40: 0.03168333333 | O40: -0.002016666667 | P40: 0.008958333333
A41: =MAX(A$11:A40)+1 -> 30 | B41: 2009 | D41: ='GR Period Annual Yields (WP)'!B35 -> 0.04069166667 | E41: ='GR Period Annual Yields (WP)'!K35 -> 0.06039166667 | F41: ='GR Period Annual Yields (WP)'!N35 -> 0.07055 | G41: 0.0197 | H41: 0.02985833333 | J41: ='GR Period Annual Yields (WP)'!E35 -> 0.05313333333 | K41: ='GR Period Annual Yields (WP)'!H35 -> 0.07295833333 | L41: 0.01244166667 | M41: 0.03226666667 | O41: -0.002408333333 | P41: 0.007258333333
A42: =MAX(A$11:A41)+1 -> 31 | B42: 2010 | D42: ='GR Period Annual Yields (WP)'!B36 -> 0.04250833333 | E42: ='GR Period Annual Yields (WP)'!K36 -> 0.05463333333 | F42: ='GR Period Annual Yields (WP)'!N36 -> 0.05961666667 | G42: 0.012125 | H42: 0.01710833333 | J42: ='GR Period Annual Yields (WP)'!E36 -> 0.04943333333 | K42: ='GR Period Annual Yields (WP)'!H36 -> 0.06038333333 | L42: 0.006925 | M42: 0.017875 | O42: -0.0007666666667 | P42: 0.0052
A43: =MAX(A$11:A42)+1 -> 32 | B43: 2011 | D43: ='GR Period Annual Yields (WP)'!B37 -> 0.03910833333 | E43: ='GR Period Annual Yields (WP)'!K37 -> 0.0504 | F43: ='GR Period Annual Yields (WP)'!N37 -> 0.05565833333 | G43: 0.01129166667 | H43: 0.01655 | J43: ='GR Period Annual Yields (WP)'!E37 -> 0.04639166667 | K43: ='GR Period Annual Yields (WP)'!H37 -> 0.05664166667 | L43: 0.007283333333 | M43: 0.01753333333 | O43: -0.0009833333333 | P43: 0.004008333333
A44: =MAX(A$11:A43)+1 -> 33 | B44: 2012 | D44: ='GR Period Annual Yields (WP)'!B38 -> 0.02920833333 | E44: ='GR Period Annual Yields (WP)'!K38 -> 0.0413 | F44: ='GR Period Annual Yields (WP)'!N38 -> 0.04855 | G44: 0.01209166667 | H44: 0.01934166667 | J44: ='GR Period Annual Yields (WP)'!E38 -> 0.03673333333 | K44: ='GR Period Annual Yields (WP)'!H38 -> 0.04935 | L44: 0.007525 | M44: 0.02014166667 | O44: -0.0008 | P44: 0.004566666667
A45: =MAX(A$11:A44)+1 -> 34 | B45: 2013 | D45: ='GR Period Annual Yields (WP)'!B39 -> 0.03448333333 | E45: ='GR Period Annual Yields (WP)'!K39 -> 0.04476666667 | F45: ='GR Period Annual Yields (WP)'!N39 -> 0.04983333333 | G45: 0.01028333333 | H45: 0.01535 | J45: ='GR Period Annual Yields (WP)'!E39 -> 0.04235 | K45: ='GR Period Annual Yields (WP)'!H39 -> 0.05101666667 | L45: 0.007866666667 | M45: 0.01653333333 | O45: -0.001183333333 | P45: 0.002416666667
A46: =MAX(A$11:A45)+1 -> 35 | B46: 2014 | D46: ='GR Period Annual Yields (WP)'!B40 -> 0.0334 | E46: ='GR Period Annual Yields (WP)'!K40 -> 0.042775 | F46: ='GR Period Annual Yields (WP)'!N40 -> 0.04799166667 | G46: 0.009375 | H46: 0.01459166667 | J46: ='GR Period Annual Yields (WP)'!E40 -> 0.041625 | K46: ='GR Period Annual Yields (WP)'!H40 -> 0.04854166667 | L46: 0.008225 | M46: 0.01514166667 | O46: -0.00055 | P46: 0.00115
A47: =MAX(A$11:A46)+1 -> 36 | B47: 2015 | D47: ='GR Period Annual Yields (WP)'!B41 -> 0.02840833333 | E47: ='GR Period Annual Yields (WP)'!K41 -> 0.04115 | F47: ='GR Period Annual Yields (WP)'!N41 -> 0.05029166667 | G47: 0.01274166667 | H47: 0.02188333333 | J47: ='GR Period Annual Yields (WP)'!E41 -> 0.03886666667 | K47: ='GR Period Annual Yields (WP)'!H41 -> 0.04999166667 | L47: 0.01045833333 | M47: 0.02158333333 | O47: 0.0003 | P47: 0.002283333333
A48: =MAX(A$11:A47)+1 -> 37 | B48: 2016 | D48: ='GR Period Annual Yields (WP)'!B42 -> 0.025975 | E48: ='GR Period Annual Yields (WP)'!K42 -> 0.039325 | F48: ='GR Period Annual Yields (WP)'!N42 -> 0.04675833333 | G48: 0.01335 | H48: 0.02078333333 | J48: ='GR Period Annual Yields (WP)'!E42 -> 0.03665833333 | K48: ='GR Period Annual Yields (WP)'!H42 -> 0.047175 | L48: 0.01068333333 | M48: 0.0212 | O48: -0.0004166666667 | P48: 0.002666666667
A49: =MAX(A$11:A48)+1 -> 38 | B49: 2017 | D49: ='GR Period Annual Yields (WP)'!B43 -> 0.02895 | E49: ='GR Period Annual Yields (WP)'!K43 -> 0.03998333333 | F49: ='GR Period Annual Yields (WP)'!N43 -> 0.04378333333 | G49: 0.01103333333 | H49: 0.01483333333 | J49: ='GR Period Annual Yields (WP)'!E43 -> 0.03743333333 | K49: ='GR Period Annual Yields (WP)'!H43 -> 0.0444 | L49: 0.008483333333 | M49: 0.01545 | O49: =F49-K49 -> -0.0006166666667 | P49: =+E49-J49 -> 0.00255
A50: =MAX(A$11:A49)+1 -> 39 | B50: 2018 | D50: ='GR Period Annual Yields (WP)'!B44 -> 0.031125 | E50: ='GR Period Annual Yields (WP)'!K44 -> 0.04249166667 | F50: ='GR Period Annual Yields (WP)'!N44 -> 0.04669166667 | G50: =E50-D50 -> 0.01136666667 | H50: =F50-D50 -> 0.01556666667 | J50: ='GR Period Annual Yields (WP)'!E44 -> 0.0393 | K50: ='GR Period Annual Yields (WP)'!H44 -> 0.048 | L50: =J50-D50 -> 0.008175 | M50: =K50-D50 -> 0.016875 | O50: -0.001308333333 | P50: 0.003191666667
A51: =MAX(A$11:A50)+1 -> 40 | B51: 2019 | D51: ='GR Period Annual Yields (WP)'!B45 -> 0.025825 | E51: ='GR Period Annual Yields (WP)'!K45 -> 0.037675 | F51: ='GR Period Annual Yields (WP)'!N45 -> 0.04194166667 | G51: =E51-D51 -> 0.01185 | H51: =F51-D51 -> 0.01611666667 | J51: ='GR Period Annual Yields (WP)'!E45 -> 0.033875 | K51: ='GR Period Annual Yields (WP)'!H45 -> 0.04375833333 | L51: =J51-D51 -> 0.00805 | M51: =K51-D51 -> 0.01793333333 | O51: -0.001816666667 | P51: 0.0038
A52: =MAX(A$11:A51)+1 -> 41 | B52: 2020 | D52: ='GR Period Annual Yields (WP)'!B46 -> 0.01561666667 | E52: ='GR Period Annual Yields (WP)'!K46 -> 0.03015 | F52: ='GR Period Annual Yields (WP)'!N46 -> 0.0339 | G52: =E52-D52 -> 0.01453333333 | H52: =F52-D52 -> 0.01828333333 | J52: ='GR Period Annual Yields (WP)'!E46 -> 0.02475833333 | K52: ='GR Period Annual Yields (WP)'!H46 -> 0.036025 | L52: =J52-D52 -> 0.009141666667 | M52: =K52-D52 -> 0.02040833333 | O52: -0.002125 | P52: 0.005391666667
A53: =MAX(A$11:A52)+1 -> 42 | B53: 2021 | D53: ='GR Period Annual Yields (WP)'!B47 -> 0.020525 | E53: ='GR Period Annual Yields (WP)'!K47 -> 0.03110833333 | F53: ='GR Period Annual Yields (WP)'!N47 -> 0.03361666667 | G53: =E53-D53 -> 0.01058333333 | H53: =F53-D53 -> 0.01309166667 | J53: ='GR Period Annual Yields (WP)'!E47 -> 0.02708333333 | K53: ='GR Period Annual Yields (WP)'!H47 -> 0.03398333333 | L53: =J53-D53 -> 0.006558333333 | M53: =K53-D53 -> 0.01345833333 | O53: -0.0003666666667 | P53: 0.004025
A54: =MAX(A$11:A53)+1 -> 43 | B54: 2022 | D54: ='GR Period Annual Yields (WP)'!B48 -> 0.03115 | E54: ='GR Period Annual Yields (WP)'!K48 -> 0.04720833333 | F54: ='GR Period Annual Yields (WP)'!N48 -> 0.05029166667 | G54: =E54-D54 -> 0.01605833333 | H54: =F54-D54 -> 0.01914166667 | J54: ='GR Period Annual Yields (WP)'!E48 -> 0.04085833333 | K54: ='GR Period Annual Yields (WP)'!H48 -> 0.05080833333 | L54: =J54-D54 -> 0.009708333333 | M54: =K54-D54 -> 0.01965833333 | O54: -0.0005166666667 | P54: 0.00635
A55: =MAX(A$11:A54)+1 -> 44 | B55: 2023 | D55: ='GR Period Annual Yields (WP)'!B49 -> 0.04091666667 | E55: ='GR Period Annual Yields (WP)'!K49 -> 0.055375 | F55: ='GR Period Annual Yields (WP)'!N49 -> 0.05839166667 | G55: =E55-D55 -> 0.01445833333 | H55: =F55-D55 -> 0.017475 | J55: ='GR Period Annual Yields (WP)'!E49 -> 0.048375 | K55: ='GR Period Annual Yields (WP)'!H49 -> 0.058525 | L55: =J55-D55 -> 0.007458333333 | M55: =K55-D55 -> 0.01760833333 | O55: =F55-K55 -> -0.0001333333333 | P55: =+E55-J55 -> 0.007
A56: =MAX(A$11:A55)+1 -> 45 | B56: 2024 | D56: ='GR Period Annual Yields (WP)'!B50 -> 0.04405833333 | E56: ='GR Period Annual Yields (WP)'!K50 -> 0.05540833333 | F56: ='GR Period Annual Yields (WP)'!N50 -> 0.05760833333 | G56: 0.01135 | H56: 0.01355 | J56: ='GR Period Annual Yields (WP)'!E50 -> 0.05044166667 | K56: ='GR Period Annual Yields (WP)'!H50 -> 0.05753333333 | L56: 0.006383333333 | M56: 0.013475 | O56: 7.5e-05 | P56: 0.004966666667
A57: =MAX(A$11:A56)+1 -> 46 | B57: 2025 | C57: 4 | D57: ='GR Period Annual Yields (WP)'!B51 -> 0.04771666667 | E57: ='GR Period Annual Yields (WP)'!K51 -> 0.05868333333 | F57: ='GR Period Annual Yields (WP)'!N51 -> 0.06053333333 | G57: =E57-D57 -> 0.01096666667 | H57: =F57-D57 -> 0.01281666667 | J57: ='GR Period Annual Yields (WP)'!E51 -> 0.0542 | K57: ='GR Period Annual Yields (WP)'!H51 -> 0.06091666667 | L57: =J57-D57 -> 0.006483333333 | M57: =K57-D57 -> 0.0132 | O57: =F57-K57 -> -0.0003833333333 | P57: =+E57-J57 -> 0.004483333333
A59: =MAX(A$11:A58)+1 -> 47 | B59: Average | D59: =AVERAGE(D12:D58) -> 0.06024583333 | E59: =AVERAGE(E12:E58) -> 0.0749307971 | F59: =AVERAGE(F12:F58) -> 0.07909057971 | G59: =AVERAGE(G12:G58) -> 0.01468496377 | H59: =AVERAGE(H12:H58) -> 0.01884474638 | J59: =AVERAGE(J12:J58) -> 0.06853115942 | K59: =AVERAGE(K12:K58) -> 0.07910887681 | L59: =AVERAGE(L12:L58) -> 0.008285326087 | M59: =AVERAGE(M12:M58) -> 0.01886304348 | O59: =AVERAGE(O12:O58) -> -1.829710145e-05 | P59: =AVERAGE(P12:P58) -> 0.006399637681
B82: Sources:
B83: 1 St. Louis Federal Reserve: Economic Research, http://research.stlouisfed.org/.
B84: 2 The utility yields for the period 1980-2000 were obtained from Mergent Public Utility Manual, Mergent Weekly News Reports, 2003.
B85: The utility yields for the period 2001-2009 were obtained from the Mergent Bond Record.
B86: The utility yields for the period 2010-2025 were obtained from the Mergent Bond Record.
B87: 3 The corporate yields for the period 1980-2009 were obtained from the St. Louis Federal Reserve: Economic Research, http://research.stlouisfed.org/.
B88: The corporate yields from 2010-2025 were obtained from the Mergent Bond Record.
B89: 4 Data represents January - June, 2025.

Sheet MPG-15 pg1
A1: =Utility -> Kentucky Utilities Company / Louisville Gas & Electric Company
A4: 3-Month Treasury and Utility Bond Yields
C7: Treasury | D7: "A" Rated Utility | E7: "Baa" Rated Utility
A8: Line | B8: Date | C8: Bond Yield1 | D8: Bond Yield2 | E8: Bond Yield2
C9: -1 | D9: -2 | E9: -3
A11: =MAX($A$10:A10)+1 -> 1 | B11: =MAX('GR Period Monthly Yields (WP)'!B9:B600) -> 2025-06-01 | C11: =VLOOKUP($B11,'GR Period Monthly Yields (WP)'!$B$9:$AE$651,'GR Period Monthly Yields (WP)'!$C$1,0)/100 -> 0.0489 | D11: =VLOOKUP($B11,'GR Period Monthly Yields (WP)'!$B$9:$AE$651,'GR Period Monthly Yields (WP)'!$P$1,0) -> 0.0593 | E11: =VLOOKUP($B11,'GR Period Monthly Yields (WP)'!$B$9:$AE$651,'GR Period Monthly Yields (WP)'!$Q$1,0) -> 0.0612
A12: =MAX($A$10:A11)+1 -> 2 | B12: =EDATE(B11,-1) -> 2025-05-01 | C12: =VLOOKUP($B12,'GR Period Monthly Yields (WP)'!$B$9:$AE$651,'GR Period Monthly Yields (WP)'!$C$1,0)/100 -> 0.049 | D12: =VLOOKUP($B12,'GR Period Monthly Yields (WP)'!$B$9:$AE$651,'GR Period Monthly Yields (WP)'!$P$1,0) -> 0.0605 | E12: =VLOOKUP($B12,'GR Period Monthly Yields (WP)'!$B$9:$AE$651,'GR Period Monthly Yields (WP)'!$Q$1,0) -> 0.0623
A13: =MAX($A$10:A12)+1 -> 3 | B13: =EDATE(B12,-1) -> 2025-04-01 | C13: =VLOOKUP($B13,'GR Period Monthly Yields (WP)'!$B$9:$AE$651,'GR Period Monthly Yields (WP)'!$C$1,0)/100 -> 0.0471 | D13: =VLOOKUP($B13,'GR Period Monthly Yields (WP)'!$B$9:$AE$651,'GR Period Monthly Yields (WP)'!$P$1,0) -> 0.0591 | E13: =VLOOKUP($B13,'GR Period Monthly Yields (WP)'!$B$9:$AE$651,'GR Period Monthly Yields (WP)'!$Q$1,0) -> 0.0611
A15: =MAX($A$10:A14)+1 -> 4 | B15: 3-Month Average | C15: =AVERAGE(C11:C13) -> 0.04833333333 | D15: =AVERAGE(D11:D13) -> 0.05963333333 | E15: 0.06153333333
A17: =MAX($A$10:A16)+1 -> 5 | B17: Unadjusted Stock Yield3 | C17: 0.03586282292
B19: Spreads
A20: =MAX($A$10:A19)+1 -> 6 | B20: Utility vs. Treasury Bond | D20: =ROUND(D15,4)-ROUND(C15,4) -> 0.0113 | E20: =ROUND(E15,4)-ROUND(C15,4) -> 0.0132
A22: =MAX($A$10:A21)+1 -> 7 | B22: Utility Bond vs. Stock | C22: =C15-C17 -> 0.01247051041 | D22: =D15-C17 -> 0.02377051041 | E22: =E15-C17 -> 0.02567051041
B25: Sources:
B26: 1 St. Louis Federal Reserve: Economic Research, http://research.stlouisfed.org.
B27: 2 Mergent Bond Record.
B28: 3 Exhibit MPG-5, column 4.

Sheet MPG-15 pg2
A1: =Utility -> Kentucky Utilities Company / Louisville Gas & Electric Company
A4: Trends in Bond Yields
A31: __________
A32: Sources:
A33: Mergent Bond Record.
A34: www.moodys.com, Bond Yields and Key Indicators.
A35: St. Louis Federal Reserve: Economic Research, http://research.stlouisfed.org/

Sheet MPG-15 pg3
A1: =Utility -> Kentucky Utilities Company / Louisville Gas & Electric Company
A4: Yield Spread Between Utility Bonds and 30-Year Treasury Bonds
A31: __________
A32: Sources:
A33: Mergent Bond Record.
A34: www.moodys.com, Bond Yields and Key Indicators.
A35: St. Louis Federal Reserve: Economic Research, http://research.stlouisfed.org/

Sheet ROE calc (hidden)
A1: SNLTable
A2: #PEND | B2: #PEND | C2: #PEND | D2: #PEND | E2: #PEND | F2: #PEND | G2: #PEND | H2: #PEND | I2: #PEND
A3: 238115 | B3: 238106 | C3: 238108 | D3: 238539 | E3: 238116 | F3: 254846 | G3: 238117 | H3: 238119 | I3: 238131
A6: D-30013-351-GR-19 | B6: 3504 | C6: MDU Resources Group Inc. | D6: WY | E6: Natural Gas | F6: Distribution | G6: Completed | H6: 2020-01-15 | I6: 9.35
A7: C-19-G-0066 | B7: 3427 | C7: Consolidated Edison Company of New York, Inc. | D7: NY | E7: Natural Gas | F7: Distribution | G7: Completed | H7: 2020-01-16 | I7: 8.8
A8: C-PUR-2018-00013 | B8: 3400 | C8: Roanoke Gas Company | D8: VA | E8: Natural Gas | F8: Distribution | G8: Completed | H8: 2020-01-24 | I8: 9.44
A9: Ca-44429-TDSIC-11 | B9: 3592 | C9: Southern Indiana Gas and Electric Company | D9: IN | E9: Natural Gas | F9: Limited-Issue Rider | G9: Completed | H9: 2020-01-29 | I9: NA
A10: Ca-44430-TDSIC-11 | B10: 3591 | C10: Indiana Gas Company, Inc. | D10: IN | E10: Natural Gas | F10: Limited-Issue Rider | G10: Completed | H10: 2020-01-29 | I10: NA
A11: D-UG-190210 | B11: 3461 | C11: Cascade Natural Gas Corporation | D11: WA | E11: Natural Gas | F11: Distribution | G11: Completed | H11: 2020-02-03 | I11: 9.4
A12: D-19-ATMG-525-RTS | B12: 3527 | C12: Atmos Energy Corporation | D12: KS | E12: Natural Gas | F12: Distribution | G12: Completed | H12: 2020-02-24 | I12: 9.1
A13: D-19-057-02 | B13: 3533 | C13: Questar Gas Company | D13: UT | E13: Natural Gas | F13: Distribution | G13: Completed | H13: 2020-02-25 | I13: 9.5
A14: D-DG-19-161 | B14: 3645 | C14: Liberty Utilities (EnergyNorth Natural Gas) Corp. | D14: NH | E14: Natural Gas | F14: Distribution | G14: Completed | H14: 2020-02-28 | I14: NA
A15: DPU 19-131 | B15: 3555 | C15: Fitchburg Gas and Electric Light Company | D15: MA | E15: Natural Gas | F15: Distribution | G15: Completed | H15: 2020-02-28 | I15: 9.7
A16: D-UG-190335 | B16: 3480 | C16: Avista Corporation | D16: WA | E16: Natural Gas | F16: Distribution | G16: Completed | H16: 2020-03-25 | I16: 9.4
A17: D-2019-00092 | B17: 3491 | C17: Northern Utilities, Inc. | D17: ME | E17: Natural Gas | F17: Distribution | G17: Completed | H17: 2020-03-26 | I17: 9.48
A18: D-GUD-10900 | B18: 3640 | C18: Atmos Energy Corporation | D18: TX | E18: Natural Gas | F18: Distribution | G18: Completed | H18: 2020-04-21 | I18: 9.8
A19: C-2020-00059 (PRP) | B19: 3637 | C19: Delta Natural Gas Company, Inc. | D19: KY | E19: Natural Gas | F19: Limited-Issue Rider | G19: Completed | H19: 2020-04-28 | I19: NA
A20: GO-2020-0229 (ISRS) | B20: 3606 | C20: Spire Missouri Inc. | D20: MO | E20: Natural Gas | F20: Limited-Issue Rider | G20: Completed | H20: 2020-05-13 | I20: NA
A21: GO-2020-0230 (ISRS) | B21: 3607 | C21: Missouri Gas Energy | D21: MO | E21: Natural Gas | F21: Limited-Issue Rider | G21: Completed | H21: 2020-05-13 | I21: NA
A22: D-19AL-0075G | B22: 3430 | C22: Black Hills Colorado Gas, Inc. | D22: CO | E22: Natural Gas | F22: Distribution | G22: Completed | H22: 2020-05-19 | I22: 9.2
A23: D-GUD-10920 | B23: 3672 | C23: CenterPoint Energy Resources Corp. | D23: TX | E23: Natural Gas | F23: Distribution | G23: Completed | H23: 2020-06-16 | I23: 9.65
A24: D-20-BHCG-389-TAR (GSRS) | B24: 3627 | C24: Black Hills Kansas Gas Utility Company, LLC | D24: KS | E24: Natural Gas | F24: Limited-Issue Rider | G24: Completed | H24: 2020-06-23 | I24: NA
A25: Ca-44403-TDSIC-11 | B25: 3620 | C25: Northern Indiana Public Service Company | D25: IN | E25: Natural Gas | F25: Limited-Issue Rider | G25: Completed | H25: 2020-06-24 | I25: NA
A26: Ca-PUD202000022 | B26: 3618 | C26: Oklahoma Natural Gas Company | D26: OK | E26: Natural Gas | F26: Distribution | G26: Completed | H26: 2020-07-08 | I26: NA
A27: D-UG-190530 | B27: 3535 | C27: Puget Sound Energy, Inc. | D27: WA | E27: Natural Gas | F27: Distribution | G27: Completed | H27: 2020-07-08 | I27: 9.4
A28: Ca-PUD202000028 | B28: 3630 | C28: CenterPoint Energy Resources Corp. | D28: OK | E28: Natural Gas | F28: Distribution | G28: Completed | H28: 2020-07-14 | I28: NA
A29: Ca-44429-TDSIC-12 | B29: 3644 | C29: Southern Indiana Gas and Electric Company | D29: IN | E29: Natural Gas | F29: Limited-Issue Rider | G29: Completed | H29: 2020-07-22 | I29: NA
A30: Ca-44430-TDSIC-12 | B30: 3643 | C30: Indiana Gas Company, Inc. | D30: IN | E30: Natural Gas | F30: Limited-Issue Rider | G30: Completed | H30: 2020-07-22 | I30: NA
A31: D-GUD-10928 | B31: 3650 | C31: Texas Gas Service Company, Inc. | D31: TX | E31: Natural Gas | F31: Distribution | G31: Completed | H31: 2020-08-04 | I31: 9.5
A32: C-GR-2020-0213 | B32: 3610 | C32: Summit Natural Gas of Missouri, Inc. | D32: MO | E32: Natural Gas | F32: Distribution | G32: Completed | H32: 2020-08-14 | I32: NA
A33: C-U-20642 | B33: 3586 | C33: DTE Gas Company | D33: MI | E33: Natural Gas | F33: Distribution | G33: Completed | H33: 2020-08-20 | I33: 9.9
A34: D-30010-187-GR-19 | B34: 3578 | C34: Questar Gas Company | D34: WY | E34: Natural Gas | F34: Distribution | G34: Completed | H34: 2020-08-21 | I34: 9.35
A35: C-PUR-2020-00105 (SAVE) | B35: 3656 | C35: Virginia Natural Gas, Inc. | D35: VA | E35: Natural Gas | F35: Limited-Issue Rider | G35: Completed | H35: 2020-08-27 | I35: NA
A36: C-U-20650 | B36: 3594 | C36: Consumers Energy Company | D36: MI | E36: Natural Gas | F36: Distribution | G36: Completed | H36: 2020-09-10 | I36: 9.9
A37: C-PUR-2020-00090 (SAVE) | B37: 3651 | C37: Roanoke Gas Company | D37: VA | E37: Natural Gas | F37: Limited-Issue Rider | G37: Completed | H37: 2020-09-11 | I37: NA
A38: D-20-00049 | B38: 3652 | C38: Chattanooga Gas Company | D38: TN | E38: Natural Gas | F38: Distribution | G38: Completed | H38: 2020-09-14 | I38: NA
A39: D-GR20030243 | B39: 3624 | C39: South Jersey Gas Company | D39: NJ | E39: Natural Gas | F39: Distribution | G39: Completed | H39: 2020-09-23 | I39: 9.6
A40: D-20-02023 (Northern) | B40: 3623 | C40: Southwest Gas Corporation | D40: NV | E40: Natural Gas | F40: Distribution | G40: Completed | H40: 2020-09-25 | I40: 9.25
A41: D-20-02023 (Southern) | B41: 3622 | C41: Southwest Gas Corporation | D41: NV | E41: Natural Gas | F41: Distribution | G41: Completed | H41: 2020-09-25 | I41: 9.25
A42: D-17-010-FR (2020 filing) | B42: 3633 | C42: CenterPoint Energy Resources Corp. | D42: AR | E42: Natural Gas | F42: Distribution | G42: Completed | H42: 2020-09-28 | I42: NA
A43: C-2020-00229 (PRP) | B43: 3683 | C43: Atmos Energy Corporation | D43: KY | E43: Natural Gas | F43: Limited-Issue Rider | G43: Completed | H43: 2020-09-30 | I43: NA
A44: DPU 20-59 | B44: 3682 | C44: Eversource Gas Company of Massachusetts | D44: MA | E44: Natural Gas | F44: Distribution | G44: Completed | H44: 2020-10-07 | I44: 9.7
A45: D-R-2019-3015162 | B45: 3604 | C45: UGI Utilities, Inc. | D45: PA | E45: Natural Gas | F45: Distribution | G45: Completed | H45: 2020-10-08 | I45: NA
A46: D-20AL-0049G | B46: 3609 | C46: Public Service Company of Colorado | D46: CO | E46: Natural Gas | F46: Distribution | G46: Completed | H46: 2020-10-12 | I46: 9.2
A47: D-UG-388 | B47: 3599 | C47: Northwest Natural Gas Company | D47: OR | E47: Natural Gas | F47: Distribution | G47: Completed | H47: 2020-10-16 | I47: 9.4
A48: DPU 19-120 | B48: 3557 | C48: NSTAR Gas Company | D48: MA | E48: Natural Gas | F48: Distribution | G48: Completed | H48: 2020-10-30 | I48: 9.9
A49: C-9644 | B49: 3647 | C49: Columbia Gas of Maryland, Incorporated | D49: MD | E49: Natural Gas | F49: Distribution | G49: Completed | H49: 2020-11-07 | I49: 9.6
A50: C-GO-2021-0030 (ISRS) | B50: 3698 | C50: Spire Missouri Inc. | D50: MO | E50: Natural Gas | F50: Limited-Issue Rider | G50: Completed | H50: 2020-11-12 | I50: NA
A51: C-GO-2021-0031 (ISRS) | B51: 3699 | C51: Missouri Gas Energy | D51: MO | E51: Natural Gas | F51: Limited-Issue Rider | G51: Completed | H51: 2020-11-12 | I51: NA
A52: D-21-KGSG-094-TAR (GSRS) | B52: 3700 | C52: Kansas Gas Service Company, Inc. | D52: KS | E52: Natural Gas | F52: Limited-Issue Rider | G52: Completed | H52: 2020-11-17 | I52: NA
A53: C-PUR-2020-00138 (SAVE) | B53: 3727 | C53: Columbia Gas of Virginia, Incorporated | D53: VA | E53: Natural Gas | F53: Limited-Issue Rider | G53: Completed | H53: 2020-11-18 | I53: NA
A54: C-19-G-0379 | B54: 3495 | C54: New York State Electric & Gas Corporation | D54: NY | E54: Natural Gas | F54: Distribution | G54: Completed | H54: 2020-11-19 | I54: 8.8
A55: C-19-G-0381 | B55: 3497 | C55: Rochester Gas and Electric Corporation | D55: NY | E55: Natural Gas | F55: Distribution | G55: Completed | H55: 2020-11-19 | I55: 8.8
A56: D-20200051 | B56: 3703 | C56: Peoples Gas System | D56: FL | E56: Natural Gas | F56: Distribution | G56: Completed | H56: 2020-11-19 | I56: 9.9
A57: D-3270-UR-123 (Gas) | B57: 3668 | C57: Madison Gas and Electric Company | D57: WI | E57: Natural Gas | F57: Distribution | G57: Completed | H57: 2020-11-24 | I57: 9.8
A58: A-18-12-009 (Gas) | B58: 3416 | C58: Pacific Gas and Electric Company | D58: CA | E58: Natural Gas | F58: Distribution | G58: Completed | H58: 2020-12-03 | I58: NA
A59: C-PUR-2020-00171 (SAVE) | B59: 3728 | C59: Washington Gas Light Company | D59: VA | E59: Natural Gas | F59: Limited-Issue Rider | G59: Completed | H59: 2020-12-08 | I59: NA
A60: D-G-01551A-19-0055 | B60: 3525 | C60: Southwest Gas Corporation | D60: AZ | E60: Natural Gas | F60: Distribution | G60: Completed | H60: 2020-12-09 | I60: 9.1
A61: D-UG 389 | B61: 3626 | C61: Avista Corporation | D61: OR | E61: Natural Gas | F61: Distribution | G61: Completed | H61: 2020-12-10 | I61: 9.4
A62: C-19-00317-UT | B62: 3600 | C62: New Mexico Gas Company, Inc. | D62: NM | E62: Natural Gas | F62: Distribution | G62: Completed | H62: 2020-12-16 | I62: 9.38
A63: C-9645 (Gas) | B63: 3649 | C63: Baltimore Gas and Electric Company | D63: MD | E63: Natural Gas | F63: Distribution | G63: Completed | H63: 2020-12-16 | I63: 9.65
A64: C-20-0575-G-390P (IREP) | B64: 3688 | C64: Mountaineer Gas Company | D64: WV | E64: Natural Gas | F64: Limited-Issue Rider | G64: Completed | H64: 2020-12-21 | I64: NA
A65: Ca-45330-TDSIC-1 | B65: 3746 | C65: Northern Indiana Public Service Company | D65: IN | E65: Natural Gas | F65: Limited-Issue Rider | G65: Completed | H65: 2020-12-23 | I65: NA
A66: D-6680-UR-122 (Gas) | B66: 3753 | C66: Wisconsin Power and Light Company | D66: WI | E66: Natural Gas | F66: Distribution | G66: Completed | H66: 2020-12-23 | I66: 10
I68: =AVERAGE(I6:I66) -> 9.458823529

Sheet Yields (WP)
A1: DGS30
A2: lin | B2: Percent, Not Seasonally Adjusted
A3: d | B3: Daily
A4: 1980-01-02 | B4: 1980-01-02 to 2025-07-18
A5: Market Yield on U.S. Treasury Securities at 30-Year Constant Maturity, Quoted on an Investment Basis
A6: Board of Governors of the Federal Reserve System (US) | E6: =MATCH(9.99999999999999E+307,'Yields (WP)'!$A:$A) -> 11890
A7: date | B7: value | E7: Note: there are no 30 yr yields from 2/18/2002 through 2/8/2006
A8: 1980-01-02 | B8: 10.23
A9: 1980-01-03 | B9: 10.31
A10: 1980-01-04 | B10: 10.34
A11: 1980-01-07 | B11: 10.35
A12: 1980-01-08 | B12: 10.28
A13: 1980-01-09 | B13: 10.29
A14: 1980-01-10 | B14: 10.26
A15: 1980-01-11 | B15: 10.38
A16: 1980-01-14 | B16: 10.4
A17: 1980-01-15 | B17: 10.4
A18: 1980-01-16 | B18: 10.41
A19: 1980-01-17 | B19: 10.47
A20: 1980-01-18 | B20: 10.61
A21: 1980-01-21 | B21: 10.77
A22: 1980-01-22 | B22: 10.69
A23: 1980-01-23 | B23: 10.68
A24: 1980-01-24 | B24: 10.87
A25: 1980-01-25 | B25: 11
A26: 1980-01-28 | B26: 11.03
A27: 1980-01-29 | B27: 11.12
A28: 1980-01-30 | B28: 11.11
A29: 1980-01-31 | B29: 11.09
A30: 1980-02-01 | B30: 11.23
A31: 1980-02-04 | B31: 11.32
A32: 1980-02-05 | B32: 11.64
A33: 1980-02-06 | B33: 11.78
A34: 1980-02-07 | B34: 11.7
A35: 1980-02-08 | B35: 11.72
A36: 1980-02-11 | B36: 11.94
A37: 1980-02-12 | B37: =NA() -> 
A38: 1980-02-13 | B38: 11.82
A39: 1980-02-14 | B39: 11.9
A40: 1980-02-15 | B40: 12.11
A41: 1980-02-18 | B41: =NA() -> 
A42: 1980-02-19 | B42: 12.61
A43: 1980-02-20 | B43: 12.56
A44: 1980-02-21 | B44: 12.77
A45: 1980-02-22 | B45: 12.59
A46: 1980-02-25 | B46: 12.69
A47: 1980-02-26 | B47: 12.85
A48: 1980-02-27 | B48: 12.76
A49: 1980-02-28 | B49: 12.29
A50: 1980-02-29 | B50: 12.25
A51: 1980-03-03 | B51: 12.32
A52: 1980-03-04 | B52: 12.35
A53: 1980-03-05 | B53: 12.4
A54: 1980-03-06 | B54: 12.64
A55: 1980-03-07 | B55: 12.5
A56: 1980-03-10 | B56: 12.25
A57: 1980-03-11 | B57: 12.12
A58: 1980-03-12 | B58: 12.39
A59: 1980-03-13 | B59: 12.19
A60: 1980-03-14 | B60: 12.21
A61: 1980-03-17 | B61: 12.2
A62: 1980-03-18 | B62: 12
A63: 1980-03-19 | B63: 11.97
A64: 1980-03-20 | B64: 12.22
A65: 1980-03-21 | B65: 12.28
A66: 1980-03-24 | B66: 12.69
A67: 1980-03-25 | B67: 12.67
A68: 1980-03-26 | B68: 12.56
A69: 1980-03-27 | B69: 12.5
A70: 1980-03-28 | B70: 12.35
A71: 1980-03-31 | B71: 12.31
A72: 1980-04-01 | B72: 12.35
A73: 1980-04-02 | B73: 12.28
A74: 1980-04-03 | B74: 12.27
A75: 1980-04-04 | B75: =NA() -> 
A76: 1980-04-07 | B76: 11.87
A77: 1980-04-08 | B77: 11.85
A78: 1980-04-09 | B78: 11.79
A79: 1980-04-10 | B79: 11.74
A80: 1980-04-11 | B80: 11.53
A81: 1980-04-14 | B81: 11.5
A82: 1980-04-15 | B82: 11.47
A83: 1980-04-16 | B83: 10.91
A84: 1980-04-17 | B84: 10.99
A85: 1980-04-18 | B85: 10.98
A86: 1980-04-21 | B86: 10.96
A87: 1980-04-22 | B87: 10.94
A88: 1980-04-23 | B88: 11.02
A89: 1980-04-24 | B89: 11.13
A90: 1980-04-25 | B90: 11.18
A91: 1980-04-28 | B91: 10.86
A92: 1980-04-29 | B92: 10.89
A93: 1980-04-30 | B93: 10.89
A94: 1980-05-01 | B94: 10.72
A95: 1980-05-02 | B95: 10.47
A96: 1980-05-05 | B96: 10.35
A97: 1980-05-06 | B97: 10.23
A98: 1980-05-07 | B98: 10.19
A99: 1980-05-08 | B99: 10.34
A100: 1980-05-09 | B100: 10.41
A101: 1980-05-12 | B101: 10.44
A102: 1980-05-13 | B102: 10.29
A103: 1980-05-14 | B103: 10.26
A104: 1980-05-15 | B104: 10.46
A105: 1980-05-16 | B105: 10.53
A106: 1980-05-19 | B106: 10.68
A107: 1980-05-20 | B107: 10.47
A108: 1980-05-21 | B108: 10.31
A109: 1980-05-22 | B109: 10.34
A110: 1980-05-23 | B110: 10.09
A111: 1980-05-26 | B111: =NA() -> 
A112: 1980-05-27 | B112: 10.1
A113: 1980-05-28 | B113: 10.22
A114: 1980-05-29 | B114: 10.32
A115: 1980-05-30 | B115: 10.37
A116: 1980-06-02 | B116: 10.45
A117: 1980-06-03 | B117: 10.29
A118: 1980-06-04 | B118: 10.18
A119: 1980-06-05 | B119: 10.08
A120: 1980-06-06 | B120: 9.87
A121: 1980-06-09 | B121: 9.75
A122: 1980-06-10 | B122: 9.88
A123: 1980-06-11 | B123: 9.79
A124: 1980-06-12 | B124: 9.6
A125: 1980-06-13 | B125: 9.49
A126: 1980-06-16 | B126: 9.49
A127: 1980-06-17 | B127: 9.52
A128: 1980-06-18 | B128: 9.6
A129: 1980-06-19 | B129: 9.57
A130: 1980-06-20 | B130: 9.5
A131: 1980-06-23 | B131: 9.66
A132: 1980-06-24 | B132: 9.7
A133: 1980-06-25 | B133: 9.79
A134: 1980-06-26 | B134: 9.91
A135: 1980-06-27 | B135: 9.97
A136: 1980-06-30 | B136: 9.99
A137: 1980-07-01 | B137: 10.12
A138: 1980-07-02 | B138: 10.12
A139: 1980-07-03 | B139: 10
A140: 1980-07-04 | B140: =NA() -> 
A141: 1980-07-07 | B141: 10.22
A142: 1980-07-08 | B142: 10.06
A143: 1980-07-09 | B143: 10.14
A144: 1980-07-10 | B144: 10.21
A145: 1980-07-11 | B145: 10.3
A146: 1980-07-14 | B146: 10.36
A147: 1980-07-15 | B147: 10.19
A148: 1980-07-16 | B148: 10.05
A149: 1980-07-17 | B149: 10.15
A150: 1980-07-18 | B150: 10.19
A151: 1980-07-21 | B151: 10.11
A152: 1980-07-22 | B152: 10.18
A153: 1980-07-23 | B153: 10.15
A154: 1980-07-24 | B154: 10.24
A155: 1980-07-25 | B155: 10.33
A156: 1980-07-28 | B156: 10.42
A157: 1980-07-29 | B157: 10.4
A158: 1980-07-30 | B158: 10.51
A159: 1980-07-31 | B159: 10.8
A160: 1980-08-01 | B160: 10.76
A161: 1980-08-04 | B161: 10.68
A162: 1980-08-05 | B162: 10.69
A163: 1980-08-06 | B163: 10.73
A164: 1980-08-07 | B164: 10.68
A165: 1980-08-08 | B165: 10.9
A166: 1980-08-11 | B166: 11.05
A167: 1980-08-12 | B167: 11.01
A168: 1980-08-13 | B168: 10.93
A169: 1980-08-14 | B169: 10.9
A170: 1980-08-15 | B170: 10.83
A171: 1980-08-18 | B171: 11.02
A172: 1980-08-19 | B172: 11.16
A173: 1980-08-20 | B173: 11.13
A174: 1980-08-21 | B174: 11.15
A175: 1980-08-22 | B175: 11.01
A176: 1980-08-25 | B176: 11.18
A177: 1980-08-26 | B177: 11.18
A178: 1980-08-27 | B178: 11.33
A179: 1980-08-28 | B179: 11.43
A180: 1980-08-29 | B180: 11.27
A181: 1980-09-01 | B181: =NA() -> 
A182: 1980-09-02 | B182: 11.08
A183: 1980-09-03 | B183: 10.94
A184: 1980-09-04 | B184: 11.02
A185: 1980-09-05 | B185: 11.06
A186: 1980-09-08 | B186: 11.15
A187: 1980-09-09 | B187: 11.05
A188: 1980-09-10 | B188: 11.02
A189: 1980-09-11 | B189: 11.15
A190: 1980-09-12 | B190: 11.18
A191: 1980-09-15 | B191: 11.38
A192: 1980-09-16 | B192: 11.33
A193: 1980-09-17 | B193: 11.41
A194: 1980-09-18 | B194: 11.35
A195: 1980-09-19 | B195: 11.25
A196: 1980-09-22 | B196: 11.6
A197: 1980-09-23 | B197: 11.53
A198: 1980-09-24 | B198: 11.53
A199: 1980-09-25 | B199: 11.66
A200: 1980-09-26 | B200: 11.81
... 11690 more rows

Sheet GR Period Monthly Yields (WP)
B1: =COLUMN()-1 -> 1 | C1: 2 | D1: 3 | E1: 4 | F1: 5 | G1: 6 | H1: 7 | I1: 8 | J1: 9 | K1: 10 | L1: 11 | M1: 12 | N1: 13 | O1: 14 | P1: 15 | Q1: 16 | R1: 17 | S1: 18 | T1: 19 | U1: 20 | V1: 21 | W1: 22 | X1: 23 | Y1: 24 | Z1: 25 | AA1: 26 | AB1: 27 | AC1: 28 | AD1: 29 | AE1: 30
B2: GS30 | E2: 30-Year Treasury Bond | H2: GS20 | P2: "A" Rated Utility Bond Yield | Q2: "Baa" Rated Utility Bond Yield
B3: lin | C3: Percent | H3: lin | I3: Percent | N3: MOODY'S PUBLIC UTILITY BOND YIELDS | V3: MOODY'S CORPORATE BOND YIELDS
B4: M | C4: Monthly | H4: M | I4: Monthly | M4: Source: | N4: 1980 - 2000, see Bond Yearly Averages | V4: 1980 - 2009,St. Louis Federal Reserve: Economic Research, http://research.stlouisfed.org.
B5: 1980-01-01 | C5: 1977-02-01 to 2024-01-01 | H5: 1980-01-01 | I5: 1953-04-01 to 2024-01-01 | N5: 2001 - 2009, Mergent Bond Record, February 2006 and September 2010 | V5: 2010 - forward, Moody's Analytics, Credit Trends, https://credittrends.moodys.com/
B6: Market Yield on U.S. Treasury Securities at 30-Year Constant Maturity, Quoted on an Investment Basis | H6: Market Yield on U.S. Treasury Securities at 20-Year Constant Maturity, Quoted on an Investment Basis | N6: 2010 - forward, Moody's Analytics, Credit Trends, https://credittrends.moodys.com/
B7: Board of Governors of the Federal Reserve System (US) | H7: Board of Governors of the Federal Reserve System (US) | AC7: Month | AD7: A Spread | AE7: Baa Spread
B8: date | C8: value | H8: date | I8: value | N8: Aaa | O8: Aa | P8: A | Q8: Baa | R8: Avg | V8: Aaa | W8: Aa | X8: A | Y8: Baa | Z8: Avg | AD8: "A" Utility - 30 yr T | AE8: "Baa" Utility - 30 yr T
A9: =YEAR(B9) -> 1980 | B9: 1980-01-01 | C9: 10.6 | D9: =IF(ISNUMBER(C9),C9/100,"") -> 0.106 | G9: =YEAR(H9) -> 1980 | H9: 1980-01-01 | I9: 10.65 | J9: =IF(ISNUMBER(I9),I9/100,"") -> 0.1065 | L9: =TRUNC(YEAR(M9)) -> 1980 | M9: 1980-01-01 | T9: =L9 -> 1980 | U9: =M9 -> 1980-01-01 | V9: 0.1109 | Y9: 0.1242
A10: 1980 | B10: 1980-02-01 | C10: 12.13 | D10: 0.1213 | G10: 1980 | H10: 1980-02-01 | I10: 12.21 | J10: 0.1221 | L10: 1980 | M10: 1980-02-01 | T10: 1980 | U10: 1980-02-01 | V10: 0.1238 | Y10: 0.1357
A11: 1980 | B11: 1980-03-01 | C11: 12.34 | D11: 0.1234 | G11: 1980 | H11: 1980-03-01 | I11: 12.49 | J11: 0.1249 | L11: 1980 | M11: 1980-03-01 | T11: 1980 | U11: 1980-03-01 | V11: 0.1296 | Y11: 0.1445
A12: 1980 | B12: 1980-04-01 | C12: 11.4 | D12: 0.114 | G12: 1980 | H12: 1980-04-01 | I12: 11.41 | J12: 0.1141 | L12: 1980 | M12: 1980-04-01 | T12: 1980 | U12: 1980-04-01 | V12: 0.1204 | Y12: 0.1419
A13: 1980 | B13: 1980-05-01 | C13: 10.36 | D13: 0.1036 | G13: 1980 | H13: 1980-05-01 | I13: 10.44 | J13: 0.1044 | L13: 1980 | M13: 1980-05-01 | T13: 1980 | U13: 1980-05-01 | V13: 0.1099 | Y13: 0.1317
A14: 1980 | B14: 1980-06-01 | C14: 9.81 | D14: 0.0981 | G14: 1980 | H14: 1980-06-01 | I14: 9.89 | J14: 0.0989 | L14: 1980 | M14: 1980-06-01 | T14: 1980 | U14: 1980-06-01 | V14: 0.1058 | Y14: 0.1271
A15: 1980 | B15: 1980-07-01 | C15: 10.24 | D15: 0.1024 | G15: 1980 | H15: 1980-07-01 | I15: 10.32 | J15: 0.1032 | L15: 1980 | M15: 1980-07-01 | T15: 1980 | U15: 1980-07-01 | V15: 0.1107 | Y15: 0.1265
A16: 1980 | B16: 1980-08-01 | C16: 11 | D16: 0.11 | G16: 1980 | H16: 1980-08-01 | I16: 11.07 | J16: 0.1107 | L16: 1980 | M16: 1980-08-01 | T16: 1980 | U16: 1980-08-01 | V16: 0.1164 | Y16: 0.1315
A17: 1980 | B17: 1980-09-01 | C17: 11.34 | D17: 0.1134 | G17: 1980 | H17: 1980-09-01 | I17: 11.47 | J17: 0.1147 | L17: 1980 | M17: 1980-09-01 | T17: 1980 | U17: 1980-09-01 | V17: 0.1202 | Y17: 0.137
A18: 1980 | B18: 1980-10-01 | C18: 11.59 | D18: 0.1159 | G18: 1980 | H18: 1980-10-01 | I18: 11.75 | J18: 0.1175 | L18: 1980 | M18: 1980-10-01 | T18: 1980 | U18: 1980-10-01 | V18: 0.1231 | Y18: 0.1423
A19: 1980 | B19: 1980-11-01 | C19: 12.37 | D19: 0.1237 | G19: 1980 | H19: 1980-11-01 | I19: 12.44 | J19: 0.1244 | L19: 1980 | M19: 1980-11-01 | T19: 1980 | U19: 1980-11-01 | V19: 0.1297 | Y19: 0.1464
A20: 1980 | B20: 1980-12-01 | C20: 12.4 | D20: 0.124 | G20: 1980 | H20: 1980-12-01 | I20: 12.49 | J20: 0.1249 | L20: 1980 | M20: 1980-12-01 | T20: 1980 | U20: 1980-12-01 | V20: 0.1321 | Y20: 0.1514
A21: 1981 | B21: 1981-01-01 | C21: 12.14 | D21: 0.1214 | G21: 1981 | H21: 1981-01-01 | I21: 12.29 | J21: 0.1229 | L21: 1981 | M21: 1981-01-01 | T21: 1981 | U21: 1981-01-01 | V21: 0.1281 | Y21: 0.1503
A22: 1981 | B22: 1981-02-01 | C22: 12.8 | D22: 0.128 | G22: 1981 | H22: 1981-02-01 | I22: 12.98 | J22: 0.1298 | L22: 1981 | M22: 1981-02-01 | T22: 1981 | U22: 1981-02-01 | V22: 0.1335 | Y22: 0.1537
A23: 1981 | B23: 1981-03-01 | C23: 12.69 | D23: 0.1269 | G23: 1981 | H23: 1981-03-01 | I23: 12.94 | J23: 0.1294 | L23: 1981 | M23: 1981-03-01 | T23: 1981 | U23: 1981-03-01 | V23: 0.1333 | Y23: 0.1534
A24: 1981 | B24: 1981-04-01 | C24: 13.2 | D24: 0.132 | G24: 1981 | H24: 1981-04-01 | I24: 13.46 | J24: 0.1346 | L24: 1981 | M24: 1981-04-01 | T24: 1981 | U24: 1981-04-01 | V24: 0.1388 | Y24: 0.1556
A25: 1981 | B25: 1981-05-01 | C25: 13.6 | D25: 0.136 | G25: 1981 | H25: 1981-05-01 | I25: 13.82 | J25: 0.1382 | L25: 1981 | M25: 1981-05-01 | T25: 1981 | U25: 1981-05-01 | V25: 0.1432 | Y25: 0.1595
A26: 1981 | B26: 1981-06-01 | C26: 12.96 | D26: 0.1296 | G26: 1981 | H26: 1981-06-01 | I26: 13.2 | J26: 0.132 | L26: 1981 | M26: 1981-06-01 | T26: 1981 | U26: 1981-06-01 | V26: 0.1375 | Y26: 0.158
A27: 1981 | B27: 1981-07-01 | C27: 13.59 | D27: 0.1359 | G27: 1981 | H27: 1981-07-01 | I27: 13.92 | J27: 0.1392 | L27: 1981 | M27: 1981-07-01 | T27: 1981 | U27: 1981-07-01 | V27: 0.1438 | Y27: 0.1617
A28: 1981 | B28: 1981-08-01 | C28: 14.17 | D28: 0.1417 | G28: 1981 | H28: 1981-08-01 | I28: 14.52 | J28: 0.1452 | L28: 1981 | M28: 1981-08-01 | T28: 1981 | U28: 1981-08-01 | V28: 0.1489 | Y28: 0.1634
A29: 1981 | B29: 1981-09-01 | C29: 14.67 | D29: 0.1467 | G29: 1981 | H29: 1981-09-01 | I29: 15.07 | J29: 0.1507 | L29: 1981 | M29: 1981-09-01 | T29: 1981 | U29: 1981-09-01 | V29: 0.1549 | Y29: 0.1692
A30: 1981 | B30: 1981-10-01 | C30: 14.68 | D30: 0.1468 | G30: 1981 | H30: 1981-10-01 | I30: 15.13 | J30: 0.1513 | L30: 1981 | M30: 1981-10-01 | T30: 1981 | U30: 1981-10-01 | V30: 0.154 | Y30: 0.1711
A31: 1981 | B31: 1981-11-01 | C31: 13.35 | D31: 0.1335 | G31: 1981 | H31: 1981-11-01 | I31: 13.56 | J31: 0.1356 | L31: 1981 | M31: 1981-11-01 | T31: 1981 | U31: 1981-11-01 | V31: 0.1422 | Y31: 0.1639
A32: 1981 | B32: 1981-12-01 | C32: 13.45 | D32: 0.1345 | G32: 1981 | H32: 1981-12-01 | I32: 13.73 | J32: 0.1373 | L32: 1981 | M32: 1981-12-01 | T32: 1981 | U32: 1981-12-01 | V32: 0.1423 | Y32: 0.1655
A33: 1982 | B33: 1982-01-01 | C33: 14.22 | D33: 0.1422 | G33: 1982 | H33: 1982-01-01 | I33: 14.57 | J33: 0.1457 | L33: 1982 | M33: 1982-01-01 | T33: 1982 | U33: 1982-01-01 | V33: 0.1518 | Y33: 0.171
A34: 1982 | B34: 1982-02-01 | C34: 14.22 | D34: 0.1422 | G34: 1982 | H34: 1982-02-01 | I34: 14.48 | J34: 0.1448 | L34: 1982 | M34: 1982-02-01 | T34: 1982 | U34: 1982-02-01 | V34: 0.1527 | Y34: 0.1718
A35: 1982 | B35: 1982-03-01 | C35: 13.53 | D35: 0.1353 | G35: 1982 | H35: 1982-03-01 | I35: 13.75 | J35: 0.1375 | L35: 1982 | M35: 1982-03-01 | T35: 1982 | U35: 1982-03-01 | V35: 0.1458 | Y35: 0.1682
A36: 1982 | B36: 1982-04-01 | C36: 13.37 | D36: 0.1337 | G36: 1982 | H36: 1982-04-01 | I36: 13.57 | J36: 0.1357 | L36: 1982 | M36: 1982-04-01 | T36: 1982 | U36: 1982-04-01 | V36: 0.1446 | Y36: 0.1678
A37: 1982 | B37: 1982-05-01 | C37: 13.24 | D37: 0.1324 | G37: 1982 | H37: 1982-05-01 | I37: 13.46 | J37: 0.1346 | L37: 1982 | M37: 1982-05-01 | T37: 1982 | U37: 1982-05-01 | V37: 0.1426 | Y37: 0.1664
A38: 1982 | B38: 1982-06-01 | C38: 13.92 | D38: 0.1392 | G38: 1982 | H38: 1982-06-01 | I38: 14.18 | J38: 0.1418 | L38: 1982 | M38: 1982-06-01 | T38: 1982 | U38: 1982-06-01 | V38: 0.1481 | Y38: 0.1692
A39: 1982 | B39: 1982-07-01 | C39: 13.55 | D39: 0.1355 | G39: 1982 | H39: 1982-07-01 | I39: 13.76 | J39: 0.1376 | L39: 1982 | M39: 1982-07-01 | T39: 1982 | U39: 1982-07-01 | V39: 0.1461 | Y39: 0.168
A40: 1982 | B40: 1982-08-01 | C40: 12.77 | D40: 0.1277 | G40: 1982 | H40: 1982-08-01 | I40: 12.91 | J40: 0.1291 | L40: 1982 | M40: 1982-08-01 | T40: 1982 | U40: 1982-08-01 | V40: 0.1371 | Y40: 0.1632
A41: 1982 | B41: 1982-09-01 | C41: 12.07 | D41: 0.1207 | G41: 1982 | H41: 1982-09-01 | I41: 12.16 | J41: 0.1216 | L41: 1982 | M41: 1982-09-01 | T41: 1982 | U41: 1982-09-01 | V41: 0.1294 | Y41: 0.1563
A42: 1982 | B42: 1982-10-01 | C42: 11.17 | D42: 0.1117 | G42: 1982 | H42: 1982-10-01 | I42: 10.97 | J42: 0.1097 | L42: 1982 | M42: 1982-10-01 | T42: 1982 | U42: 1982-10-01 | V42: 0.1212 | Y42: 0.1473
A43: 1982 | B43: 1982-11-01 | C43: 10.54 | D43: 0.1054 | G43: 1982 | H43: 1982-11-01 | I43: 10.57 | J43: 0.1057 | L43: 1982 | M43: 1982-11-01 | T43: 1982 | U43: 1982-11-01 | V43: 0.1168 | Y43: 0.143
A44: 1982 | B44: 1982-12-01 | C44: 10.54 | D44: 0.1054 | G44: 1982 | H44: 1982-12-01 | I44: 10.62 | J44: 0.1062 | L44: 1982 | M44: 1982-12-01 | T44: 1982 | U44: 1982-12-01 | V44: 0.1183 | Y44: 0.1414
A45: 1983 | B45: 1983-01-01 | C45: 10.63 | D45: 0.1063 | G45: 1983 | H45: 1983-01-01 | I45: 10.78 | J45: 0.1078 | L45: 1983 | M45: 1983-01-01 | T45: 1983 | U45: 1983-01-01 | V45: 0.1179 | Y45: 0.1394
A46: 1983 | B46: 1983-02-01 | C46: 10.88 | D46: 0.1088 | G46: 1983 | H46: 1983-02-01 | I46: 11.03 | J46: 0.1103 | L46: 1983 | M46: 1983-02-01 | T46: 1983 | U46: 1983-02-01 | V46: 0.1201 | Y46: 0.1395
A47: 1983 | B47: 1983-03-01 | C47: 10.63 | D47: 0.1063 | G47: 1983 | H47: 1983-03-01 | I47: 10.8 | J47: 0.108 | L47: 1983 | M47: 1983-03-01 | T47: 1983 | U47: 1983-03-01 | V47: 0.1173 | Y47: 0.1361
A48: 1983 | B48: 1983-04-01 | C48: 10.48 | D48: 0.1048 | G48: 1983 | H48: 1983-04-01 | I48: 10.63 | J48: 0.1063 | L48: 1983 | M48: 1983-04-01 | T48: 1983 | U48: 1983-04-01 | V48: 0.1151 | Y48: 0.1329
A49: 1983 | B49: 1983-05-01 | C49: 10.53 | D49: 0.1053 | G49: 1983 | H49: 1983-05-01 | I49: 10.67 | J49: 0.1067 | L49: 1983 | M49: 1983-05-01 | T49: 1983 | U49: 1983-05-01 | V49: 0.1146 | Y49: 0.1309
A50: 1983 | B50: 1983-06-01 | C50: 10.93 | D50: 0.1093 | G50: 1983 | H50: 1983-06-01 | I50: 11.12 | J50: 0.1112 | L50: 1983 | M50: 1983-06-01 | T50: 1983 | U50: 1983-06-01 | V50: 0.1174 | Y50: 0.1337
A51: 1983 | B51: 1983-07-01 | C51: 11.4 | D51: 0.114 | G51: 1983 | H51: 1983-07-01 | I51: 11.59 | J51: 0.1159 | L51: 1983 | M51: 1983-07-01 | T51: 1983 | U51: 1983-07-01 | V51: 0.1215 | Y51: 0.1339
A52: 1983 | B52: 1983-08-01 | C52: 11.82 | D52: 0.1182 | G52: 1983 | H52: 1983-08-01 | I52: 11.96 | J52: 0.1196 | L52: 1983 | M52: 1983-08-01 | T52: 1983 | U52: 1983-08-01 | V52: 0.1251 | Y52: 0.1364
A53: 1983 | B53: 1983-09-01 | C53: 11.63 | D53: 0.1163 | G53: 1983 | H53: 1983-09-01 | I53: 11.82 | J53: 0.1182 | L53: 1983 | M53: 1983-09-01 | T53: 1983 | U53: 1983-09-01 | V53: 0.1237 | Y53: 0.1355
A54: 1983 | B54: 1983-10-01 | C54: 11.58 | D54: 0.1158 | G54: 1983 | H54: 1983-10-01 | I54: 11.77 | J54: 0.1177 | L54: 1983 | M54: 1983-10-01 | T54: 1983 | U54: 1983-10-01 | V54: 0.1225 | Y54: 0.1346
A55: 1983 | B55: 1983-11-01 | C55: 11.75 | D55: 0.1175 | G55: 1983 | H55: 1983-11-01 | I55: 11.92 | J55: 0.1192 | L55: 1983 | M55: 1983-11-01 | T55: 1983 | U55: 1983-11-01 | V55: 0.1241 | Y55: 0.1361
A56: 1983 | B56: 1983-12-01 | C56: 11.88 | D56: 0.1188 | G56: 1983 | H56: 1983-12-01 | I56: 12.02 | J56: 0.1202 | L56: 1983 | M56: 1983-12-01 | T56: 1983 | U56: 1983-12-01 | V56: 0.1257 | Y56: 0.1375
A57: 1984 | B57: 1984-01-01 | C57: 11.75 | D57: 0.1175 | G57: 1984 | H57: 1984-01-01 | I57: 11.82 | J57: 0.1182 | L57: 1984 | M57: 1984-01-01 | T57: 1984 | U57: 1984-01-01 | V57: 0.122 | Y57: 0.1365
A58: 1984 | B58: 1984-02-01 | C58: 11.95 | D58: 0.1195 | G58: 1984 | H58: 1984-02-01 | I58: 12 | J58: 0.12 | L58: 1984 | M58: 1984-02-01 | T58: 1984 | U58: 1984-02-01 | V58: 0.1208 | Y58: 0.1359
A59: 1984 | B59: 1984-03-01 | C59: 12.38 | D59: 0.1238 | G59: 1984 | H59: 1984-03-01 | I59: 12.45 | J59: 0.1245 | L59: 1984 | M59: 1984-03-01 | T59: 1984 | U59: 1984-03-01 | V59: 0.1257 | Y59: 0.1399
A60: 1984 | B60: 1984-04-01 | C60: 12.65 | D60: 0.1265 | G60: 1984 | H60: 1984-04-01 | I60: 12.65 | J60: 0.1265 | L60: 1984 | M60: 1984-04-01 | T60: 1984 | U60: 1984-04-01 | V60: 0.1281 | Y60: 0.1431
A61: 1984 | B61: 1984-05-01 | C61: 13.43 | D61: 0.1343 | G61: 1984 | H61: 1984-05-01 | I61: 13.43 | J61: 0.1343 | L61: 1984 | M61: 1984-05-01 | T61: 1984 | U61: 1984-05-01 | V61: 0.1328 | Y61: 0.1474
A62: 1984 | B62: 1984-06-01 | C62: 13.44 | D62: 0.1344 | G62: 1984 | H62: 1984-06-01 | I62: 13.54 | J62: 0.1354 | L62: 1984 | M62: 1984-06-01 | T62: 1984 | U62: 1984-06-01 | V62: 0.1355 | Y62: 0.1505
A63: 1984 | B63: 1984-07-01 | C63: 13.21 | D63: 0.1321 | G63: 1984 | H63: 1984-07-01 | I63: 13.36 | J63: 0.1336 | L63: 1984 | M63: 1984-07-01 | T63: 1984 | U63: 1984-07-01 | V63: 0.1344 | Y63: 0.1515
A64: 1984 | B64: 1984-08-01 | C64: 12.54 | D64: 0.1254 | G64: 1984 | H64: 1984-08-01 | I64: 12.71 | J64: 0.1271 | L64: 1984 | M64: 1984-08-01 | T64: 1984 | U64: 1984-08-01 | V64: 0.1287 | Y64: 0.1463
A65: 1984 | B65: 1984-09-01 | C65: 12.29 | D65: 0.1229 | G65: 1984 | H65: 1984-09-01 | I65: 12.42 | J65: 0.1242 | L65: 1984 | M65: 1984-09-01 | T65: 1984 | U65: 1984-09-01 | V65: 0.1266 | Y65: 0.1435
A66: 1984 | B66: 1984-10-01 | C66: 11.98 | D66: 0.1198 | G66: 1984 | H66: 1984-10-01 | I66: 12.04 | J66: 0.1204 | L66: 1984 | M66: 1984-10-01 | T66: 1984 | U66: 1984-10-01 | V66: 0.1263 | Y66: 0.1394
A67: 1984 | B67: 1984-11-01 | C67: 11.56 | D67: 0.1156 | G67: 1984 | H67: 1984-11-01 | I67: 11.66 | J67: 0.1166 | L67: 1984 | M67: 1984-11-01 | T67: 1984 | U67: 1984-11-01 | V67: 0.1229 | Y67: 0.1348
A68: 1984 | B68: 1984-12-01 | C68: 11.52 | D68: 0.1152 | G68: 1984 | H68: 1984-12-01 | I68: 11.64 | J68: 0.1164 | L68: 1984 | M68: 1984-12-01 | T68: 1984 | U68: 1984-12-01 | V68: 0.1213 | Y68: 0.134
A69: 1985 | B69: 1985-01-01 | C69: 11.45 | D69: 0.1145 | G69: 1985 | H69: 1985-01-01 | I69: 11.58 | J69: 0.1158 | L69: 1985 | M69: 1985-01-01 | T69: 1985 | U69: 1985-01-01 | V69: 0.1208 | Y69: 0.1326
A70: 1985 | B70: 1985-02-01 | C70: 11.47 | D70: 0.1147 | G70: 1985 | H70: 1985-02-01 | I70: 11.7 | J70: 0.117 | L70: 1985 | M70: 1985-02-01 | T70: 1985 | U70: 1985-02-01 | V70: 0.1213 | Y70: 0.1323
A71: 1985 | B71: 1985-03-01 | C71: 11.81 | D71: 0.1181 | G71: 1985 | H71: 1985-03-01 | I71: 12.06 | J71: 0.1206 | L71: 1985 | M71: 1985-03-01 | T71: 1985 | U71: 1985-03-01 | V71: 0.1256 | Y71: 0.1369
A72: 1985 | B72: 1985-04-01 | C72: 11.47 | D72: 0.1147 | G72: 1985 | H72: 1985-04-01 | I72: 11.69 | J72: 0.1169 | L72: 1985 | M72: 1985-04-01 | T72: 1985 | U72: 1985-04-01 | V72: 0.1223 | Y72: 0.1351
A73: =YEAR(B73) -> 1985 | B73: 1985-05-01 | C73: 11.05 | D73: =IF(ISNUMBER(C73),C73/100,"") -> 0.1105 | G73: =YEAR(H73) -> 1985 | H73: 1985-05-01 | I73: 11.19 | J73: =IF(ISNUMBER(I73),I73/100,"") -> 0.1119 | L73: =TRUNC(YEAR(M73)) -> 1985 | M73: 1985-05-01 | T73: =L73 -> 1985 | U73: =M73 -> 1985-05-01 | V73: 0.1172 | Y73: 0.1315
A74: 1985 | B74: 1985-06-01 | C74: 10.45 | D74: 0.1045 | G74: 1985 | H74: 1985-06-01 | I74: 10.57 | J74: 0.1057 | L74: 1985 | M74: 1985-06-01 | T74: 1985 | U74: 1985-06-01 | V74: 0.1094 | Y74: 0.124
A75: 1985 | B75: 1985-07-01 | C75: 10.5 | D75: 0.105 | G75: 1985 | H75: 1985-07-01 | I75: 10.68 | J75: 0.1068 | L75: 1985 | M75: 1985-07-01 | T75: 1985 | U75: 1985-07-01 | V75: 0.1097 | Y75: 0.1243
A76: 1985 | B76: 1985-08-01 | C76: 10.56 | D76: 0.1056 | G76: 1985 | H76: 1985-08-01 | I76: 10.73 | J76: 0.1073 | L76: 1985 | M76: 1985-08-01 | T76: 1985 | U76: 1985-08-01 | V76: 0.1105 | Y76: 0.125
A77: 1985 | B77: 1985-09-01 | C77: 10.61 | D77: 0.1061 | G77: 1985 | H77: 1985-09-01 | I77: 10.8 | J77: 0.108 | L77: 1985 | M77: 1985-09-01 | T77: 1985 | U77: 1985-09-01 | V77: 0.1107 | Y77: 0.1248
A78: 1985 | B78: 1985-10-01 | C78: 10.5 | D78: 0.105 | G78: 1985 | H78: 1985-10-01 | I78: 10.67 | J78: 0.1067 | L78: 1985 | M78: 1985-10-01 | T78: 1985 | U78: 1985-10-01 | V78: 0.1102 | Y78: 0.1236
A79: 1985 | B79: 1985-11-01 | C79: 10.06 | D79: 0.1006 | G79: 1985 | H79: 1985-11-01 | I79: 10.24 | J79: 0.1024 | L79: 1985 | M79: 1985-11-01 | T79: 1985 | U79: 1985-11-01 | V79: 0.1055 | Y79: 0.1199
A80: 1985 | B80: 1985-12-01 | C80: 9.54 | D80: 0.0954 | G80: 1985 | H80: 1985-12-01 | I80: 9.75 | J80: 0.0975 | L80: 1985 | M80: 1985-12-01 | T80: 1985 | U80: 1985-12-01 | V80: 0.1016 | Y80: 0.1158
A81: 1986 | B81: 1986-01-01 | C81: 9.4 | D81: 0.094 | G81: 1986 | H81: 1986-01-01 | I81: 9.59 | J81: 0.0959 | L81: 1986 | M81: 1986-01-01 | T81: 1986 | U81: 1986-01-01 | V81: 0.1005 | Y81: 0.1144
A82: 1986 | B82: 1986-02-01 | C82: 8.93 | D82: 0.0893 | G82: 1986 | H82: 1986-02-01 | I82: 9.08 | J82: 0.0908 | L82: 1986 | M82: 1986-02-01 | T82: 1986 | U82: 1986-02-01 | V82: 0.0967 | Y82: 0.1111
A83: 1986 | B83: 1986-03-01 | C83: 7.96 | D83: 0.0796 | G83: 1986 | H83: 1986-03-01 | I83: 8.09 | J83: 0.0809 | L83: 1986 | M83: 1986-03-01 | T83: 1986 | U83: 1986-03-01 | V83: 0.09 | Y83: 0.105
A84: 1986 | B84: 1986-04-01 | C84: 7.39 | D84: 0.0739 | G84: 1986 | H84: 1986-04-01 | I84: 7.5 | J84: 0.075 | L84: 1986 | M84: 1986-04-01 | T84: 1986 | U84: 1986-04-01 | V84: 0.0879 | Y84: 0.1019
A85: 1986 | B85: 1986-05-01 | C85: 7.52 | D85: 0.0752 | G85: 1986 | H85: 1986-05-01 | I85: 7.81 | J85: 0.0781 | L85: 1986 | M85: 1986-05-01 | T85: 1986 | U85: 1986-05-01 | V85: 0.0909 | Y85: 0.1029
A86: 1986 | B86: 1986-06-01 | C86: 7.57 | D86: 0.0757 | G86: 1986 | H86: 1986-06-01 | I86: 7.69 | J86: 0.0769 | L86: 1986 | M86: 1986-06-01 | T86: 1986 | U86: 1986-06-01 | V86: 0.0913 | Y86: 0.1034
A87: 1986 | B87: 1986-07-01 | C87: 7.27 | D87: 0.0727 | G87: 1986 | H87: 1986-07-01 | I87: 7.29 | J87: 0.0729 | L87: 1986 | M87: 1986-07-01 | T87: 1986 | U87: 1986-07-01 | V87: 0.0888 | Y87: 0.1016
A88: 1986 | B88: 1986-08-01 | C88: 7.33 | D88: 0.0733 | G88: 1986 | H88: 1986-08-01 | I88: 7.28 | J88: 0.0728 | L88: 1986 | M88: 1986-08-01 | T88: 1986 | U88: 1986-08-01 | V88: 0.0872 | Y88: 0.1018
A89: 1986 | B89: 1986-09-01 | C89: 7.62 | D89: 0.0762 | G89: 1986 | H89: 1986-09-01 | I89: 7.56 | J89: 0.0756 | L89: 1986 | M89: 1986-09-01 | T89: 1986 | U89: 1986-09-01 | V89: 0.0889 | Y89: 0.102
A90: 1986 | B90: 1986-10-01 | C90: 7.7 | D90: 0.077 | G90: 1986 | H90: 1986-10-01 | I90: 7.61 | J90: 0.0761 | L90: 1986 | M90: 1986-10-01 | T90: 1986 | U90: 1986-10-01 | V90: 0.0886 | Y90: 0.1024
A91: 1986 | B91: 1986-11-01 | C91: 7.52 | D91: 0.0752 | G91: 1986 | H91: 1986-11-01 | I91: 7.42 | J91: 0.0742 | L91: 1986 | M91: 1986-11-01 | T91: 1986 | U91: 1986-11-01 | V91: 0.0868 | Y91: 0.1007
A92: 1986 | B92: 1986-12-01 | C92: 7.37 | D92: 0.0737 | G92: 1986 | H92: 1986-12-01 | I92: 7.28 | J92: 0.0728 | L92: 1986 | M92: 1986-12-01 | T92: 1986 | U92: 1986-12-01 | V92: 0.0849 | Y92: 0.0997
A93: 1987 | B93: 1987-01-01 | C93: 7.39 | D93: 0.0739 | G93: 1987 | H93: 1987-01-01 | I93: =NA() ->  | L93: 1987 | M93: 1987-01-01 | T93: 1987 | U93: 1987-01-01 | V93: 0.0836 | Y93: 0.0972
A94: 1987 | B94: 1987-02-01 | C94: 7.54 | D94: 0.0754 | G94: 1987 | H94: 1987-02-01 | I94: =NA() ->  | L94: 1987 | M94: 1987-02-01 | T94: 1987 | U94: 1987-02-01 | V94: 0.0838 | Y94: 0.0965
A95: 1987 | B95: 1987-03-01 | C95: 7.55 | D95: 0.0755 | G95: 1987 | H95: 1987-03-01 | I95: =NA() ->  | L95: 1987 | M95: 1987-03-01 | T95: 1987 | U95: 1987-03-01 | V95: 0.0836 | Y95: 0.0961
A96: 1987 | B96: 1987-04-01 | C96: 8.25 | D96: 0.0825 | G96: 1987 | H96: 1987-04-01 | I96: =NA() ->  | L96: 1987 | M96: 1987-04-01 | T96: 1987 | U96: 1987-04-01 | V96: 0.0885 | Y96: 0.1004
A97: 1987 | B97: 1987-05-01 | C97: 8.78 | D97: 0.0878 | G97: 1987 | H97: 1987-05-01 | I97: =NA() ->  | L97: 1987 | M97: 1987-05-01 | T97: 1987 | U97: 1987-05-01 | V97: 0.0933 | Y97: 0.1051
A98: 1987 | B98: 1987-06-01 | C98: 8.57 | D98: 0.0857 | G98: 1987 | H98: 1987-06-01 | I98: =NA() ->  | L98: 1987 | M98: 1987-06-01 | T98: 1987 | U98: 1987-06-01 | V98: 0.0932 | Y98: 0.1052
A99: 1987 | B99: 1987-07-01 | C99: 8.64 | D99: 0.0864 | G99: 1987 | H99: 1987-07-01 | I99: =NA() ->  | L99: 1987 | M99: 1987-07-01 | T99: 1987 | U99: 1987-07-01 | V99: 0.0942 | Y99: 0.1061
A100: 1987 | B100: 1987-08-01 | C100: 8.97 | D100: 0.0897 | G100: 1987 | H100: 1987-08-01 | I100: =NA() ->  | L100: 1987 | M100: 1987-08-01 | T100: 1987 | U100: 1987-08-01 | V100: 0.0967 | Y100: 0.108
A101: 1987 | B101: 1987-09-01 | C101: 9.59 | D101: 0.0959 | G101: 1987 | H101: 1987-09-01 | I101: =NA() ->  | L101: 1987 | M101: 1987-09-01 | T101: 1987 | U101: 1987-09-01 | V101: 0.1018 | Y101: 0.1131
A102: 1987 | B102: 1987-10-01 | C102: 9.61 | D102: 0.0961 | G102: 1987 | H102: 1987-10-01 | I102: =NA() ->  | L102: 1987 | M102: 1987-10-01 | T102: 1987 | U102: 1987-10-01 | V102: 0.1052 | Y102: 0.1162
A103: 1987 | B103: 1987-11-01 | C103: 8.95 | D103: 0.0895 | G103: 1987 | H103: 1987-11-01 | I103: =NA() ->  | L103: 1987 | M103: 1987-11-01 | T103: 1987 | U103: 1987-11-01 | V103: 0.1001 | Y103: 0.1123
A104: 1987 | B104: 1987-12-01 | C104: 9.12 | D104: 0.0912 | G104: 1987 | H104: 1987-12-01 | I104: =NA() ->  | L104: 1987 | M104: 1987-12-01 | T104: 1987 | U104: 1987-12-01 | V104: 0.1011 | Y104: 0.1129
A105: 1988 | B105: 1988-01-01 | C105: 8.83 | D105: 0.0883 | G105: 1988 | H105: 1988-01-01 | I105: =NA() ->  | L105: 1988 | M105: 1988-01-01 | T105: 1988 | U105: 1988-01-01 | V105: 0.0988 | Y105: 0.1107
A106: 1988 | B106: 1988-02-01 | C106: 8.43 | D106: 0.0843 | G106: 1988 | H106: 1988-02-01 | I106: =NA() ->  | L106: 1988 | M106: 1988-02-01 | T106: 1988 | U106: 1988-02-01 | V106: 0.094 | Y106: 0.1062
A107: 1988 | B107: 1988-03-01 | C107: 8.63 | D107: 0.0863 | G107: 1988 | H107: 1988-03-01 | I107: =NA() ->  | L107: 1988 | M107: 1988-03-01 | T107: 1988 | U107: 1988-03-01 | V107: 0.0939 | Y107: 0.1057
A108: 1988 | B108: 1988-04-01 | C108: 8.95 | D108: 0.0895 | G108: 1988 | H108: 1988-04-01 | I108: =NA() ->  | L108: 1988 | M108: 1988-04-01 | T108: 1988 | U108: 1988-04-01 | V108: 0.0967 | Y108: 0.109
A109: 1988 | B109: 1988-05-01 | C109: 9.23 | D109: 0.0923 | G109: 1988 | H109: 1988-05-01 | I109: =NA() ->  | L109: 1988 | M109: 1988-05-01 | T109: 1988 | U109: 1988-05-01 | V109: 0.099 | Y109: 0.1104
A110: 1988 | B110: 1988-06-01 | C110: 9 | D110: 0.09 | G110: 1988 | H110: 1988-06-01 | I110: =NA() ->  | L110: 1988 | M110: 1988-06-01 | T110: 1988 | U110: 1988-06-01 | V110: 0.0986 | Y110: 0.11
A111: 1988 | B111: 1988-07-01 | C111: 9.14 | D111: 0.0914 | G111: 1988 | H111: 1988-07-01 | I111: =NA() ->  | L111: 1988 | M111: 1988-07-01 | T111: 1988 | U111: 1988-07-01 | V111: 0.0996 | Y111: 0.1111
A112: 1988 | B112: 1988-08-01 | C112: 9.32 | D112: 0.0932 | G112: 1988 | H112: 1988-08-01 | I112: =NA() ->  | L112: 1988 | M112: 1988-08-01 | T112: 1988 | U112: 1988-08-01 | V112: 0.1011 | Y112: 0.1121
A113: 1988 | B113: 1988-09-01 | C113: 9.06 | D113: 0.0906 | G113: 1988 | H113: 1988-09-01 | I113: =NA() ->  | L113: 1988 | M113: 1988-09-01 | T113: 1988 | U113: 1988-09-01 | V113: 0.0982 | Y113: 0.109
A114: 1988 | B114: 1988-10-01 | C114: 8.89 | D114: 0.0889 | G114: 1988 | H114: 1988-10-01 | I114: =NA() ->  | L114: 1988 | M114: 1988-10-01 | T114: 1988 | U114: 1988-10-01 | V114: 0.0951 | Y114: 0.1041
A115: 1988 | B115: 1988-11-01 | C115: 9.02 | D115: 0.0902 | G115: 1988 | H115: 1988-11-01 | I115: =NA() ->  | L115: 1988 | M115: 1988-11-01 | T115: 1988 | U115: 1988-11-01 | V115: 0.0945 | Y115: 0.1048
A116: 1988 | B116: 1988-12-01 | C116: 9.01 | D116: 0.0901 | G116: 1988 | H116: 1988-12-01 | I116: =NA() ->  | L116: 1988 | M116: 1988-12-01 | T116: 1988 | U116: 1988-12-01 | V116: 0.0957 | Y116: 0.1065
A117: 1989 | B117: 1989-01-01 | C117: 8.93 | D117: 0.0893 | G117: 1989 | H117: 1989-01-01 | I117: =NA() ->  | L117: 1989 | M117: 1989-01-01 | T117: 1989 | U117: 1989-01-01 | V117: 0.0962 | Y117: 0.1065
A118: 1989 | B118: 1989-02-01 | C118: 9.01 | D118: 0.0901 | G118: 1989 | H118: 1989-02-01 | I118: =NA() ->  | L118: 1989 | M118: 1989-02-01 | T118: 1989 | U118: 1989-02-01 | V118: 0.0964 | Y118: 0.1061
A119: 1989 | B119: 1989-03-01 | C119: 9.17 | D119: 0.0917 | G119: 1989 | H119: 1989-03-01 | I119: =NA() ->  | L119: 1989 | M119: 1989-03-01 | T119: 1989 | U119: 1989-03-01 | V119: 0.098 | Y119: 0.1067
A120: 1989 | B120: 1989-04-01 | C120: 9.03 | D120: 0.0903 | G120: 1989 | H120: 1989-04-01 | I120: =NA() ->  | L120: 1989 | M120: 1989-04-01 | T120: 1989 | U120: 1989-04-01 | V120: 0.0979 | Y120: 0.1061
A121: 1989 | B121: 1989-05-01 | C121: 8.83 | D121: 0.0883 | G121: 1989 | H121: 1989-05-01 | I121: =NA() ->  | L121: 1989 | M121: 1989-05-01 | T121: 1989 | U121: 1989-05-01 | V121: 0.0957 | Y121: 0.1046
A122: 1989 | B122: 1989-06-01 | C122: 8.27 | D122: 0.0827 | G122: 1989 | H122: 1989-06-01 | I122: =NA() ->  | L122: 1989 | M122: 1989-06-01 | T122: 1989 | U122: 1989-06-01 | V122: 0.091 | Y122: 0.1003
A123: 1989 | B123: 1989-07-01 | C123: 8.08 | D123: 0.0808 | G123: 1989 | H123: 1989-07-01 | I123: =NA() ->  | L123: 1989 | M123: 1989-07-01 | T123: 1989 | U123: 1989-07-01 | V123: 0.0893 | Y123: 0.0987
A124: 1989 | B124: 1989-08-01 | C124: 8.12 | D124: 0.0812 | G124: 1989 | H124: 1989-08-01 | I124: =NA() ->  | L124: 1989 | M124: 1989-08-01 | T124: 1989 | U124: 1989-08-01 | V124: 0.0896 | Y124: 0.0988
A125: 1989 | B125: 1989-09-01 | C125: 8.15 | D125: 0.0815 | G125: 1989 | H125: 1989-09-01 | I125: =NA() ->  | L125: 1989 | M125: 1989-09-01 | T125: 1989 | U125: 1989-09-01 | V125: 0.0901 | Y125: 0.0991
A126: 1989 | B126: 1989-10-01 | C126: 8 | D126: 0.08 | G126: 1989 | H126: 1989-10-01 | I126: =NA() ->  | L126: 1989 | M126: 1989-10-01 | T126: 1989 | U126: 1989-10-01 | V126: 0.0892 | Y126: 0.0981
A127: 1989 | B127: 1989-11-01 | C127: 7.9 | D127: 0.079 | G127: 1989 | H127: 1989-11-01 | I127: =NA() ->  | L127: 1989 | M127: 1989-11-01 | T127: 1989 | U127: 1989-11-01 | V127: 0.0889 | Y127: 0.0981
A128: 1989 | B128: 1989-12-01 | C128: 7.9 | D128: 0.079 | G128: 1989 | H128: 1989-12-01 | I128: =NA() ->  | L128: 1989 | M128: 1989-12-01 | T128: 1989 | U128: 1989-12-01 | V128: 0.0886 | Y128: 0.0982
A129: 1990 | B129: 1990-01-01 | C129: 8.26 | D129: 0.0826 | G129: 1990 | H129: 1990-01-01 | I129: =NA() ->  | L129: 1990 | M129: 1990-01-01 | T129: 1990 | U129: 1990-01-01 | V129: 0.0899 | Y129: 0.0994
A130: 1990 | B130: 1990-02-01 | C130: 8.5 | D130: 0.085 | G130: 1990 | H130: 1990-02-01 | I130: =NA() ->  | L130: 1990 | M130: 1990-02-01 | T130: 1990 | U130: 1990-02-01 | V130: 0.0922 | Y130: 0.1014
A131: 1990 | B131: 1990-03-01 | C131: 8.56 | D131: 0.0856 | G131: 1990 | H131: 1990-03-01 | I131: =NA() ->  | L131: 1990 | M131: 1990-03-01 | T131: 1990 | U131: 1990-03-01 | V131: 0.0937 | Y131: 0.1021
A132: 1990 | B132: 1990-04-01 | C132: 8.76 | D132: 0.0876 | G132: 1990 | H132: 1990-04-01 | I132: =NA() ->  | L132: 1990 | M132: 1990-04-01 | T132: 1990 | U132: 1990-04-01 | V132: 0.0946 | Y132: 0.103
A133: 1990 | B133: 1990-05-01 | C133: 8.73 | D133: 0.0873 | G133: 1990 | H133: 1990-05-01 | I133: =NA() ->  | L133: 1990 | M133: 1990-05-01 | T133: 1990 | U133: 1990-05-01 | V133: 0.0947 | Y133: 0.1041
A134: 1990 | B134: 1990-06-01 | C134: 8.46 | D134: 0.0846 | G134: 1990 | H134: 1990-06-01 | I134: =NA() ->  | L134: 1990 | M134: 1990-06-01 | T134: 1990 | U134: 1990-06-01 | V134: 0.0926 | Y134: 0.1022
A135: 1990 | B135: 1990-07-01 | C135: 8.5 | D135: 0.085 | G135: 1990 | H135: 1990-07-01 | I135: =NA() ->  | L135: 1990 | M135: 1990-07-01 | T135: 1990 | U135: 1990-07-01 | V135: 0.0924 | Y135: 0.102
A136: 1990 | B136: 1990-08-01 | C136: 8.86 | D136: 0.0886 | G136: 1990 | H136: 1990-08-01 | I136: =NA() ->  | L136: 1990 | M136: 1990-08-01 | T136: 1990 | U136: 1990-08-01 | V136: 0.0941 | Y136: 0.1041
A137: =YEAR(B137) -> 1990 | B137: 1990-09-01 | C137: 9.03 | D137: =IF(ISNUMBER(C137),C137/100,"") -> 0.0903 | G137: =YEAR(H137) -> 1990 | H137: 1990-09-01 | I137: =NA() ->  | J137: =IF(ISNUMBER(I137),I137/100,"") ->  | L137: =TRUNC(YEAR(M137)) -> 1990 | M137: 1990-09-01 | T137: =L137 -> 1990 | U137: =M137 -> 1990-09-01 | V137: 0.0956 | Y137: 0.1064
A138: 1990 | B138: 1990-10-01 | C138: 8.86 | D138: 0.0886 | G138: 1990 | H138: 1990-10-01 | I138: =NA() ->  | L138: 1990 | M138: 1990-10-01 | T138: 1990 | U138: 1990-10-01 | V138: 0.0953 | Y138: 0.1074
A139: 1990 | B139: 1990-11-01 | C139: 8.54 | D139: 0.0854 | G139: 1990 | H139: 1990-11-01 | I139: =NA() ->  | L139: 1990 | M139: 1990-11-01 | T139: 1990 | U139: 1990-11-01 | V139: 0.093 | Y139: 0.1062
A140: 1990 | B140: 1990-12-01 | C140: 8.24 | D140: 0.0824 | G140: 1990 | H140: 1990-12-01 | I140: =NA() ->  | L140: 1990 | M140: 1990-12-01 | T140: 1990 | U140: 1990-12-01 | V140: 0.0905 | Y140: 0.1043
A141: 1991 | B141: 1991-01-01 | C141: 8.27 | D141: 0.0827 | G141: 1991 | H141: 1991-01-01 | I141: =NA() ->  | L141: 1991 | M141: 1991-01-01 | T141: 1991 | U141: 1991-01-01 | V141: 0.0904 | Y141: 0.1045
A142: 1991 | B142: 1991-02-01 | C142: 8.03 | D142: 0.0803 | G142: 1991 | H142: 1991-02-01 | I142: =NA() ->  | L142: 1991 | M142: 1991-02-01 | T142: 1991 | U142: 1991-02-01 | V142: 0.0883 | Y142: 0.1007
A143: 1991 | B143: 1991-03-01 | C143: 8.29 | D143: 0.0829 | G143: 1991 | H143: 1991-03-01 | I143: =NA() ->  | L143: 1991 | M143: 1991-03-01 | T143: 1991 | U143: 1991-03-01 | V143: 0.0893 | Y143: 0.1009
A144: 1991 | B144: 1991-04-01 | C144: 8.21 | D144: 0.0821 | G144: 1991 | H144: 1991-04-01 | I144: =NA() ->  | L144: 1991 | M144: 1991-04-01 | T144: 1991 | U144: 1991-04-01 | V144: 0.0886 | Y144: 0.0994
A145: 1991 | B145: 1991-05-01 | C145: 8.27 | D145: 0.0827 | G145: 1991 | H145: 1991-05-01 | I145: =NA() ->  | L145: 1991 | M145: 1991-05-01 | T145: 1991 | U145: 1991-05-01 | V145: 0.0886 | Y145: 0.0986
A146: 1991 | B146: 1991-06-01 | C146: 8.47 | D146: 0.0847 | G146: 1991 | H146: 1991-06-01 | I146: =NA() ->  | L146: 1991 | M146: 1991-06-01 | T146: 1991 | U146: 1991-06-01 | V146: 0.0901 | Y146: 0.0996
A147: 1991 | B147: 1991-07-01 | C147: 8.45 | D147: 0.0845 | G147: 1991 | H147: 1991-07-01 | I147: =NA() ->  | L147: 1991 | M147: 1991-07-01 | T147: 1991 | U147: 1991-07-01 | V147: 0.09 | Y147: 0.0989
A148: 1991 | B148: 1991-08-01 | C148: 8.14 | D148: 0.0814 | G148: 1991 | H148: 1991-08-01 | I148: =NA() ->  | L148: 1991 | M148: 1991-08-01 | T148: 1991 | U148: 1991-08-01 | V148: 0.0875 | Y148: 0.0965
A149: 1991 | B149: 1991-09-01 | C149: 7.95 | D149: 0.0795 | G149: 1991 | H149: 1991-09-01 | I149: =NA() ->  | L149: 1991 | M149: 1991-09-01 | T149: 1991 | U149: 1991-09-01 | V149: 0.0861 | Y149: 0.0951
A150: 1991 | B150: 1991-10-01 | C150: 7.93 | D150: 0.0793 | G150: 1991 | H150: 1991-10-01 | I150: =NA() ->  | L150: 1991 | M150: 1991-10-01 | T150: 1991 | U150: 1991-10-01 | V150: 0.0855 | Y150: 0.0949
A151: 1991 | B151: 1991-11-01 | C151: 7.92 | D151: 0.0792 | G151: 1991 | H151: 1991-11-01 | I151: =NA() ->  | L151: 1991 | M151: 1991-11-01 | T151: 1991 | U151: 1991-11-01 | V151: 0.0848 | Y151: 0.0945
A152: 1991 | B152: 1991-12-01 | C152: 7.7 | D152: 0.077 | G152: 1991 | H152: 1991-12-01 | I152: =NA() ->  | L152: 1991 | M152: 1991-12-01 | T152: 1991 | U152: 1991-12-01 | V152: 0.0831 | Y152: 0.0926
A153: 1992 | B153: 1992-01-01 | C153: 7.58 | D153: 0.0758 | G153: 1992 | H153: 1992-01-01 | I153: =NA() ->  | L153: 1992 | M153: 1992-01-01 | T153: 1992 | U153: 1992-01-01 | V153: 0.082 | Y153: 0.0913
A154: 1992 | B154: 1992-02-01 | C154: 7.85 | D154: 0.0785 | G154: 1992 | H154: 1992-02-01 | I154: =NA() ->  | L154: 1992 | M154: 1992-02-01 | T154: 1992 | U154: 1992-02-01 | V154: 0.0829 | Y154: 0.0923
A155: 1992 | B155: 1992-03-01 | C155: 7.97 | D155: 0.0797 | G155: 1992 | H155: 1992-03-01 | I155: =NA() ->  | L155: 1992 | M155: 1992-03-01 | T155: 1992 | U155: 1992-03-01 | V155: 0.0835 | Y155: 0.0925
A156: 1992 | B156: 1992-04-01 | C156: 7.96 | D156: 0.0796 | G156: 1992 | H156: 1992-04-01 | I156: =NA() ->  | L156: 1992 | M156: 1992-04-01 | T156: 1992 | U156: 1992-04-01 | V156: 0.0833 | Y156: 0.0921
A157: 1992 | B157: 1992-05-01 | C157: 7.89 | D157: 0.0789 | G157: 1992 | H157: 1992-05-01 | I157: =NA() ->  | L157: 1992 | M157: 1992-05-01 | T157: 1992 | U157: 1992-05-01 | V157: 0.0828 | Y157: 0.0913
A158: 1992 | B158: 1992-06-01 | C158: 7.84 | D158: 0.0784 | G158: 1992 | H158: 1992-06-01 | I158: =NA() ->  | L158: 1992 | M158: 1992-06-01 | T158: 1992 | U158: 1992-06-01 | V158: 0.0822 | Y158: 0.0905
A159: 1992 | B159: 1992-07-01 | C159: 7.6 | D159: 0.076 | G159: 1992 | H159: 1992-07-01 | I159: =NA() ->  | L159: 1992 | M159: 1992-07-01 | T159: 1992 | U159: 1992-07-01 | V159: 0.0807 | Y159: 0.0884
A160: 1992 | B160: 1992-08-01 | C160: 7.39 | D160: 0.0739 | G160: 1992 | H160: 1992-08-01 | I160: =NA() ->  | L160: 1992 | M160: 1992-08-01 | T160: 1992 | U160: 1992-08-01 | V160: 0.0795 | Y160: 0.0865
A161: 1992 | B161: 1992-09-01 | C161: 7.34 | D161: 0.0734 | G161: 1992 | H161: 1992-09-01 | I161: =NA() ->  | L161: 1992 | M161: 1992-09-01 | T161: 1992 | U161: 1992-09-01 | V161: 0.0792 | Y161: 0.0862
A162: 1992 | B162: 1992-10-01 | C162: 7.53 | D162: 0.0753 | G162: 1992 | H162: 1992-10-01 | I162: =NA() ->  | L162: 1992 | M162: 1992-10-01 | T162: 1992 | U162: 1992-10-01 | V162: 0.0799 | Y162: 0.0884
A163: 1992 | B163: 1992-11-01 | C163: 7.61 | D163: 0.0761 | G163: 1992 | H163: 1992-11-01 | I163: =NA() ->  | L163: 1992 | M163: 1992-11-01 | T163: 1992 | U163: 1992-11-01 | V163: 0.081 | Y163: 0.0896
A164: 1992 | B164: 1992-12-01 | C164: 7.44 | D164: 0.0744 | G164: 1992 | H164: 1992-12-01 | I164: =NA() ->  | L164: 1992 | M164: 1992-12-01 | T164: 1992 | U164: 1992-12-01 | V164: 0.0798 | Y164: 0.0881
A165: 1993 | B165: 1993-01-01 | C165: 7.34 | D165: 0.0734 | G165: 1993 | H165: 1993-01-01 | I165: =NA() ->  | L165: 1993 | M165: 1993-01-01 | T165: 1993 | U165: 1993-01-01 | V165: 0.0791 | Y165: 0.0867
A166: 1993 | B166: 1993-02-01 | C166: 7.09 | D166: 0.0709 | G166: 1993 | H166: 1993-02-01 | I166: =NA() ->  | L166: 1993 | M166: 1993-02-01 | T166: 1993 | U166: 1993-02-01 | V166: 0.0771 | Y166: 0.0839
A167: 1993 | B167: 1993-03-01 | C167: 6.82 | D167: 0.0682 | G167: 1993 | H167: 1993-03-01 | I167: =NA() ->  | L167: 1993 | M167: 1993-03-01 | T167: 1993 | U167: 1993-03-01 | V167: 0.0758 | Y167: 0.0815
A168: 1993 | B168: 1993-04-01 | C168: 6.85 | D168: 0.0685 | G168: 1993 | H168: 1993-04-01 | I168: =NA() ->  | L168: 1993 | M168: 1993-04-01 | T168: 1993 | U168: 1993-04-01 | V168: 0.0746 | Y168: 0.0814
A169: 1993 | B169: 1993-05-01 | C169: 6.92 | D169: 0.0692 | G169: 1993 | H169: 1993-05-01 | I169: =NA() ->  | L169: 1993 | M169: 1993-05-01 | T169: 1993 | U169: 1993-05-01 | V169: 0.0743 | Y169: 0.0821
A170: 1993 | B170: 1993-06-01 | C170: 6.81 | D170: 0.0681 | G170: 1993 | H170: 1993-06-01 | I170: =NA() ->  | L170: 1993 | M170: 1993-06-01 | T170: 1993 | U170: 1993-06-01 | V170: 0.0733 | Y170: 0.0807
A171: 1993 | B171: 1993-07-01 | C171: 6.63 | D171: 0.0663 | G171: 1993 | H171: 1993-07-01 | I171: =NA() ->  | L171: 1993 | M171: 1993-07-01 | T171: 1993 | U171: 1993-07-01 | V171: 0.0717 | Y171: 0.0793
A172: 1993 | B172: 1993-08-01 | C172: 6.32 | D172: 0.0632 | G172: 1993 | H172: 1993-08-01 | I172: =NA() ->  | L172: 1993 | M172: 1993-08-01 | T172: 1993 | U172: 1993-08-01 | V172: 0.0685 | Y172: 0.076
A173: 1993 | B173: 1993-09-01 | C173: 6 | D173: 0.06 | G173: 1993 | H173: 1993-09-01 | I173: =NA() ->  | L173: 1993 | M173: 1993-09-01 | T173: 1993 | U173: 1993-09-01 | V173: 0.0666 | Y173: 0.0734
A174: 1993 | B174: 1993-10-01 | C174: 5.94 | D174: 0.0594 | G174: 1993 | H174: 1993-10-01 | I174: 6.07 | J174: 0.0607 | L174: 1993 | M174: 1993-10-01 | T174: 1993 | U174: 1993-10-01 | V174: 0.0667 | Y174: 0.0731
A175: 1993 | B175: 1993-11-01 | C175: 6.21 | D175: 0.0621 | G175: 1993 | H175: 1993-11-01 | I175: 6.38 | J175: 0.0638 | L175: 1993 | M175: 1993-11-01 | T175: 1993 | U175: 1993-11-01 | V175: 0.0693 | Y175: 0.0766
A176: 1993 | B176: 1993-12-01 | C176: 6.25 | D176: 0.0625 | G176: 1993 | H176: 1993-12-01 | I176: 6.4 | J176: 0.064 | L176: 1993 | M176: 1993-12-01 | T176: 1993 | U176: 1993-12-01 | V176: 0.0693 | Y176: 0.0769
A177: 1994 | B177: 1994-01-01 | C177: 6.29 | D177: 0.0629 | G177: 1994 | H177: 1994-01-01 | I177: 6.39 | J177: 0.0639 | L177: 1994 | M177: 1994-01-01 | T177: 1994 | U177: 1994-01-01 | V177: 0.0692 | Y177: 0.0765
A178: 1994 | B178: 1994-02-01 | C178: 6.49 | D178: 0.0649 | G178: 1994 | H178: 1994-02-01 | I178: 6.57 | J178: 0.0657 | L178: 1994 | M178: 1994-02-01 | T178: 1994 | U178: 1994-02-01 | V178: 0.0708 | Y178: 0.0776
A179: 1994 | B179: 1994-03-01 | C179: 6.91 | D179: 0.0691 | G179: 1994 | H179: 1994-03-01 | I179: 7 | J179: 0.07 | L179: 1994 | M179: 1994-03-01 | T179: 1994 | U179: 1994-03-01 | V179: 0.0748 | Y179: 0.0813
A180: 1994 | B180: 1994-04-01 | C180: 7.27 | D180: 0.0727 | G180: 1994 | H180: 1994-04-01 | I180: 7.4 | J180: 0.074 | L180: 1994 | M180: 1994-04-01 | T180: 1994 | U180: 1994-04-01 | V180: 0.0788 | Y180: 0.0852
A181: 1994 | B181: 1994-05-01 | C181: 7.41 | D181: 0.0741 | G181: 1994 | H181: 1994-05-01 | I181: 7.54 | J181: 0.0754 | L181: 1994 | M181: 1994-05-01 | T181: 1994 | U181: 1994-05-01 | V181: 0.0799 | Y181: 0.0862
A182: 1994 | B182: 1994-06-01 | C182: 7.4 | D182: 0.074 | G182: 1994 | H182: 1994-06-01 | I182: 7.51 | J182: 0.0751 | L182: 1994 | M182: 1994-06-01 | T182: 1994 | U182: 1994-06-01 | V182: 0.0797 | Y182: 0.0865
A183: 1994 | B183: 1994-07-01 | C183: 7.58 | D183: 0.0758 | G183: 1994 | H183: 1994-07-01 | I183: 7.67 | J183: 0.0767 | L183: 1994 | M183: 1994-07-01 | T183: 1994 | U183: 1994-07-01 | V183: 0.0811 | Y183: 0.088
A184: 1994 | B184: 1994-08-01 | C184: 7.49 | D184: 0.0749 | G184: 1994 | H184: 1994-08-01 | I184: 7.62 | J184: 0.0762 | L184: 1994 | M184: 1994-08-01 | T184: 1994 | U184: 1994-08-01 | V184: 0.0807 | Y184: 0.0874
A185: 1994 | B185: 1994-09-01 | C185: 7.71 | D185: 0.0771 | G185: 1994 | H185: 1994-09-01 | I185: 7.87 | J185: 0.0787 | L185: 1994 | M185: 1994-09-01 | T185: 1994 | U185: 1994-09-01 | V185: 0.0834 | Y185: 0.0898
A186: 1994 | B186: 1994-10-01 | C186: 7.94 | D186: 0.0794 | G186: 1994 | H186: 1994-10-01 | I186: 8.08 | J186: 0.0808 | L186: 1994 | M186: 1994-10-01 | T186: 1994 | U186: 1994-10-01 | V186: 0.0857 | Y186: 0.092
A187: 1994 | B187: 1994-11-01 | C187: 8.08 | D187: 0.0808 | G187: 1994 | H187: 1994-11-01 | I187: 8.2 | J187: 0.082 | L187: 1994 | M187: 1994-11-01 | T187: 1994 | U187: 1994-11-01 | V187: 0.0868 | Y187: 0.0932
A188: 1994 | B188: 1994-12-01 | C188: 7.87 | D188: 0.0787 | G188: 1994 | H188: 1994-12-01 | I188: 7.99 | J188: 0.0799 | L188: 1994 | M188: 1994-12-01 | T188: 1994 | U188: 1994-12-01 | V188: 0.0846 | Y188: 0.091
A189: 1995 | B189: 1995-01-01 | C189: 7.85 | D189: 0.0785 | G189: 1995 | H189: 1995-01-01 | I189: 7.97 | J189: 0.0797 | L189: 1995 | M189: 1995-01-01 | T189: 1995 | U189: 1995-01-01 | V189: 0.0846 | Y189: 0.0908
A190: 1995 | B190: 1995-02-01 | C190: 7.61 | D190: 0.0761 | G190: 1995 | H190: 1995-02-01 | I190: 7.73 | J190: 0.0773 | L190: 1995 | M190: 1995-02-01 | T190: 1995 | U190: 1995-02-01 | V190: 0.0826 | Y190: 0.0885
A191: 1995 | B191: 1995-03-01 | C191: 7.45 | D191: 0.0745 | G191: 1995 | H191: 1995-03-01 | I191: 7.57 | J191: 0.0757 | L191: 1995 | M191: 1995-03-01 | T191: 1995 | U191: 1995-03-01 | V191: 0.0812 | Y191: 0.087
A192: 1995 | B192: 1995-04-01 | C192: 7.36 | D192: 0.0736 | G192: 1995 | H192: 1995-04-01 | I192: 7.45 | J192: 0.0745 | L192: 1995 | M192: 1995-04-01 | T192: 1995 | U192: 1995-04-01 | V192: 0.0803 | Y192: 0.086
A193: 1995 | B193: 1995-05-01 | C193: 6.95 | D193: 0.0695 | G193: 1995 | H193: 1995-05-01 | I193: 7.01 | J193: 0.0701 | L193: 1995 | M193: 1995-05-01 | T193: 1995 | U193: 1995-05-01 | V193: 0.0765 | Y193: 0.082
A194: 1995 | B194: 1995-06-01 | C194: 6.57 | D194: 0.0657 | G194: 1995 | H194: 1995-06-01 | I194: 6.59 | J194: 0.0659 | L194: 1995 | M194: 1995-06-01 | T194: 1995 | U194: 1995-06-01 | V194: 0.073 | Y194: 0.079
A195: 1995 | B195: 1995-07-01 | C195: 6.72 | D195: 0.0672 | G195: 1995 | H195: 1995-07-01 | I195: 6.74 | J195: 0.0674 | L195: 1995 | M195: 1995-07-01 | T195: 1995 | U195: 1995-07-01 | V195: 0.0741 | Y195: 0.0804
A196: 1995 | B196: 1995-08-01 | C196: 6.86 | D196: 0.0686 | G196: 1995 | H196: 1995-08-01 | I196: 6.92 | J196: 0.0692 | L196: 1995 | M196: 1995-08-01 | T196: 1995 | U196: 1995-08-01 | V196: 0.0757 | Y196: 0.0819
A197: 1995 | B197: 1995-09-01 | C197: 6.55 | D197: 0.0655 | G197: 1995 | H197: 1995-09-01 | I197: 6.65 | J197: 0.0665 | L197: 1995 | M197: 1995-09-01 | T197: 1995 | U197: 1995-09-01 | V197: 0.0732 | Y197: 0.0793
A198: 1995 | B198: 1995-10-01 | C198: 6.37 | D198: 0.0637 | G198: 1995 | H198: 1995-10-01 | I198: 6.45 | J198: 0.0645 | L198: 1995 | M198: 1995-10-01 | T198: 1995 | U198: 1995-10-01 | V198: 0.0712 | Y198: 0.0775
A199: 1995 | B199: 1995-11-01 | C199: 6.26 | D199: 0.0626 | G199: 1995 | H199: 1995-11-01 | I199: 6.33 | J199: 0.0633 | L199: 1995 | M199: 1995-11-01 | T199: 1995 | U199: 1995-11-01 | V199: 0.0702 | Y199: 0.0768
A200: 1995 | B200: 1995-12-01 | C200: 6.06 | D200: 0.0606 | G200: 1995 | H200: 1995-12-01 | I200: 6.12 | J200: 0.0612 | L200: 1995 | M200: 1995-12-01 | T200: 1995 | U200: 1995-12-01 | V200: 0.0682 | Y200: 0.0749
... 354 more rows

Sheet GR Period Annual Yields (WP)
A1: Note: 2002 - 2005=20-Yr T-Bill avg
A2: 30-Year T-Bills | D2: Aaa Corporate Bonds | G2: Baa Corporate Bonds | J2: A Utility Bonds | M2: Baa Utility Bonds
A3: Year | B3: Annual Yield | D3: Year | E3: Annual Yield | G3: Year | H3: Annual Yield | J3: Year | K3: Annual Yield | M3: Year | N3: Annual Yield
A6: 1980 | B6: =IF(OR(A6<2002,A6>2005),AVERAGEIF('GR Period Monthly Yields (WP)'!$A$9:$A$716,'GR Period Annual Yields (WP)'!A6,'GR Period Monthly Yields (WP)'!$D$9:$D$716),AVERAGEIF('GR Period Monthly Yields (WP)'!$G$9:$G$901,'GR Period Annual Yields (WP)'!A6,'GR Period Monthly Yields (WP)'!$J$9:$J$901)) -> 0.1129833333 | D6: 1980 | E6: =AVERAGEIF('GR Period Monthly Yields (WP)'!$T$9:$T$716,'GR Period Annual Yields (WP)'!D6,'GR Period Monthly Yields (WP)'!$V$9:$V$716) -> 0.1193833333 | G6: 1980 | H6: =AVERAGEIF('GR Period Monthly Yields (WP)'!$T$9:$T$716,'GR Period Annual Yields (WP)'!D6,'GR Period Monthly Yields (WP)'!$Y$9:$Y$716) -> 0.1366833333 | J6: 1980 | K6: 0.1334 | M6: 1980 | N6: 0.1395
A7: 1981 | B7: =IF(OR(A7<2002,A7>2005),AVERAGEIF('GR Period Monthly Yields (WP)'!$A$9:$A$716,'GR Period Annual Yields (WP)'!A7,'GR Period Monthly Yields (WP)'!$D$9:$D$716),AVERAGEIF('GR Period Monthly Yields (WP)'!$G$9:$G$901,'GR Period Annual Yields (WP)'!A7,'GR Period Monthly Yields (WP)'!$J$9:$J$901)) -> 0.1344166667 | D7: 1981 | E7: =AVERAGEIF('GR Period Monthly Yields (WP)'!$T$9:$T$716,'GR Period Annual Yields (WP)'!D7,'GR Period Monthly Yields (WP)'!$V$9:$V$716) -> 0.1417083333 | G7: 1981 | H7: =AVERAGEIF('GR Period Monthly Yields (WP)'!$T$9:$T$716,'GR Period Annual Yields (WP)'!D7,'GR Period Monthly Yields (WP)'!$Y$9:$Y$716) -> 0.1604416667 | J7: 1981 | K7: 0.1595 | M7: 1981 | N7: 0.166
A8: 1982 | B8: =IF(OR(A8<2002,A8>2005),AVERAGEIF('GR Period Monthly Yields (WP)'!$A$9:$A$716,'GR Period Annual Yields (WP)'!A8,'GR Period Monthly Yields (WP)'!$D$9:$D$716),AVERAGEIF('GR Period Monthly Yields (WP)'!$G$9:$G$901,'GR Period Annual Yields (WP)'!A8,'GR Period Monthly Yields (WP)'!$J$9:$J$901)) -> 0.1276166667 | D8: 1982 | E8: =AVERAGEIF('GR Period Monthly Yields (WP)'!$T$9:$T$716,'GR Period Annual Yields (WP)'!D8,'GR Period Monthly Yields (WP)'!$V$9:$V$716) -> 0.137875 | G8: 1982 | H8: =AVERAGEIF('GR Period Monthly Yields (WP)'!$T$9:$T$716,'GR Period Annual Yields (WP)'!D8,'GR Period Monthly Yields (WP)'!$Y$9:$Y$716) -> 0.1611333333 | J8: 1982 | K8: 0.1586 | M8: 1982 | N8: 0.1645
A9: 1983 | B9: =IF(OR(A9<2002,A9>2005),AVERAGEIF('GR Period Monthly Yields (WP)'!$A$9:$A$716,'GR Period Annual Yields (WP)'!A9,'GR Period Monthly Yields (WP)'!$D$9:$D$716),AVERAGEIF('GR Period Monthly Yields (WP)'!$G$9:$G$901,'GR Period Annual Yields (WP)'!A9,'GR Period Monthly Yields (WP)'!$J$9:$J$901)) -> 0.1117833333 | D9: 1983 | E9: =AVERAGEIF('GR Period Monthly Yields (WP)'!$T$9:$T$716,'GR Period Annual Yields (WP)'!D9,'GR Period Monthly Yields (WP)'!$V$9:$V$716) -> 0.1204166667 | G9: 1983 | H9: =AVERAGEIF('GR Period Monthly Yields (WP)'!$T$9:$T$716,'GR Period Annual Yields (WP)'!D9,'GR Period Monthly Yields (WP)'!$Y$9:$Y$716) -> 0.1355416667 | J9: 1983 | K9: 0.1366 | M9: 1983 | N9: 0.142
A10: 1984 | B10: =IF(OR(A10<2002,A10>2005),AVERAGEIF('GR Period Monthly Yields (WP)'!$A$9:$A$716,'GR Period Annual Yields (WP)'!A10,'GR Period Monthly Yields (WP)'!$D$9:$D$716),AVERAGEIF('GR Period Monthly Yields (WP)'!$G$9:$G$901,'GR Period Annual Yields (WP)'!A10,'GR Period Monthly Yields (WP)'!$J$9:$J$901)) -> 0.1239166667 | D10: 1984 | E10: =AVERAGEIF('GR Period Monthly Yields (WP)'!$T$9:$T$716,'GR Period Annual Yields (WP)'!D10,'GR Period Monthly Yields (WP)'!$V$9:$V$716) -> 0.1270916667 | G10: 1984 | H10: =AVERAGEIF('GR Period Monthly Yields (WP)'!$T$9:$T$716,'GR Period Annual Yields (WP)'!D10,'GR Period Monthly Yields (WP)'!$Y$9:$Y$716) -> 0.1419 | J10: 1984 | K10: 0.1403 | M10: 1984 | N10: 0.1453
A11: 1985 | B11: =IF(OR(A11<2002,A11>2005),AVERAGEIF('GR Period Monthly Yields (WP)'!$A$9:$A$716,'GR Period Annual Yields (WP)'!A11,'GR Period Monthly Yields (WP)'!$D$9:$D$716),AVERAGEIF('GR Period Monthly Yields (WP)'!$G$9:$G$901,'GR Period Annual Yields (WP)'!A11,'GR Period Monthly Yields (WP)'!$J$9:$J$901)) -> 0.1078916667 | D11: 1985 | E11: =AVERAGEIF('GR Period Monthly Yields (WP)'!$T$9:$T$716,'GR Period Annual Yields (WP)'!D11,'GR Period Monthly Yields (WP)'!$V$9:$V$716) -> 0.1137333333 | G11: 1985 | H11: =AVERAGEIF('GR Period Monthly Yields (WP)'!$T$9:$T$716,'GR Period Annual Yields (WP)'!D11,'GR Period Monthly Yields (WP)'!$Y$9:$Y$716) -> 0.12715 | J11: 1985 | K11: 0.1247 | M11: 1985 | N11: 0.1296
A12: 1986 | B12: =IF(OR(A12<2002,A12>2005),AVERAGEIF('GR Period Monthly Yields (WP)'!$A$9:$A$716,'GR Period Annual Yields (WP)'!A12,'GR Period Monthly Yields (WP)'!$D$9:$D$716),AVERAGEIF('GR Period Monthly Yields (WP)'!$G$9:$G$901,'GR Period Annual Yields (WP)'!A12,'GR Period Monthly Yields (WP)'!$J$9:$J$901)) -> 0.07798333333 | D12: 1986 | E12: =AVERAGEIF('GR Period Monthly Yields (WP)'!$T$9:$T$716,'GR Period Annual Yields (WP)'!D12,'GR Period Monthly Yields (WP)'!$V$9:$V$716) -> 0.09020833333 | G12: 1986 | H12: =AVERAGEIF('GR Period Monthly Yields (WP)'!$T$9:$T$716,'GR Period Annual Yields (WP)'!D12,'GR Period Monthly Yields (WP)'!$Y$9:$Y$716) -> 0.1039083333 | J12: 1986 | K12: 0.0958 | M12: 1986 | N12: 0.1
A13: 1987 | B13: =IF(OR(A13<2002,A13>2005),AVERAGEIF('GR Period Monthly Yields (WP)'!$A$9:$A$716,'GR Period Annual Yields (WP)'!A13,'GR Period Monthly Yields (WP)'!$D$9:$D$716),AVERAGEIF('GR Period Monthly Yields (WP)'!$G$9:$G$901,'GR Period Annual Yields (WP)'!A13,'GR Period Monthly Yields (WP)'!$J$9:$J$901)) -> 0.0858 | D13: 1987 | E13: =AVERAGEIF('GR Period Monthly Yields (WP)'!$T$9:$T$716,'GR Period Annual Yields (WP)'!D13,'GR Period Monthly Yields (WP)'!$V$9:$V$716) -> 0.09375833333 | G13: 1987 | H13: =AVERAGEIF('GR Period Monthly Yields (WP)'!$T$9:$T$716,'GR Period Annual Yields (WP)'!D13,'GR Period Monthly Yields (WP)'!$Y$9:$Y$716) -> 0.1057583333 | J13: 1987 | K13: 0.101 | M13: 1987 | N13: 0.1053
A14: 1988 | B14: =IF(OR(A14<2002,A14>2005),AVERAGEIF('GR Period Monthly Yields (WP)'!$A$9:$A$716,'GR Period Annual Yields (WP)'!A14,'GR Period Monthly Yields (WP)'!$D$9:$D$716),AVERAGEIF('GR Period Monthly Yields (WP)'!$G$9:$G$901,'GR Period Annual Yields (WP)'!A14,'GR Period Monthly Yields (WP)'!$J$9:$J$901)) -> 0.08959166667 | D14: 1988 | E14: =AVERAGEIF('GR Period Monthly Yields (WP)'!$T$9:$T$716,'GR Period Annual Yields (WP)'!D14,'GR Period Monthly Yields (WP)'!$V$9:$V$716) -> 0.0971 | G14: 1988 | H14: =AVERAGEIF('GR Period Monthly Yields (WP)'!$T$9:$T$716,'GR Period Annual Yields (WP)'!D14,'GR Period Monthly Yields (WP)'!$Y$9:$Y$716) -> 0.1083 | J14: 1988 | K14: 0.1049 | M14: 1988 | N14: 0.11
A15: 1989 | B15: =IF(OR(A15<2002,A15>2005),AVERAGEIF('GR Period Monthly Yields (WP)'!$A$9:$A$716,'GR Period Annual Yields (WP)'!A15,'GR Period Monthly Yields (WP)'!$D$9:$D$716),AVERAGEIF('GR Period Monthly Yields (WP)'!$G$9:$G$901,'GR Period Annual Yields (WP)'!A15,'GR Period Monthly Yields (WP)'!$J$9:$J$901)) -> 0.08449166667 | D15: 1989 | E15: =AVERAGEIF('GR Period Monthly Yields (WP)'!$T$9:$T$716,'GR Period Annual Yields (WP)'!D15,'GR Period Monthly Yields (WP)'!$V$9:$V$716) -> 0.092575 | G15: 1989 | H15: =AVERAGEIF('GR Period Monthly Yields (WP)'!$T$9:$T$716,'GR Period Annual Yields (WP)'!D15,'GR Period Monthly Yields (WP)'!$Y$9:$Y$716) -> 0.101775 | J15: 1989 | K15: 0.0977 | M15: 1989 | N15: 0.0997
A16: 1990 | B16: =IF(OR(A16<2002,A16>2005),AVERAGEIF('GR Period Monthly Yields (WP)'!$A$9:$A$716,'GR Period Annual Yields (WP)'!A16,'GR Period Monthly Yields (WP)'!$D$9:$D$716),AVERAGEIF('GR Period Monthly Yields (WP)'!$G$9:$G$901,'GR Period Annual Yields (WP)'!A16,'GR Period Monthly Yields (WP)'!$J$9:$J$901)) -> 0.08608333333 | D16: 1990 | E16: =AVERAGEIF('GR Period Monthly Yields (WP)'!$T$9:$T$716,'GR Period Annual Yields (WP)'!D16,'GR Period Monthly Yields (WP)'!$V$9:$V$716) -> 0.09321666667 | G16: 1990 | H16: =AVERAGEIF('GR Period Monthly Yields (WP)'!$T$9:$T$716,'GR Period Annual Yields (WP)'!D16,'GR Period Monthly Yields (WP)'!$Y$9:$Y$716) -> 0.10355 | J16: 1990 | K16: 0.0986 | M16: 1990 | N16: 0.1006
A17: 1991 | B17: =IF(OR(A17<2002,A17>2005),AVERAGEIF('GR Period Monthly Yields (WP)'!$A$9:$A$716,'GR Period Annual Yields (WP)'!A17,'GR Period Monthly Yields (WP)'!$D$9:$D$716),AVERAGEIF('GR Period Monthly Yields (WP)'!$G$9:$G$901,'GR Period Annual Yields (WP)'!A17,'GR Period Monthly Yields (WP)'!$J$9:$J$901)) -> 0.08135833333 | D17: 1991 | E17: =AVERAGEIF('GR Period Monthly Yields (WP)'!$T$9:$T$716,'GR Period Annual Yields (WP)'!D17,'GR Period Monthly Yields (WP)'!$V$9:$V$716) -> 0.08769166667 | G17: 1991 | H17: =AVERAGEIF('GR Period Monthly Yields (WP)'!$T$9:$T$716,'GR Period Annual Yields (WP)'!D17,'GR Period Monthly Yields (WP)'!$Y$9:$Y$716) -> 0.09801666667 | J17: 1991 | K17: 0.0936 | M17: 1991 | N17: 0.0955
A18: 1992 | B18: =IF(OR(A18<2002,A18>2005),AVERAGEIF('GR Period Monthly Yields (WP)'!$A$9:$A$716,'GR Period Annual Yields (WP)'!A18,'GR Period Monthly Yields (WP)'!$D$9:$D$716),AVERAGEIF('GR Period Monthly Yields (WP)'!$G$9:$G$901,'GR Period Annual Yields (WP)'!A18,'GR Period Monthly Yields (WP)'!$J$9:$J$901)) -> 0.07666666667 | D18: 1992 | E18: =AVERAGEIF('GR Period Monthly Yields (WP)'!$T$9:$T$716,'GR Period Annual Yields (WP)'!D18,'GR Period Monthly Yields (WP)'!$V$9:$V$716) -> 0.0814 | G18: 1992 | H18: =AVERAGEIF('GR Period Monthly Yields (WP)'!$T$9:$T$716,'GR Period Annual Yields (WP)'!D18,'GR Period Monthly Yields (WP)'!$Y$9:$Y$716) -> 0.08976666667 | J18: 1992 | K18: 0.0869 | M18: 1992 | N18: 0.0886
A19: 1993 | B19: =IF(OR(A19<2002,A19>2005),AVERAGEIF('GR Period Monthly Yields (WP)'!$A$9:$A$716,'GR Period Annual Yields (WP)'!A19,'GR Period Monthly Yields (WP)'!$D$9:$D$716),AVERAGEIF('GR Period Monthly Yields (WP)'!$G$9:$G$901,'GR Period Annual Yields (WP)'!A19,'GR Period Monthly Yields (WP)'!$J$9:$J$901)) -> 0.06598333333 | D19: 1993 | E19: =AVERAGEIF('GR Period Monthly Yields (WP)'!$T$9:$T$716,'GR Period Annual Yields (WP)'!D19,'GR Period Monthly Yields (WP)'!$V$9:$V$716) -> 0.07219166667 | G19: 1993 | H19: =AVERAGEIF('GR Period Monthly Yields (WP)'!$T$9:$T$716,'GR Period Annual Yields (WP)'!D19,'GR Period Monthly Yields (WP)'!$Y$9:$Y$716) -> 0.0793 | J19: 1993 | K19: 0.0759 | M19: 1993 | N19: 0.0791
A20: 1994 | B20: =IF(OR(A20<2002,A20>2005),AVERAGEIF('GR Period Monthly Yields (WP)'!$A$9:$A$716,'GR Period Annual Yields (WP)'!A20,'GR Period Monthly Yields (WP)'!$D$9:$D$716),AVERAGEIF('GR Period Monthly Yields (WP)'!$G$9:$G$901,'GR Period Annual Yields (WP)'!A20,'GR Period Monthly Yields (WP)'!$J$9:$J$901)) -> 0.0737 | D20: 1994 | E20: =AVERAGEIF('GR Period Monthly Yields (WP)'!$T$9:$T$716,'GR Period Annual Yields (WP)'!D20,'GR Period Monthly Yields (WP)'!$V$9:$V$716) -> 0.079625 | G20: 1994 | H20: =AVERAGEIF('GR Period Monthly Yields (WP)'!$T$9:$T$716,'GR Period Annual Yields (WP)'!D20,'GR Period Monthly Yields (WP)'!$Y$9:$Y$716) -> 0.086225 | J20: 1994 | K20: 0.0831 | M20: 1994 | N20: 0.0863
A21: 1995 | B21: =IF(OR(A21<2002,A21>2005),AVERAGEIF('GR Period Monthly Yields (WP)'!$A$9:$A$716,'GR Period Annual Yields (WP)'!A21,'GR Period Monthly Yields (WP)'!$D$9:$D$716),AVERAGEIF('GR Period Monthly Yields (WP)'!$G$9:$G$901,'GR Period Annual Yields (WP)'!A21,'GR Period Monthly Yields (WP)'!$J$9:$J$901)) -> 0.06884166667 | D21: 1995 | E21: =AVERAGEIF('GR Period Monthly Yields (WP)'!$T$9:$T$716,'GR Period Annual Yields (WP)'!D21,'GR Period Monthly Yields (WP)'!$V$9:$V$716) -> 0.0759 | G21: 1995 | H21: =AVERAGEIF('GR Period Monthly Yields (WP)'!$T$9:$T$716,'GR Period Annual Yields (WP)'!D21,'GR Period Monthly Yields (WP)'!$Y$9:$Y$716) -> 0.08200833333 | J21: 1995 | K21: 0.0789 | M21: 1995 | N21: 0.0829
A22: 1996 | B22: =IF(OR(A22<2002,A22>2005),AVERAGEIF('GR Period Monthly Yields (WP)'!$A$9:$A$716,'GR Period Annual Yields (WP)'!A22,'GR Period Monthly Yields (WP)'!$D$9:$D$716),AVERAGEIF('GR Period Monthly Yields (WP)'!$G$9:$G$901,'GR Period Annual Yields (WP)'!A22,'GR Period Monthly Yields (WP)'!$J$9:$J$901)) -> 0.06700833333 | D22: 1996 | E22: =AVERAGEIF('GR Period Monthly Yields (WP)'!$T$9:$T$716,'GR Period Annual Yields (WP)'!D22,'GR Period Monthly Yields (WP)'!$V$9:$V$716) -> 0.0737 | G22: 1996 | H22: =AVERAGEIF('GR Period Monthly Yields (WP)'!$T$9:$T$716,'GR Period Annual Yields (WP)'!D22,'GR Period Monthly Yields (WP)'!$Y$9:$Y$716) -> 0.08054166667 | J22: 1996 | K22: 0.0775 | M22: 1996 | N22: 0.0817
A23: 1997 | B23: =IF(OR(A23<2002,A23>2005),AVERAGEIF('GR Period Monthly Yields (WP)'!$A$9:$A$716,'GR Period Annual Yields (WP)'!A23,'GR Period Monthly Yields (WP)'!$D$9:$D$716),AVERAGEIF('GR Period Monthly Yields (WP)'!$G$9:$G$901,'GR Period Annual Yields (WP)'!A23,'GR Period Monthly Yields (WP)'!$J$9:$J$901)) -> 0.06605833333 | D23: 1997 | E23: =AVERAGEIF('GR Period Monthly Yields (WP)'!$T$9:$T$716,'GR Period Annual Yields (WP)'!D23,'GR Period Monthly Yields (WP)'!$V$9:$V$716) -> 0.07261666667 | G23: 1997 | H23: =AVERAGEIF('GR Period Monthly Yields (WP)'!$T$9:$T$716,'GR Period Annual Yields (WP)'!D23,'GR Period Monthly Yields (WP)'!$Y$9:$Y$716) -> 0.078625 | J23: 1997 | K23: 0.076 | M23: 1997 | N23: 0.0795
A24: 1998 | B24: =IF(OR(A24<2002,A24>2005),AVERAGEIF('GR Period Monthly Yields (WP)'!$A$9:$A$716,'GR Period Annual Yields (WP)'!A24,'GR Period Monthly Yields (WP)'!$D$9:$D$716),AVERAGEIF('GR Period Monthly Yields (WP)'!$G$9:$G$901,'GR Period Annual Yields (WP)'!A24,'GR Period Monthly Yields (WP)'!$J$9:$J$901)) -> 0.05578333333 | D24: 1998 | E24: =AVERAGEIF('GR Period Monthly Yields (WP)'!$T$9:$T$716,'GR Period Annual Yields (WP)'!D24,'GR Period Monthly Yields (WP)'!$V$9:$V$716) -> 0.06531666667 | G24: 1998 | H24: =AVERAGEIF('GR Period Monthly Yields (WP)'!$T$9:$T$716,'GR Period Annual Yields (WP)'!D24,'GR Period Monthly Yields (WP)'!$Y$9:$Y$716) -> 0.07220833333 | J24: 1998 | K24: 0.0704 | M24: 1998 | N24: 0.0726
A25: 1999 | B25: =IF(OR(A25<2002,A25>2005),AVERAGEIF('GR Period Monthly Yields (WP)'!$A$9:$A$716,'GR Period Annual Yields (WP)'!A25,'GR Period Monthly Yields (WP)'!$D$9:$D$716),AVERAGEIF('GR Period Monthly Yields (WP)'!$G$9:$G$901,'GR Period Annual Yields (WP)'!A25,'GR Period Monthly Yields (WP)'!$J$9:$J$901)) -> 0.05865833333 | D25: 1999 | E25: =AVERAGEIF('GR Period Monthly Yields (WP)'!$T$9:$T$716,'GR Period Annual Yields (WP)'!D25,'GR Period Monthly Yields (WP)'!$V$9:$V$716) -> 0.07041666667 | G25: 1999 | H25: =AVERAGEIF('GR Period Monthly Yields (WP)'!$T$9:$T$716,'GR Period Annual Yields (WP)'!D25,'GR Period Monthly Yields (WP)'!$Y$9:$Y$716) -> 0.07870833333 | J25: 1999 | K25: 0.0762 | M25: 1999 | N25: 0.0788
A26: 2000 | B26: =IF(OR(A26<2002,A26>2005),AVERAGEIF('GR Period Monthly Yields (WP)'!$A$9:$A$716,'GR Period Annual Yields (WP)'!A26,'GR Period Monthly Yields (WP)'!$D$9:$D$716),AVERAGEIF('GR Period Monthly Yields (WP)'!$G$9:$G$901,'GR Period Annual Yields (WP)'!A26,'GR Period Monthly Yields (WP)'!$J$9:$J$901)) -> 0.059425 | D26: 2000 | E26: =AVERAGEIF('GR Period Monthly Yields (WP)'!$T$9:$T$716,'GR Period Annual Yields (WP)'!D26,'GR Period Monthly Yields (WP)'!$V$9:$V$716) -> 0.076225 | G26: 2000 | H26: =AVERAGEIF('GR Period Monthly Yields (WP)'!$T$9:$T$716,'GR Period Annual Yields (WP)'!D26,'GR Period Monthly Yields (WP)'!$Y$9:$Y$716) -> 0.08364166667 | J26: 2000 | K26: 0.08244166667 | M26: 2000 | N26: 0.08359166667
A27: 2001 | B27: =IF(OR(A27<2002,A27>2005),AVERAGEIF('GR Period Monthly Yields (WP)'!$A$9:$A$716,'GR Period Annual Yields (WP)'!A27,'GR Period Monthly Yields (WP)'!$D$9:$D$716),AVERAGEIF('GR Period Monthly Yields (WP)'!$G$9:$G$901,'GR Period Annual Yields (WP)'!A27,'GR Period Monthly Yields (WP)'!$J$9:$J$901)) -> 0.05493333333 | D27: 2001 | E27: =AVERAGEIF('GR Period Monthly Yields (WP)'!$T$9:$T$716,'GR Period Annual Yields (WP)'!D27,'GR Period Monthly Yields (WP)'!$V$9:$V$716) -> 0.070825 | G27: 2001 | H27: =AVERAGEIF('GR Period Monthly Yields (WP)'!$T$9:$T$716,'GR Period Annual Yields (WP)'!D27,'GR Period Monthly Yields (WP)'!$Y$9:$Y$716) -> 0.079475 | J27: 2001 | K27: =AVERAGEIF('GR Period Monthly Yields (WP)'!$L$9:$S$716,'GR Period Annual Yields (WP)'!J27,'GR Period Monthly Yields (WP)'!$P$9:$P$716) -> 0.077625 | M27: 2001 | N27: =AVERAGEIF('GR Period Monthly Yields (WP)'!$L$9:$L$716,'GR Period Annual Yields (WP)'!M27,'GR Period Monthly Yields (WP)'!$Q$9:$Q$716) -> 0.08028333333
A28: 2002 | B28: =IF(OR(A28<2002,A28>2005),AVERAGEIF('GR Period Monthly Yields (WP)'!$A$9:$A$716,'GR Period Annual Yields (WP)'!A28,'GR Period Monthly Yields (WP)'!$D$9:$D$716),AVERAGEIF('GR Period Monthly Yields (WP)'!$G$9:$G$901,'GR Period Annual Yields (WP)'!A28,'GR Period Monthly Yields (WP)'!$J$9:$J$901)) -> 0.0543 | D28: 2002 | E28: =AVERAGEIF('GR Period Monthly Yields (WP)'!$T$9:$T$716,'GR Period Annual Yields (WP)'!D28,'GR Period Monthly Yields (WP)'!$V$9:$V$716) -> 0.06491666667 | G28: 2002 | H28: =AVERAGEIF('GR Period Monthly Yields (WP)'!$T$9:$T$716,'GR Period Annual Yields (WP)'!D28,'GR Period Monthly Yields (WP)'!$Y$9:$Y$716) -> 0.07801666667 | J28: 2002 | K28: =AVERAGEIF('GR Period Monthly Yields (WP)'!$L$9:$S$716,'GR Period Annual Yields (WP)'!J28,'GR Period Monthly Yields (WP)'!$P$9:$P$716) -> 0.073725 | M28: 2002 | N28: =AVERAGEIF('GR Period Monthly Yields (WP)'!$L$9:$L$716,'GR Period Annual Yields (WP)'!M28,'GR Period Monthly Yields (WP)'!$Q$9:$Q$716) -> 0.08023333333
A29: 2003 | B29: =IF(OR(A29<2002,A29>2005),AVERAGEIF('GR Period Monthly Yields (WP)'!$A$9:$A$716,'GR Period Annual Yields (WP)'!A29,'GR Period Monthly Yields (WP)'!$D$9:$D$716),AVERAGEIF('GR Period Monthly Yields (WP)'!$G$9:$G$901,'GR Period Annual Yields (WP)'!A29,'GR Period Monthly Yields (WP)'!$J$9:$J$901)) -> 0.049575 | D29: 2003 | E29: =AVERAGEIF('GR Period Monthly Yields (WP)'!$T$9:$T$716,'GR Period Annual Yields (WP)'!D29,'GR Period Monthly Yields (WP)'!$V$9:$V$716) -> 0.05666666667 | G29: 2003 | H29: =AVERAGEIF('GR Period Monthly Yields (WP)'!$T$9:$T$716,'GR Period Annual Yields (WP)'!D29,'GR Period Monthly Yields (WP)'!$Y$9:$Y$716) -> 0.06765833333 | J29: 2003 | K29: =AVERAGEIF('GR Period Monthly Yields (WP)'!$L$9:$S$716,'GR Period Annual Yields (WP)'!J29,'GR Period Monthly Yields (WP)'!$P$9:$P$716) -> 0.06580833333 | M29: 2003 | N29: =AVERAGEIF('GR Period Monthly Yields (WP)'!$L$9:$L$716,'GR Period Annual Yields (WP)'!M29,'GR Period Monthly Yields (WP)'!$Q$9:$Q$716) -> 0.068425
A30: 2004 | B30: =IF(OR(A30<2002,A30>2005),AVERAGEIF('GR Period Monthly Yields (WP)'!$A$9:$A$716,'GR Period Annual Yields (WP)'!A30,'GR Period Monthly Yields (WP)'!$D$9:$D$716),AVERAGEIF('GR Period Monthly Yields (WP)'!$G$9:$G$901,'GR Period Annual Yields (WP)'!A30,'GR Period Monthly Yields (WP)'!$J$9:$J$901)) -> 0.05046666667 | D30: 2004 | E30: =AVERAGEIF('GR Period Monthly Yields (WP)'!$T$9:$T$716,'GR Period Annual Yields (WP)'!D30,'GR Period Monthly Yields (WP)'!$V$9:$V$716) -> 0.05628333333 | G30: 2004 | H30: =AVERAGEIF('GR Period Monthly Yields (WP)'!$T$9:$T$716,'GR Period Annual Yields (WP)'!D30,'GR Period Monthly Yields (WP)'!$Y$9:$Y$716) -> 0.06393333333 | J30: 2004 | K30: =AVERAGEIF('GR Period Monthly Yields (WP)'!$L$9:$S$716,'GR Period Annual Yields (WP)'!J30,'GR Period Monthly Yields (WP)'!$P$9:$P$716) -> 0.0616 | M30: 2004 | N30: =AVERAGEIF('GR Period Monthly Yields (WP)'!$L$9:$L$716,'GR Period Annual Yields (WP)'!M30,'GR Period Monthly Yields (WP)'!$Q$9:$Q$716) -> 0.06395
A31: 2005 | B31: =IF(OR(A31<2002,A31>2005),AVERAGEIF('GR Period Monthly Yields (WP)'!$A$9:$A$716,'GR Period Annual Yields (WP)'!A31,'GR Period Monthly Yields (WP)'!$D$9:$D$716),AVERAGEIF('GR Period Monthly Yields (WP)'!$G$9:$G$901,'GR Period Annual Yields (WP)'!A31,'GR Period Monthly Yields (WP)'!$J$9:$J$901)) -> 0.04645833333 | D31: 2005 | E31: =AVERAGEIF('GR Period Monthly Yields (WP)'!$T$9:$T$716,'GR Period Annual Yields (WP)'!D31,'GR Period Monthly Yields (WP)'!$V$9:$V$716) -> 0.05235 | G31: 2005 | H31: =AVERAGEIF('GR Period Monthly Yields (WP)'!$T$9:$T$716,'GR Period Annual Yields (WP)'!D31,'GR Period Monthly Yields (WP)'!$Y$9:$Y$716) -> 0.06064166667 | J31: 2005 | K31: =AVERAGEIF('GR Period Monthly Yields (WP)'!$L$9:$S$716,'GR Period Annual Yields (WP)'!J31,'GR Period Monthly Yields (WP)'!$P$9:$P$716) -> 0.05649166667 | M31: 2005 | N31: =AVERAGEIF('GR Period Monthly Yields (WP)'!$L$9:$L$716,'GR Period Annual Yields (WP)'!M31,'GR Period Monthly Yields (WP)'!$Q$9:$Q$716) -> 0.05925
A32: 2006 | B32: =IF(OR(A32<2002,A32>2005),AVERAGEIF('GR Period Monthly Yields (WP)'!$A$9:$A$716,'GR Period Annual Yields (WP)'!A32,'GR Period Monthly Yields (WP)'!$D$9:$D$716),AVERAGEIF('GR Period Monthly Yields (WP)'!$G$9:$G$901,'GR Period Annual Yields (WP)'!A32,'GR Period Monthly Yields (WP)'!$J$9:$J$901)) -> 0.04873333333 | D32: 2006 | E32: =AVERAGEIF('GR Period Monthly Yields (WP)'!$T$9:$T$716,'GR Period Annual Yields (WP)'!D32,'GR Period Monthly Yields (WP)'!$V$9:$V$716) -> 0.05584166667 | G32: 2006 | H32: =AVERAGEIF('GR Period Monthly Yields (WP)'!$T$9:$T$716,'GR Period Annual Yields (WP)'!D32,'GR Period Monthly Yields (WP)'!$Y$9:$Y$716) -> 0.06479166667 | J32: 2006 | K32: =AVERAGEIF('GR Period Monthly Yields (WP)'!$L$9:$S$716,'GR Period Annual Yields (WP)'!J32,'GR Period Monthly Yields (WP)'!$P$9:$P$716) -> 0.06068333333 | M32: 2006 | N32: =AVERAGEIF('GR Period Monthly Yields (WP)'!$L$9:$L$716,'GR Period Annual Yields (WP)'!M32,'GR Period Monthly Yields (WP)'!$Q$9:$Q$716) -> 0.06316666667
A33: 2007 | B33: =IF(OR(A33<2002,A33>2005),AVERAGEIF('GR Period Monthly Yields (WP)'!$A$9:$A$716,'GR Period Annual Yields (WP)'!A33,'GR Period Monthly Yields (WP)'!$D$9:$D$716),AVERAGEIF('GR Period Monthly Yields (WP)'!$G$9:$G$901,'GR Period Annual Yields (WP)'!A33,'GR Period Monthly Yields (WP)'!$J$9:$J$901)) -> 0.04834166667 | D33: 2007 | E33: =AVERAGEIF('GR Period Monthly Yields (WP)'!$T$9:$T$716,'GR Period Annual Yields (WP)'!D33,'GR Period Monthly Yields (WP)'!$V$9:$V$716) -> 0.05555833333 | G33: 2007 | H33: =AVERAGEIF('GR Period Monthly Yields (WP)'!$T$9:$T$716,'GR Period Annual Yields (WP)'!D33,'GR Period Monthly Yields (WP)'!$Y$9:$Y$716) -> 0.064825 | J33: 2007 | K33: =AVERAGEIF('GR Period Monthly Yields (WP)'!$L$9:$S$716,'GR Period Annual Yields (WP)'!J33,'GR Period Monthly Yields (WP)'!$P$9:$P$716) -> 0.06073333333 | M33: 2007 | N33: =AVERAGEIF('GR Period Monthly Yields (WP)'!$L$9:$L$716,'GR Period Annual Yields (WP)'!M33,'GR Period Monthly Yields (WP)'!$Q$9:$Q$716) -> 0.0633
A34: 2008 | B34: =IF(OR(A34<2002,A34>2005),AVERAGEIF('GR Period Monthly Yields (WP)'!$A$9:$A$716,'GR Period Annual Yields (WP)'!A34,'GR Period Monthly Yields (WP)'!$D$9:$D$716),AVERAGEIF('GR Period Monthly Yields (WP)'!$G$9:$G$901,'GR Period Annual Yields (WP)'!A34,'GR Period Monthly Yields (WP)'!$J$9:$J$901)) -> 0.04279166667 | D34: 2008 | E34: =AVERAGEIF('GR Period Monthly Yields (WP)'!$T$9:$T$716,'GR Period Annual Yields (WP)'!D34,'GR Period Monthly Yields (WP)'!$V$9:$V$716) -> 0.056325 | G34: 2008 | H34: =AVERAGEIF('GR Period Monthly Yields (WP)'!$T$9:$T$716,'GR Period Annual Yields (WP)'!D34,'GR Period Monthly Yields (WP)'!$Y$9:$Y$716) -> 0.074475 | J34: 2008 | K34: =AVERAGEIF('GR Period Monthly Yields (WP)'!$L$9:$S$716,'GR Period Annual Yields (WP)'!J34,'GR Period Monthly Yields (WP)'!$P$9:$P$716) -> 0.06528333333 | M34: 2008 | N34: =AVERAGEIF('GR Period Monthly Yields (WP)'!$L$9:$L$716,'GR Period Annual Yields (WP)'!M34,'GR Period Monthly Yields (WP)'!$Q$9:$Q$716) -> 0.07245833333
A35: 2009 | B35: =IF(OR(A35<2002,A35>2005),AVERAGEIF('GR Period Monthly Yields (WP)'!$A$9:$A$716,'GR Period Annual Yields (WP)'!A35,'GR Period Monthly Yields (WP)'!$D$9:$D$716),AVERAGEIF('GR Period Monthly Yields (WP)'!$G$9:$G$901,'GR Period Annual Yields (WP)'!A35,'GR Period Monthly Yields (WP)'!$J$9:$J$901)) -> 0.04069166667 | D35: 2009 | E35: =AVERAGEIF('GR Period Monthly Yields (WP)'!$T$9:$T$716,'GR Period Annual Yields (WP)'!D35,'GR Period Monthly Yields (WP)'!$V$9:$V$716) -> 0.05313333333 | G35: 2009 | H35: =AVERAGEIF('GR Period Monthly Yields (WP)'!$T$9:$T$716,'GR Period Annual Yields (WP)'!D35,'GR Period Monthly Yields (WP)'!$Y$9:$Y$716) -> 0.07295833333 | J35: 2009 | K35: =AVERAGEIF('GR Period Monthly Yields (WP)'!$L$9:$S$716,'GR Period Annual Yields (WP)'!J35,'GR Period Monthly Yields (WP)'!$P$9:$P$716) -> 0.06039166667 | M35: 2009 | N35: =AVERAGEIF('GR Period Monthly Yields (WP)'!$L$9:$L$716,'GR Period Annual Yields (WP)'!M35,'GR Period Monthly Yields (WP)'!$Q$9:$Q$716) -> 0.07055
A36: 2010 | B36: =IF(OR(A36<2002,A36>2005),AVERAGEIF('GR Period Monthly Yields (WP)'!$A$9:$A$716,'GR Period Annual Yields (WP)'!A36,'GR Period Monthly Yields (WP)'!$D$9:$D$716),AVERAGEIF('GR Period Monthly Yields (WP)'!$G$9:$G$901,'GR Period Annual Yields (WP)'!A36,'GR Period Monthly Yields (WP)'!$J$9:$J$901)) -> 0.04250833333 | D36: 2010 | E36: =AVERAGEIF('GR Period Monthly Yields (WP)'!$T$9:$T$716,'GR Period Annual Yields (WP)'!D36,'GR Period Monthly Yields (WP)'!$V$9:$V$716) -> 0.04943333333 | G36: 2010 | H36: =AVERAGEIF('GR Period Monthly Yields (WP)'!$T$9:$T$716,'GR Period Annual Yields (WP)'!D36,'GR Period Monthly Yields (WP)'!$Y$9:$Y$716) -> 0.06038333333 | J36: 2010 | K36: =AVERAGEIF('GR Period Monthly Yields (WP)'!$L$9:$S$716,'GR Period Annual Yields (WP)'!J36,'GR Period Monthly Yields (WP)'!$P$9:$P$716) -> 0.05463333333 | M36: 2010 | N36: =AVERAGEIF('GR Period Monthly Yields (WP)'!$L$9:$L$716,'GR Period Annual Yields (WP)'!M36,'GR Period Monthly Yields (WP)'!$Q$9:$Q$716) -> 0.05961666667
A37: 2011 | B37: =IF(OR(A37<2002,A37>2005),AVERAGEIF('GR Period Monthly Yields (WP)'!$A$9:$A$716,'GR Period Annual Yields (WP)'!A37,'GR Period Monthly Yields (WP)'!$D$9:$D$716),AVERAGEIF('GR Period Monthly Yields (WP)'!$G$9:$G$901,'GR Period Annual Yields (WP)'!A37,'GR Period Monthly Yields (WP)'!$J$9:$J$901)) -> 0.03910833333 | D37: 2011 | E37: =AVERAGEIF('GR Period Monthly Yields (WP)'!$T$9:$T$716,'GR Period Annual Yields (WP)'!D37,'GR Period Monthly Yields (WP)'!$V$9:$V$716) -> 0.04639166667 | G37: 2011 | H37: =AVERAGEIF('GR Period Monthly Yields (WP)'!$T$9:$T$716,'GR Period Annual Yields (WP)'!D37,'GR Period Monthly Yields (WP)'!$Y$9:$Y$716) -> 0.05664166667 | J37: 2011 | K37: =AVERAGEIF('GR Period Monthly Yields (WP)'!$L$9:$S$716,'GR Period Annual Yields (WP)'!J37,'GR Period Monthly Yields (WP)'!$P$9:$P$716) -> 0.0504 | M37: 2011 | N37: =AVERAGEIF('GR Period Monthly Yields (WP)'!$L$9:$L$716,'GR Period Annual Yields (WP)'!M37,'GR Period Monthly Yields (WP)'!$Q$9:$Q$716) -> 0.05565833333
A38: 2012 | B38: =IF(OR(A38<2002,A38>2005),AVERAGEIF('GR Period Monthly Yields (WP)'!$A$9:$A$716,'GR Period Annual Yields (WP)'!A38,'GR Period Monthly Yields (WP)'!$D$9:$D$716),AVERAGEIF('GR Period Monthly Yields (WP)'!$G$9:$G$901,'GR Period Annual Yields (WP)'!A38,'GR Period Monthly Yields (WP)'!$J$9:$J$901)) -> 0.02920833333 | D38: 2012 | E38: =AVERAGEIF('GR Period Monthly Yields (WP)'!$T$9:$T$716,'GR Period Annual Yields (WP)'!D38,'GR Period Monthly Yields (WP)'!$V$9:$V$716) -> 0.03673333333 | G38: 2012 | H38: =AVERAGEIF('GR Period Monthly Yields (WP)'!$T$9:$T$716,'GR Period Annual Yields (WP)'!D38,'GR Period Monthly Yields (WP)'!$Y$9:$Y$716) -> 0.04935 | J38: 2012 | K38: =AVERAGEIF('GR Period Monthly Yields (WP)'!$L$9:$S$716,'GR Period Annual Yields (WP)'!J38,'GR Period Monthly Yields (WP)'!$P$9:$P$716) -> 0.0413 | M38: 2012 | N38: =AVERAGEIF('GR Period Monthly Yields (WP)'!$L$9:$L$716,'GR Period Annual Yields (WP)'!M38,'GR Period Monthly Yields (WP)'!$Q$9:$Q$716) -> 0.04855
A39: 2013 | B39: =IF(OR(A39<2002,A39>2005),AVERAGEIF('GR Period Monthly Yields (WP)'!$A$9:$A$716,'GR Period Annual Yields (WP)'!A39,'GR Period Monthly Yields (WP)'!$D$9:$D$716),AVERAGEIF('GR Period Monthly Yields (WP)'!$G$9:$G$901,'GR Period Annual Yields (WP)'!A39,'GR Period Monthly Yields (WP)'!$J$9:$J$901)) -> 0.03448333333 | D39: 2013 | E39: =AVERAGEIF('GR Period Monthly Yields (WP)'!$T$9:$T$716,'GR Period Annual Yields (WP)'!D39,'GR Period Monthly Yields (WP)'!$V$9:$V$716) -> 0.04235 | G39: 2013 | H39: =AVERAGEIF('GR Period Monthly Yields (WP)'!$T$9:$T$716,'GR Period Annual Yields (WP)'!D39,'GR Period Monthly Yields (WP)'!$Y$9:$Y$716) -> 0.05101666667 | J39: 2013 | K39: =AVERAGEIF('GR Period Monthly Yields (WP)'!$L$9:$S$716,'GR Period Annual Yields (WP)'!J39,'GR Period Monthly Yields (WP)'!$P$9:$P$716) -> 0.04476666667 | M39: 2013 | N39: =AVERAGEIF('GR Period Monthly Yields (WP)'!$L$9:$L$716,'GR Period Annual Yields (WP)'!M39,'GR Period Monthly Yields (WP)'!$Q$9:$Q$716) -> 0.04983333333
A40: 2014 | B40: =IF(OR(A40<2002,A40>2005),AVERAGEIF('GR Period Monthly Yields (WP)'!$A$9:$A$716,'GR Period Annual Yields (WP)'!A40,'GR Period Monthly Yields (WP)'!$D$9:$D$716),AVERAGEIF('GR Period Monthly Yields (WP)'!$G$9:$G$901,'GR Period Annual Yields (WP)'!A40,'GR Period Monthly Yields (WP)'!$J$9:$J$901)) -> 0.0334 | D40: 2014 | E40: =AVERAGEIF('GR Period Monthly Yields (WP)'!$T$9:$T$716,'GR Period Annual Yields (WP)'!D40,'GR Period Monthly Yields (WP)'!$V$9:$V$716) -> 0.041625 | G40: 2014 | H40: =AVERAGEIF('GR Period Monthly Yields (WP)'!$T$9:$T$716,'GR Period Annual Yields (WP)'!D40,'GR Period Monthly Yields (WP)'!$Y$9:$Y$716) -> 0.04854166667 | J40: 2014 | K40: =AVERAGEIF('GR Period Monthly Yields (WP)'!$L$9:$S$716,'GR Period Annual Yields (WP)'!J40,'GR Period Monthly Yields (WP)'!$P$9:$P$716) -> 0.042775 | M40: 2014 | N40: =AVERAGEIF('GR Period Monthly Yields (WP)'!$L$9:$L$716,'GR Period Annual Yields (WP)'!M40,'GR Period Monthly Yields (WP)'!$Q$9:$Q$716) -> 0.04799166667
A41: 2015 | B41: =IF(OR(A41<2002,A41>2005),AVERAGEIF('GR Period Monthly Yields (WP)'!$A$9:$A$716,'GR Period Annual Yields (WP)'!A41,'GR Period Monthly Yields (WP)'!$D$9:$D$716),AVERAGEIF('GR Period Monthly Yields (WP)'!$G$9:$G$901,'GR Period Annual Yields (WP)'!A41,'GR Period Monthly Yields (WP)'!$J$9:$J$901)) -> 0.02840833333 | D41: 2015 | E41: =AVERAGEIF('GR Period Monthly Yields (WP)'!$T$9:$T$716,'GR Period Annual Yields (WP)'!D41,'GR Period Monthly Yields (WP)'!$V$9:$V$716) -> 0.03886666667 | G41: 2015 | H41: =AVERAGEIF('GR Period Monthly Yields (WP)'!$T$9:$T$716,'GR Period Annual Yields (WP)'!D41,'GR Period Monthly Yields (WP)'!$Y$9:$Y$716) -> 0.04999166667 | J41: 2015 | K41: =AVERAGEIF('GR Period Monthly Yields (WP)'!$L$9:$S$716,'GR Period Annual Yields (WP)'!J41,'GR Period Monthly Yields (WP)'!$P$9:$P$716) -> 0.04115 | M41: 2015 | N41: =AVERAGEIF('GR Period Monthly Yields (WP)'!$L$9:$L$716,'GR Period Annual Yields (WP)'!M41,'GR Period Monthly Yields (WP)'!$Q$9:$Q$716) -> 0.05029166667
A42: 2016 | B42: =IF(OR(A42<2002,A42>2005),AVERAGEIF('GR Period Monthly Yields (WP)'!$A$9:$A$716,'GR Period Annual Yields (WP)'!A42,'GR Period Monthly Yields (WP)'!$D$9:$D$716),AVERAGEIF('GR Period Monthly Yields (WP)'!$G$9:$G$901,'GR Period Annual Yields (WP)'!A42,'GR Period Monthly Yields (WP)'!$J$9:$J$901)) -> 0.025975 | D42: 2016 | E42: =AVERAGEIF('GR Period Monthly Yields (WP)'!$T$9:$T$716,'GR Period Annual Yields (WP)'!D42,'GR Period Monthly Yields (WP)'!$V$9:$V$716) -> 0.03665833333 | G42: 2016 | H42: =AVERAGEIF('GR Period Monthly Yields (WP)'!$T$9:$T$716,'GR Period Annual Yields (WP)'!D42,'GR Period Monthly Yields (WP)'!$Y$9:$Y$716) -> 0.047175 | J42: =TRUNC(2016) -> 2016 | K42: =AVERAGEIF('GR Period Monthly Yields (WP)'!$L$9:$S$716,'GR Period Annual Yields (WP)'!J42,'GR Period Monthly Yields (WP)'!$P$9:$P$716) -> 0.039325 | M42: 2016 | N42: =AVERAGEIF('GR Period Monthly Yields (WP)'!$L$9:$L$716,'GR Period Annual Yields (WP)'!M42,'GR Period Monthly Yields (WP)'!$Q$9:$Q$716) -> 0.04675833333
A43: 2017 | B43: =IF(OR(A43<2002,A43>2005),AVERAGEIF('GR Period Monthly Yields (WP)'!$A$9:$A$716,'GR Period Annual Yields (WP)'!A43,'GR Period Monthly Yields (WP)'!$D$9:$D$716),AVERAGEIF('GR Period Monthly Yields (WP)'!$G$9:$G$901,'GR Period Annual Yields (WP)'!A43,'GR Period Monthly Yields (WP)'!$J$9:$J$901)) -> 0.02895 | D43: 2017 | E43: =AVERAGEIF('GR Period Monthly Yields (WP)'!$T$9:$T$716,'GR Period Annual Yields (WP)'!D43,'GR Period Monthly Yields (WP)'!$V$9:$V$716) -> 0.03743333333 | G43: 2017 | H43: =AVERAGEIF('GR Period Monthly Yields (WP)'!$T$9:$T$716,'GR Period Annual Yields (WP)'!D43,'GR Period Monthly Yields (WP)'!$Y$9:$Y$716) -> 0.0444 | J43: 2017 | K43: =AVERAGEIF('GR Period Monthly Yields (WP)'!$L$9:$S$716,'GR Period Annual Yields (WP)'!J43,'GR Period Monthly Yields (WP)'!$P$9:$P$716) -> 0.03998333333 | M43: 2017 | N43: =AVERAGEIF('GR Period Monthly Yields (WP)'!$L$9:$L$716,'GR Period Annual Yields (WP)'!M43,'GR Period Monthly Yields (WP)'!$Q$9:$Q$716) -> 0.04378333333
A44: 2018 | B44: =IF(OR(A44<2002,A44>2005),AVERAGEIF('GR Period Monthly Yields (WP)'!$A$9:$A$716,'GR Period Annual Yields (WP)'!A44,'GR Period Monthly Yields (WP)'!$D$9:$D$716),AVERAGEIF('GR Period Monthly Yields (WP)'!$G$9:$G$901,'GR Period Annual Yields (WP)'!A44,'GR Period Monthly Yields (WP)'!$J$9:$J$901)) -> 0.031125 | D44: 2018 | E44: =AVERAGEIF('GR Period Monthly Yields (WP)'!$T$9:$T$716,'GR Period Annual Yields (WP)'!D44,'GR Period Monthly Yields (WP)'!$V$9:$V$716) -> 0.0393 | G44: 2018 | H44: =AVERAGEIF('GR Period Monthly Yields (WP)'!$T$9:$T$716,'GR Period Annual Yields (WP)'!D44,'GR Period Monthly Yields (WP)'!$Y$9:$Y$716) -> 0.048 | J44: 2018 | K44: =AVERAGEIF('GR Period Monthly Yields (WP)'!$L$9:$S$716,'GR Period Annual Yields (WP)'!J44,'GR Period Monthly Yields (WP)'!$P$9:$P$716) -> 0.04249166667 | M44: 2018 | N44: =AVERAGEIF('GR Period Monthly Yields (WP)'!$L$9:$L$716,'GR Period Annual Yields (WP)'!M44,'GR Period Monthly Yields (WP)'!$Q$9:$Q$716) -> 0.04669166667
A45: 2019 | B45: =IF(OR(A45<2002,A45>2005),AVERAGEIF('GR Period Monthly Yields (WP)'!$A$9:$A$716,'GR Period Annual Yields (WP)'!A45,'GR Period Monthly Yields (WP)'!$D$9:$D$716),AVERAGEIF('GR Period Monthly Yields (WP)'!$G$9:$G$901,'GR Period Annual Yields (WP)'!A45,'GR Period Monthly Yields (WP)'!$J$9:$J$901)) -> 0.025825 | D45: 2019 | E45: =AVERAGEIF('GR Period Monthly Yields (WP)'!$T$9:$T$716,'GR Period Annual Yields (WP)'!D45,'GR Period Monthly Yields (WP)'!$V$9:$V$716) -> 0.033875 | G45: 2019 | H45: =AVERAGEIF('GR Period Monthly Yields (WP)'!$T$9:$T$716,'GR Period Annual Yields (WP)'!D45,'GR Period Monthly Yields (WP)'!$Y$9:$Y$716) -> 0.04375833333 | J45: 2019 | K45: =AVERAGEIF('GR Period Monthly Yields (WP)'!$L$9:$S$716,'GR Period Annual Yields (WP)'!J45,'GR Period Monthly Yields (WP)'!$P$9:$P$716) -> 0.037675 | M45: 2019 | N45: =AVERAGEIF('GR Period Monthly Yields (WP)'!$L$9:$L$716,'GR Period Annual Yields (WP)'!M45,'GR Period Monthly Yields (WP)'!$Q$9:$Q$716) -> 0.04194166667
A46: 2020 | B46: =IF(OR(A46<2002,A46>2005),AVERAGEIF('GR Period Monthly Yields (WP)'!$A$9:$A$716,'GR Period Annual Yields (WP)'!A46,'GR Period Monthly Yields (WP)'!$D$9:$D$716),AVERAGEIF('GR Period Monthly Yields (WP)'!$G$9:$G$901,'GR Period Annual Yields (WP)'!A46,'GR Period Monthly Yields (WP)'!$J$9:$J$901)) -> 0.01561666667 | D46: 2020 | E46: =AVERAGEIF('GR Period Monthly Yields (WP)'!$T$9:$T$716,'GR Period Annual Yields (WP)'!D46,'GR Period Monthly Yields (WP)'!$V$9:$V$716) -> 0.02475833333 | G46: 2020 | H46: =AVERAGEIF('GR Period Monthly Yields (WP)'!$T$9:$T$716,'GR Period Annual Yields (WP)'!D46,'GR Period Monthly Yields (WP)'!$Y$9:$Y$716) -> 0.036025 | J46: 2020 | K46: =AVERAGEIF('GR Period Monthly Yields (WP)'!$L$9:$S$716,'GR Period Annual Yields (WP)'!J46,'GR Period Monthly Yields (WP)'!$P$9:$P$716) -> 0.03015 | M46: 2020 | N46: =AVERAGEIF('GR Period Monthly Yields (WP)'!$L$9:$L$716,'GR Period Annual Yields (WP)'!M46,'GR Period Monthly Yields (WP)'!$Q$9:$Q$716) -> 0.0339
A47: 2021 | B47: =IF(OR(A47<2002,A47>2005),AVERAGEIF('GR Period Monthly Yields (WP)'!$A$9:$A$716,'GR Period Annual Yields (WP)'!A47,'GR Period Monthly Yields (WP)'!$D$9:$D$716),AVERAGEIF('GR Period Monthly Yields (WP)'!$G$9:$G$901,'GR Period Annual Yields (WP)'!A47,'GR Period Monthly Yields (WP)'!$J$9:$J$901)) -> 0.020525 | D47: 2021 | E47: =AVERAGEIF('GR Period Monthly Yields (WP)'!$T$9:$T$716,'GR Period Annual Yields (WP)'!D47,'GR Period Monthly Yields (WP)'!$V$9:$V$716) -> 0.02708333333 | G47: 2021 | H47: =AVERAGEIF('GR Period Monthly Yields (WP)'!$T$9:$T$716,'GR Period Annual Yields (WP)'!D47,'GR Period Monthly Yields (WP)'!$Y$9:$Y$716) -> 0.03398333333 | J47: 2021 | K47: =AVERAGEIF('GR Period Monthly Yields (WP)'!$L$9:$S$716,'GR Period Annual Yields (WP)'!J47,'GR Period Monthly Yields (WP)'!$P$9:$P$716) -> 0.03110833333 | M47: 2021 | N47: =AVERAGEIF('GR Period Monthly Yields (WP)'!$L$9:$L$716,'GR Period Annual Yields (WP)'!M47,'GR Period Monthly Yields (WP)'!$Q$9:$Q$716) -> 0.03361666667
A48: 2022 | B48: =IF(OR(A48<2002,A48>2005),AVERAGEIF('GR Period Monthly Yields (WP)'!$A$9:$A$716,'GR Period Annual Yields (WP)'!A48,'GR Period Monthly Yields (WP)'!$D$9:$D$716),AVERAGEIF('GR Period Monthly Yields (WP)'!$G$9:$G$901,'GR Period Annual Yields (WP)'!A48,'GR Period Monthly Yields (WP)'!$J$9:$J$901)) -> 0.03115 | D48: 2022 | E48: =AVERAGEIF('GR Period Monthly Yields (WP)'!$T$9:$T$716,'GR Period Annual Yields (WP)'!D48,'GR Period Monthly Yields (WP)'!$V$9:$V$716) -> 0.04085833333 | G48: 2022 | H48: =AVERAGEIF('GR Period Monthly Yields (WP)'!$T$9:$T$716,'GR Period Annual Yields (WP)'!D48,'GR Period Monthly Yields (WP)'!$Y$9:$Y$716) -> 0.05080833333 | J48: 2022 | K48: =AVERAGEIF('GR Period Monthly Yields (WP)'!$L$9:$S$716,'GR Period Annual Yields (WP)'!J48,'GR Period Monthly Yields (WP)'!$P$9:$P$716) -> 0.04720833333 | M48: 2022 | N48: =AVERAGEIF('GR Period Monthly Yields (WP)'!$L$9:$L$716,'GR Period Annual Yields (WP)'!M48,'GR Period Monthly Yields (WP)'!$Q$9:$Q$716) -> 0.05029166667
A49: 2023 | B49: =IF(OR(A49<2002,A49>2005),AVERAGEIF('GR Period Monthly Yields (WP)'!$A$9:$A$716,'GR Period Annual Yields (WP)'!A49,'GR Period Monthly Yields (WP)'!$D$9:$D$716),AVERAGEIF('GR Period Monthly Yields (WP)'!$G$9:$G$901,'GR Period Annual Yields (WP)'!A49,'GR Period Monthly Yields (WP)'!$J$9:$J$901)) -> 0.04091666667 | D49: 2023 | E49: =AVERAGEIF('GR Period Monthly Yields (WP)'!$T$9:$T$716,'GR Period Annual Yields (WP)'!D49,'GR Period Monthly Yields (WP)'!$V$9:$V$716) -> 0.048375 | G49: 2023 | H49: =AVERAGEIF('GR Period Monthly Yields (WP)'!$T$9:$T$716,'GR Period Annual Yields (WP)'!D49,'GR Period Monthly Yields (WP)'!$Y$9:$Y$716) -> 0.058525 | J49: 2023 | K49: =AVERAGEIF('GR Period Monthly Yields (WP)'!$L$9:$S$716,'GR Period Annual Yields (WP)'!J49,'GR Period Monthly Yields (WP)'!$P$9:$P$716) -> 0.055375 | M49: 2023 | N49: =AVERAGEIF('GR Period Monthly Yields (WP)'!$L$9:$L$716,'GR Period Annual Yields (WP)'!M49,'GR Period Monthly Yields (WP)'!$Q$9:$Q$716) -> 0.05839166667
A50: 2024 | B50: =IF(OR(A50<2002,A50>2005),AVERAGEIF('GR Period Monthly Yields (WP)'!$A$9:$A$716,'GR Period Annual Yields (WP)'!A50,'GR Period Monthly Yields (WP)'!$D$9:$D$716),AVERAGEIF('GR Period Monthly Yields (WP)'!$G$9:$G$901,'GR Period Annual Yields (WP)'!A50,'GR Period Monthly Yields (WP)'!$J$9:$J$901)) -> 0.04405833333 | D50: 2024 | E50: =AVERAGEIF('GR Period Monthly Yields (WP)'!$T$9:$T$716,'GR Period Annual Yields (WP)'!D50,'GR Period Monthly Yields (WP)'!$V$9:$V$716) -> 0.05044166667 | G50: 2024 | H50: =AVERAGEIF('GR Period Monthly Yields (WP)'!$T$9:$T$716,'GR Period Annual Yields (WP)'!D50,'GR Period Monthly Yields (WP)'!$Y$9:$Y$716) -> 0.05753333333 | J50: 2024 | K50: =AVERAGEIF('GR Period Monthly Yields (WP)'!$L$9:$S$716,'GR Period Annual Yields (WP)'!J50,'GR Period Monthly Yields (WP)'!$P$9:$P$716) -> 0.05540833333 | M50: 2024 | N50: =AVERAGEIF('GR Period Monthly Yields (WP)'!$L$9:$L$716,'GR Period Annual Yields (WP)'!M50,'GR Period Monthly Yields (WP)'!$Q$9:$Q$716) -> 0.05760833333
A51: 2025 | B51: =IF(OR(A51<2002,A51>2005),AVERAGEIF('GR Period Monthly Yields (WP)'!$A$9:$A$716,'GR Period Annual Yields (WP)'!A51,'GR Period Monthly Yields (WP)'!$D$9:$D$716),AVERAGEIF('GR Period Monthly Yields (WP)'!$G$9:$G$901,'GR Period Annual Yields (WP)'!A51,'GR Period Monthly Yields (WP)'!$J$9:$J$901)) -> 0.04771666667 | D51: 2025 | E51: =AVERAGEIF('GR Period Monthly Yields (WP)'!$T$9:$T$716,'GR Period Annual Yields (WP)'!D51,'GR Period Monthly Yields (WP)'!$V$9:$V$716) -> 0.0542 | G51: 2025 | H51: =AVERAGEIF('GR Period Monthly Yields (WP)'!$T$9:$T$716,'GR Period Annual Yields (WP)'!D51,'GR Period Monthly Yields (WP)'!$Y$9:$Y$716) -> 0.06091666667 | J51: 2025 | K51: =AVERAGEIF('GR Period Monthly Yields (WP)'!$L$9:$S$716,'GR Period Annual Yields (WP)'!J51,'GR Period Monthly Yields (WP)'!$P$9:$P$716) -> 0.05868333333 | M51: 2025 | N51: =AVERAGEIF('GR Period Monthly Yields (WP)'!$L$9:$L$716,'GR Period Annual Yields (WP)'!M51,'GR Period Monthly Yields (WP)'!$Q$9:$Q$716) -> 0.06053333333

Sheet ROE Period Monthly Yields (WP)
B1: GS30 | E1: 30-Year Treasury Bond | H1: GS20 | P1: "A" Rated Utility Bond Yield | Q1: "Baa" Rated Utility Bond Yield
B2: lin | C2: Percent | H2: lin | I2: Percent | N2: MOODY'S PUBLIC UTILITY BOND YIELDS | V2: MOODY'S CORPORATE BOND YIELDS
B3: M | C3: Monthly | H3: M | I3: Monthly | M3: Source: | N3: 1980 - 2000, see Bond Yearly Averages | V3: 1980 - 2005,St. Louis Federal Reserve: Economic Research, http://research.stlouisfed.org.
B4: 1980-01-01 | C4: 1977-02-01 to 2023-06-01 | H4: 1980-01-01 | I4: 1953-04-01 to 2023-06-01 | N4: 2001 - forward, Mergent Bond Record, February 2006 and September 2010 | V4: 2006 - forward, Mergent Bond Record, February 2006 and September 2010
B5: Market Yield on U.S. Treasury Securities at 30-Year Constant Maturity, Quoted on an Investment Basis | H5: Market Yield on U.S. Treasury Securities at 20-Year Constant Maturity, Quoted on an Investment Basis
B6: Board of Governors of the Federal Reserve System (US) | H6: Board of Governors of the Federal Reserve System (US) | AC6: Month | AD6: A Spread | AE6: Baa Spread
B7: date | C7: value | H7: date | I7: value | N7: Aaa | O7: Aa | P7: A | Q7: Baa | R7: Avg | V7: Aaa | W7: Aa | X7: A | Y7: Baa | Z7: Avg | AD7: "A" Utility - 30 yr T | AE7: "Baa" Utility - 30 yr T
A8: =YEAR(B8) -> 1980 | B8: 1980-01-01 | C8: 10.6 | D8: =IF(ISNUMBER(C8),C8/100,"") -> 0.106 | G8: =YEAR(H8) -> 1980 | H8: 1980-01-01 | I8: 10.65 | J8: =IF(ISNUMBER(I8),I8/100,"") -> 0.1065 | L8: =TRUNC(YEAR(M8)) -> 1980 | M8: 1980-01-01 | T8: =L8 -> 1980 | U8: 1980-01-01 | V8: 0.1109 | Y8: 0.1242
A9: 1980 | B9: 1980-02-01 | C9: 12.13 | D9: 0.1213 | G9: 1980 | H9: 1980-02-01 | I9: 12.21 | J9: 0.1221 | L9: 1980 | M9: 1980-02-01 | T9: 1980 | U9: 1980-02-01 | V9: 0.1238 | Y9: 0.1357
A10: 1980 | B10: 1980-03-01 | C10: 12.34 | D10: 0.1234 | G10: 1980 | H10: 1980-03-01 | I10: 12.49 | J10: 0.1249 | L10: 1980 | M10: 1980-03-01 | T10: 1980 | U10: 1980-03-01 | V10: 0.1296 | Y10: 0.1445
A11: 1980 | B11: 1980-04-01 | C11: 11.4 | D11: 0.114 | G11: 1980 | H11: 1980-04-01 | I11: 11.41 | J11: 0.1141 | L11: 1980 | M11: 1980-04-01 | T11: 1980 | U11: 1980-04-01 | V11: 0.1204 | Y11: 0.1419
A12: 1980 | B12: 1980-05-01 | C12: 10.36 | D12: 0.1036 | G12: 1980 | H12: 1980-05-01 | I12: 10.44 | J12: 0.1044 | L12: 1980 | M12: 1980-05-01 | T12: 1980 | U12: 1980-05-01 | V12: 0.1099 | Y12: 0.1317
A13: 1980 | B13: 1980-06-01 | C13: 9.81 | D13: 0.0981 | G13: 1980 | H13: 1980-06-01 | I13: 9.89 | J13: 0.0989 | L13: 1980 | M13: 1980-06-01 | T13: 1980 | U13: 1980-06-01 | V13: 0.1058 | Y13: 0.1271
A14: 1980 | B14: 1980-07-01 | C14: 10.24 | D14: 0.1024 | G14: 1980 | H14: 1980-07-01 | I14: 10.32 | J14: 0.1032 | L14: 1980 | M14: 1980-07-01 | T14: 1980 | U14: 1980-07-01 | V14: 0.1107 | Y14: 0.1265
A15: 1980 | B15: 1980-08-01 | C15: 11 | D15: 0.11 | G15: 1980 | H15: 1980-08-01 | I15: 11.07 | J15: 0.1107 | L15: 1980 | M15: 1980-08-01 | T15: 1980 | U15: 1980-08-01 | V15: 0.1164 | Y15: 0.1315
A16: 1980 | B16: 1980-09-01 | C16: 11.34 | D16: 0.1134 | G16: 1980 | H16: 1980-09-01 | I16: 11.47 | J16: 0.1147 | L16: 1980 | M16: 1980-09-01 | T16: 1980 | U16: 1980-09-01 | V16: 0.1202 | Y16: 0.137
A17: 1980 | B17: 1980-10-01 | C17: 11.59 | D17: 0.1159 | G17: 1980 | H17: 1980-10-01 | I17: 11.75 | J17: 0.1175 | L17: 1980 | M17: 1980-10-01 | T17: 1980 | U17: 1980-10-01 | V17: 0.1231 | Y17: 0.1423
A18: 1980 | B18: 1980-11-01 | C18: 12.37 | D18: 0.1237 | G18: 1980 | H18: 1980-11-01 | I18: 12.44 | J18: 0.1244 | L18: 1980 | M18: 1980-11-01 | T18: 1980 | U18: 1980-11-01 | V18: 0.1297 | Y18: 0.1464
A19: 1980 | B19: 1980-12-01 | C19: 12.4 | D19: 0.124 | G19: 1980 | H19: 1980-12-01 | I19: 12.49 | J19: 0.1249 | L19: 1980 | M19: 1980-12-01 | T19: 1980 | U19: 1980-12-01 | V19: 0.1321 | Y19: 0.1514
A20: 1981 | B20: 1981-01-01 | C20: 12.14 | D20: 0.1214 | G20: 1981 | H20: 1981-01-01 | I20: 12.29 | J20: 0.1229 | L20: 1981 | M20: 1981-01-01 | T20: 1981 | U20: 1981-01-01 | V20: 0.1281 | Y20: 0.1503
A21: 1981 | B21: 1981-02-01 | C21: 12.8 | D21: 0.128 | G21: 1981 | H21: 1981-02-01 | I21: 12.98 | J21: 0.1298 | L21: 1981 | M21: 1981-02-01 | T21: 1981 | U21: 1981-02-01 | V21: 0.1335 | Y21: 0.1537
A22: 1981 | B22: 1981-03-01 | C22: 12.69 | D22: 0.1269 | G22: 1981 | H22: 1981-03-01 | I22: 12.94 | J22: 0.1294 | L22: 1981 | M22: 1981-03-01 | T22: 1981 | U22: 1981-03-01 | V22: 0.1333 | Y22: 0.1534
A23: 1981 | B23: 1981-04-01 | C23: 13.2 | D23: 0.132 | G23: 1981 | H23: 1981-04-01 | I23: 13.46 | J23: 0.1346 | L23: 1981 | M23: 1981-04-01 | T23: 1981 | U23: 1981-04-01 | V23: 0.1388 | Y23: 0.1556
A24: 1981 | B24: 1981-05-01 | C24: 13.6 | D24: 0.136 | G24: 1981 | H24: 1981-05-01 | I24: 13.82 | J24: 0.1382 | L24: 1981 | M24: 1981-05-01 | T24: 1981 | U24: 1981-05-01 | V24: 0.1432 | Y24: 0.1595
A25: 1981 | B25: 1981-06-01 | C25: 12.96 | D25: 0.1296 | G25: 1981 | H25: 1981-06-01 | I25: 13.2 | J25: 0.132 | L25: 1981 | M25: 1981-06-01 | T25: 1981 | U25: 1981-06-01 | V25: 0.1375 | Y25: 0.158
A26: 1981 | B26: 1981-07-01 | C26: 13.59 | D26: 0.1359 | G26: 1981 | H26: 1981-07-01 | I26: 13.92 | J26: 0.1392 | L26: 1981 | M26: 1981-07-01 | T26: 1981 | U26: 1981-07-01 | V26: 0.1438 | Y26: 0.1617
A27: 1981 | B27: 1981-08-01 | C27: 14.17 | D27: 0.1417 | G27: 1981 | H27: 1981-08-01 | I27: 14.52 | J27: 0.1452 | L27: 1981 | M27: 1981-08-01 | T27: 1981 | U27: 1981-08-01 | V27: 0.1489 | Y27: 0.1634
A28: 1981 | B28: 1981-09-01 | C28: 14.67 | D28: 0.1467 | G28: 1981 | H28: 1981-09-01 | I28: 15.07 | J28: 0.1507 | L28: 1981 | M28: 1981-09-01 | T28: 1981 | U28: 1981-09-01 | V28: 0.1549 | Y28: 0.1692
A29: 1981 | B29: 1981-10-01 | C29: 14.68 | D29: 0.1468 | G29: 1981 | H29: 1981-10-01 | I29: 15.13 | J29: 0.1513 | L29: 1981 | M29: 1981-10-01 | T29: 1981 | U29: 1981-10-01 | V29: 0.154 | Y29: 0.1711
A30: 1981 | B30: 1981-11-01 | C30: 13.35 | D30: 0.1335 | G30: 1981 | H30: 1981-11-01 | I30: 13.56 | J30: 0.1356 | L30: 1981 | M30: 1981-11-01 | T30: 1981 | U30: 1981-11-01 | V30: 0.1422 | Y30: 0.1639
A31: 1981 | B31: 1981-12-01 | C31: 13.45 | D31: 0.1345 | G31: 1981 | H31: 1981-12-01 | I31: 13.73 | J31: 0.1373 | L31: 1981 | M31: 1981-12-01 | T31: 1981 | U31: 1981-12-01 | V31: 0.1423 | Y31: 0.1655
A32: 1982 | B32: 1982-01-01 | C32: 14.22 | D32: 0.1422 | G32: 1982 | H32: 1982-01-01 | I32: 14.57 | J32: 0.1457 | L32: 1982 | M32: 1982-01-01 | T32: 1982 | U32: 1982-01-01 | V32: 0.1518 | Y32: 0.171
A33: 1982 | B33: 1982-02-01 | C33: 14.22 | D33: 0.1422 | G33: 1982 | H33: 1982-02-01 | I33: 14.48 | J33: 0.1448 | L33: 1982 | M33: 1982-02-01 | T33: 1982 | U33: 1982-02-01 | V33: 0.1527 | Y33: 0.1718
A34: 1982 | B34: 1982-03-01 | C34: 13.53 | D34: 0.1353 | G34: 1982 | H34: 1982-03-01 | I34: 13.75 | J34: 0.1375 | L34: 1982 | M34: 1982-03-01 | T34: 1982 | U34: 1982-03-01 | V34: 0.1458 | Y34: 0.1682
A35: 1982 | B35: 1982-04-01 | C35: 13.37 | D35: 0.1337 | G35: 1982 | H35: 1982-04-01 | I35: 13.57 | J35: 0.1357 | L35: 1982 | M35: 1982-04-01 | T35: 1982 | U35: 1982-04-01 | V35: 0.1446 | Y35: 0.1678
A36: 1982 | B36: 1982-05-01 | C36: 13.24 | D36: 0.1324 | G36: 1982 | H36: 1982-05-01 | I36: 13.46 | J36: 0.1346 | L36: 1982 | M36: 1982-05-01 | T36: 1982 | U36: 1982-05-01 | V36: 0.1426 | Y36: 0.1664
A37: 1982 | B37: 1982-06-01 | C37: 13.92 | D37: 0.1392 | G37: 1982 | H37: 1982-06-01 | I37: 14.18 | J37: 0.1418 | L37: 1982 | M37: 1982-06-01 | T37: 1982 | U37: 1982-06-01 | V37: 0.1481 | Y37: 0.1692
A38: 1982 | B38: 1982-07-01 | C38: 13.55 | D38: 0.1355 | G38: 1982 | H38: 1982-07-01 | I38: 13.76 | J38: 0.1376 | L38: 1982 | M38: 1982-07-01 | T38: 1982 | U38: 1982-07-01 | V38: 0.1461 | Y38: 0.168
A39: 1982 | B39: 1982-08-01 | C39: 12.77 | D39: 0.1277 | G39: 1982 | H39: 1982-08-01 | I39: 12.91 | J39: 0.1291 | L39: 1982 | M39: 1982-08-01 | T39: 1982 | U39: 1982-08-01 | V39: 0.1371 | Y39: 0.1632
A40: 1982 | B40: 1982-09-01 | C40: 12.07 | D40: 0.1207 | G40: 1982 | H40: 1982-09-01 | I40: 12.16 | J40: 0.1216 | L40: 1982 | M40: 1982-09-01 | T40: 1982 | U40: 1982-09-01 | V40: 0.1294 | Y40: 0.1563
A41: 1982 | B41: 1982-10-01 | C41: 11.17 | D41: 0.1117 | G41: 1982 | H41: 1982-10-01 | I41: 10.97 | J41: 0.1097 | L41: 1982 | M41: 1982-10-01 | T41: 1982 | U41: 1982-10-01 | V41: 0.1212 | Y41: 0.1473
A42: 1982 | B42: 1982-11-01 | C42: 10.54 | D42: 0.1054 | G42: 1982 | H42: 1982-11-01 | I42: 10.57 | J42: 0.1057 | L42: 1982 | M42: 1982-11-01 | T42: 1982 | U42: 1982-11-01 | V42: 0.1168 | Y42: 0.143
A43: 1982 | B43: 1982-12-01 | C43: 10.54 | D43: 0.1054 | G43: 1982 | H43: 1982-12-01 | I43: 10.62 | J43: 0.1062 | L43: 1982 | M43: 1982-12-01 | T43: 1982 | U43: 1982-12-01 | V43: 0.1183 | Y43: 0.1414
A44: 1983 | B44: 1983-01-01 | C44: 10.63 | D44: 0.1063 | G44: 1983 | H44: 1983-01-01 | I44: 10.78 | J44: 0.1078 | L44: 1983 | M44: 1983-01-01 | T44: 1983 | U44: 1983-01-01 | V44: 0.1179 | Y44: 0.1394
A45: 1983 | B45: 1983-02-01 | C45: 10.88 | D45: 0.1088 | G45: 1983 | H45: 1983-02-01 | I45: 11.03 | J45: 0.1103 | L45: 1983 | M45: 1983-02-01 | T45: 1983 | U45: 1983-02-01 | V45: 0.1201 | Y45: 0.1395
A46: 1983 | B46: 1983-03-01 | C46: 10.63 | D46: 0.1063 | G46: 1983 | H46: 1983-03-01 | I46: 10.8 | J46: 0.108 | L46: 1983 | M46: 1983-03-01 | T46: 1983 | U46: 1983-03-01 | V46: 0.1173 | Y46: 0.1361
A47: 1983 | B47: 1983-04-01 | C47: 10.48 | D47: 0.1048 | G47: 1983 | H47: 1983-04-01 | I47: 10.63 | J47: 0.1063 | L47: 1983 | M47: 1983-04-01 | T47: 1983 | U47: 1983-04-01 | V47: 0.1151 | Y47: 0.1329
A48: 1983 | B48: 1983-05-01 | C48: 10.53 | D48: 0.1053 | G48: 1983 | H48: 1983-05-01 | I48: 10.67 | J48: 0.1067 | L48: 1983 | M48: 1983-05-01 | T48: 1983 | U48: 1983-05-01 | V48: 0.1146 | Y48: 0.1309
A49: 1983 | B49: 1983-06-01 | C49: 10.93 | D49: 0.1093 | G49: 1983 | H49: 1983-06-01 | I49: 11.12 | J49: 0.1112 | L49: 1983 | M49: 1983-06-01 | T49: 1983 | U49: 1983-06-01 | V49: 0.1174 | Y49: 0.1337
A50: 1983 | B50: 1983-07-01 | C50: 11.4 | D50: 0.114 | G50: 1983 | H50: 1983-07-01 | I50: 11.59 | J50: 0.1159 | L50: 1983 | M50: 1983-07-01 | T50: 1983 | U50: 1983-07-01 | V50: 0.1215 | Y50: 0.1339
A51: 1983 | B51: 1983-08-01 | C51: 11.82 | D51: 0.1182 | G51: 1983 | H51: 1983-08-01 | I51: 11.96 | J51: 0.1196 | L51: 1983 | M51: 1983-08-01 | T51: 1983 | U51: 1983-08-01 | V51: 0.1251 | Y51: 0.1364
A52: 1983 | B52: 1983-09-01 | C52: 11.63 | D52: 0.1163 | G52: 1983 | H52: 1983-09-01 | I52: 11.82 | J52: 0.1182 | L52: 1983 | M52: 1983-09-01 | T52: 1983 | U52: 1983-09-01 | V52: 0.1237 | Y52: 0.1355
A53: 1983 | B53: 1983-10-01 | C53: 11.58 | D53: 0.1158 | G53: 1983 | H53: 1983-10-01 | I53: 11.77 | J53: 0.1177 | L53: 1983 | M53: 1983-10-01 | T53: 1983 | U53: 1983-10-01 | V53: 0.1225 | Y53: 0.1346
A54: 1983 | B54: 1983-11-01 | C54: 11.75 | D54: 0.1175 | G54: 1983 | H54: 1983-11-01 | I54: 11.92 | J54: 0.1192 | L54: 1983 | M54: 1983-11-01 | T54: 1983 | U54: 1983-11-01 | V54: 0.1241 | Y54: 0.1361
A55: 1983 | B55: 1983-12-01 | C55: 11.88 | D55: 0.1188 | G55: 1983 | H55: 1983-12-01 | I55: 12.02 | J55: 0.1202 | L55: 1983 | M55: 1983-12-01 | T55: 1983 | U55: 1983-12-01 | V55: 0.1257 | Y55: 0.1375
A56: 1984 | B56: 1984-01-01 | C56: 11.75 | D56: 0.1175 | G56: 1984 | H56: 1984-01-01 | I56: 11.82 | J56: 0.1182 | L56: 1984 | M56: 1984-01-01 | T56: 1984 | U56: 1984-01-01 | V56: 0.122 | Y56: 0.1365
A57: 1984 | B57: 1984-02-01 | C57: 11.95 | D57: 0.1195 | G57: 1984 | H57: 1984-02-01 | I57: 12 | J57: 0.12 | L57: 1984 | M57: 1984-02-01 | T57: 1984 | U57: 1984-02-01 | V57: 0.1208 | Y57: 0.1359
A58: 1984 | B58: 1984-03-01 | C58: 12.38 | D58: 0.1238 | G58: 1984 | H58: 1984-03-01 | I58: 12.45 | J58: 0.1245 | L58: 1984 | M58: 1984-03-01 | T58: 1984 | U58: 1984-03-01 | V58: 0.1257 | Y58: 0.1399
A59: 1984 | B59: 1984-04-01 | C59: 12.65 | D59: 0.1265 | G59: 1984 | H59: 1984-04-01 | I59: 12.65 | J59: 0.1265 | L59: 1984 | M59: 1984-04-01 | T59: 1984 | U59: 1984-04-01 | V59: 0.1281 | Y59: 0.1431
A60: 1984 | B60: 1984-05-01 | C60: 13.43 | D60: 0.1343 | G60: 1984 | H60: 1984-05-01 | I60: 13.43 | J60: 0.1343 | L60: 1984 | M60: 1984-05-01 | T60: 1984 | U60: 1984-05-01 | V60: 0.1328 | Y60: 0.1474
A61: 1984 | B61: 1984-06-01 | C61: 13.44 | D61: 0.1344 | G61: 1984 | H61: 1984-06-01 | I61: 13.54 | J61: 0.1354 | L61: 1984 | M61: 1984-06-01 | T61: 1984 | U61: 1984-06-01 | V61: 0.1355 | Y61: 0.1505
A62: 1984 | B62: 1984-07-01 | C62: 13.21 | D62: 0.1321 | G62: 1984 | H62: 1984-07-01 | I62: 13.36 | J62: 0.1336 | L62: 1984 | M62: 1984-07-01 | T62: 1984 | U62: 1984-07-01 | V62: 0.1344 | Y62: 0.1515
A63: 1984 | B63: 1984-08-01 | C63: 12.54 | D63: 0.1254 | G63: 1984 | H63: 1984-08-01 | I63: 12.71 | J63: 0.1271 | L63: 1984 | M63: 1984-08-01 | T63: 1984 | U63: 1984-08-01 | V63: 0.1287 | Y63: 0.1463
A64: 1984 | B64: 1984-09-01 | C64: 12.29 | D64: 0.1229 | G64: 1984 | H64: 1984-09-01 | I64: 12.42 | J64: 0.1242 | L64: 1984 | M64: 1984-09-01 | T64: 1984 | U64: 1984-09-01 | V64: 0.1266 | Y64: 0.1435
A65: 1984 | B65: 1984-10-01 | C65: 11.98 | D65: 0.1198 | G65: 1984 | H65: 1984-10-01 | I65: 12.04 | J65: 0.1204 | L65: 1984 | M65: 1984-10-01 | T65: 1984 | U65: 1984-10-01 | V65: 0.1263 | Y65: 0.1394
A66: 1984 | B66: 1984-11-01 | C66: 11.56 | D66: 0.1156 | G66: 1984 | H66: 1984-11-01 | I66: 11.66 | J66: 0.1166 | L66: 1984 | M66: 1984-11-01 | T66: 1984 | U66: 1984-11-01 | V66: 0.1229 | Y66: 0.1348
A67: 1984 | B67: 1984-12-01 | C67: 11.52 | D67: 0.1152 | G67: 1984 | H67: 1984-12-01 | I67: 11.64 | J67: 0.1164 | L67: 1984 | M67: 1984-12-01 | T67: 1984 | U67: 1984-12-01 | V67: 0.1213 | Y67: 0.134
A68: 1985 | B68: 1985-01-01 | C68: 11.45 | D68: 0.1145 | G68: 1985 | H68: 1985-01-01 | I68: 11.58 | J68: 0.1158 | L68: 1985 | M68: 1985-01-01 | T68: 1985 | U68: 1985-01-01 | V68: 0.1208 | Y68: 0.1326
A69: 1985 | B69: 1985-02-01 | C69: 11.47 | D69: 0.1147 | G69: 1985 | H69: 1985-02-01 | I69: 11.7 | J69: 0.117 | L69: 1985 | M69: 1985-02-01 | T69: 1985 | U69: 1985-02-01 | V69: 0.1213 | Y69: 0.1323
A70: 1985 | B70: 1985-03-01 | C70: 11.81 | D70: 0.1181 | G70: 1985 | H70: 1985-03-01 | I70: 12.06 | J70: 0.1206 | L70: 1985 | M70: 1985-03-01 | T70: 1985 | U70: 1985-03-01 | V70: 0.1256 | Y70: 0.1369
A71: 1985 | B71: 1985-04-01 | C71: 11.47 | D71: 0.1147 | G71: 1985 | H71: 1985-04-01 | I71: 11.69 | J71: 0.1169 | L71: 1985 | M71: 1985-04-01 | T71: 1985 | U71: 1985-04-01 | V71: 0.1223 | Y71: 0.1351
A72: =YEAR(B72) -> 1985 | B72: 1985-05-01 | C72: 11.05 | D72: =IF(ISNUMBER(C72),C72/100,"") -> 0.1105 | G72: =YEAR(H72) -> 1985 | H72: 1985-05-01 | I72: 11.19 | J72: =IF(ISNUMBER(I72),I72/100,"") -> 0.1119 | L72: =TRUNC(YEAR(M72)) -> 1985 | M72: 1985-05-01 | T72: =L72 -> 1985 | U72: 1985-05-01 | V72: 0.1172 | Y72: 0.1315
A73: 1985 | B73: 1985-06-01 | C73: 10.45 | D73: 0.1045 | G73: 1985 | H73: 1985-06-01 | I73: 10.57 | J73: 0.1057 | L73: 1985 | M73: 1985-06-01 | T73: 1985 | U73: 1985-06-01 | V73: 0.1094 | Y73: 0.124
A74: 1985 | B74: 1985-07-01 | C74: 10.5 | D74: 0.105 | G74: 1985 | H74: 1985-07-01 | I74: 10.68 | J74: 0.1068 | L74: 1985 | M74: 1985-07-01 | T74: 1985 | U74: 1985-07-01 | V74: 0.1097 | Y74: 0.1243
A75: 1985 | B75: 1985-08-01 | C75: 10.56 | D75: 0.1056 | G75: 1985 | H75: 1985-08-01 | I75: 10.73 | J75: 0.1073 | L75: 1985 | M75: 1985-08-01 | T75: 1985 | U75: 1985-08-01 | V75: 0.1105 | Y75: 0.125
A76: 1985 | B76: 1985-09-01 | C76: 10.61 | D76: 0.1061 | G76: 1985 | H76: 1985-09-01 | I76: 10.8 | J76: 0.108 | L76: 1985 | M76: 1985-09-01 | T76: 1985 | U76: 1985-09-01 | V76: 0.1107 | Y76: 0.1248
A77: 1985 | B77: 1985-10-01 | C77: 10.5 | D77: 0.105 | G77: 1985 | H77: 1985-10-01 | I77: 10.67 | J77: 0.1067 | L77: 1985 | M77: 1985-10-01 | T77: 1985 | U77: 1985-10-01 | V77: 0.1102 | Y77: 0.1236
A78: 1985 | B78: 1985-11-01 | C78: 10.06 | D78: 0.1006 | G78: 1985 | H78: 1985-11-01 | I78: 10.24 | J78: 0.1024 | L78: 1985 | M78: 1985-11-01 | T78: 1985 | U78: 1985-11-01 | V78: 0.1055 | Y78: 0.1199
A79: 1985 | B79: 1985-12-01 | C79: 9.54 | D79: 0.0954 | G79: 1985 | H79: 1985-12-01 | I79: 9.75 | J79: 0.0975 | L79: 1985 | M79: 1985-12-01 | T79: 1985 | U79: 1985-12-01 | V79: 0.1016 | Y79: 0.1158
A80: 1986 | B80: 1986-01-01 | C80: 9.4 | D80: 0.094 | G80: 1986 | H80: 1986-01-01 | I80: 9.59 | J80: 0.0959 | L80: 1986 | M80: 1986-01-01 | T80: 1986 | U80: 1986-01-01 | V80: 0.1005 | Y80: 0.1144
A81: 1986 | B81: 1986-02-01 | C81: 8.93 | D81: 0.0893 | G81: 1986 | H81: 1986-02-01 | I81: 9.08 | J81: 0.0908 | L81: 1986 | M81: 1986-02-01 | T81: 1986 | U81: 1986-02-01 | V81: 0.0967 | Y81: 0.1111
A82: 1986 | B82: 1986-03-01 | C82: 7.96 | D82: 0.0796 | G82: 1986 | H82: 1986-03-01 | I82: 8.09 | J82: 0.0809 | L82: 1986 | M82: 1986-03-01 | T82: 1986 | U82: 1986-03-01 | V82: 0.09 | Y82: 0.105
A83: 1986 | B83: 1986-04-01 | C83: 7.39 | D83: 0.0739 | G83: 1986 | H83: 1986-04-01 | I83: 7.5 | J83: 0.075 | L83: 1986 | M83: 1986-04-01 | T83: 1986 | U83: 1986-04-01 | V83: 0.0879 | Y83: 0.1019
A84: 1986 | B84: 1986-05-01 | C84: 7.52 | D84: 0.0752 | G84: 1986 | H84: 1986-05-01 | I84: 7.81 | J84: 0.0781 | L84: 1986 | M84: 1986-05-01 | T84: 1986 | U84: 1986-05-01 | V84: 0.0909 | Y84: 0.1029
A85: 1986 | B85: 1986-06-01 | C85: 7.57 | D85: 0.0757 | G85: 1986 | H85: 1986-06-01 | I85: 7.69 | J85: 0.0769 | L85: 1986 | M85: 1986-06-01 | T85: 1986 | U85: 1986-06-01 | V85: 0.0913 | Y85: 0.1034
A86: 1986 | B86: 1986-07-01 | C86: 7.27 | D86: 0.0727 | G86: 1986 | H86: 1986-07-01 | I86: 7.29 | J86: 0.0729 | L86: 1986 | M86: 1986-07-01 | T86: 1986 | U86: 1986-07-01 | V86: 0.0888 | Y86: 0.1016
A87: 1986 | B87: 1986-08-01 | C87: 7.33 | D87: 0.0733 | G87: 1986 | H87: 1986-08-01 | I87: 7.28 | J87: 0.0728 | L87: 1986 | M87: 1986-08-01 | T87: 1986 | U87: 1986-08-01 | V87: 0.0872 | Y87: 0.1018
A88: 1986 | B88: 1986-09-01 | C88: 7.62 | D88: 0.0762 | G88: 1986 | H88: 1986-09-01 | I88: 7.56 | J88: 0.0756 | L88: 1986 | M88: 1986-09-01 | T88: 1986 | U88: 1986-09-01 | V88: 0.0889 | Y88: 0.102
A89: 1986 | B89: 1986-10-01 | C89: 7.7 | D89: 0.077 | G89: 1986 | H89: 1986-10-01 | I89: 7.61 | J89: 0.0761 | L89: 1986 | M89: 1986-10-01 | T89: 1986 | U89: 1986-10-01 | V89: 0.0886 | Y89: 0.1024
A90: 1986 | B90: 1986-11-01 | C90: 7.52 | D90: 0.0752 | G90: 1986 | H90: 1986-11-01 | I90: 7.42 | J90: 0.0742 | L90: 1986 | M90: 1986-11-01 | T90: 1986 | U90: 1986-11-01 | V90: 0.0868 | Y90: 0.1007
A91: 1986 | B91: 1986-12-01 | C91: 7.37 | D91: 0.0737 | G91: 1986 | H91: 1986-12-01 | I91: 7.28 | J91: 0.0728 | L91: 1986 | M91: 1986-12-01 | T91: 1986 | U91: 1986-12-01 | V91: 0.0849 | Y91: 0.0997
A92: 1987 | B92: 1987-01-01 | C92: 7.39 | D92: 0.0739 | G92: 1987 | H92: 1987-01-01 | I92: =NA() ->  | L92: 1987 | M92: 1987-01-01 | T92: 1987 | U92: 1987-01-01 | V92: 0.0836 | Y92: 0.0972
A93: 1987 | B93: 1987-02-01 | C93: 7.54 | D93: 0.0754 | G93: 1987 | H93: 1987-02-01 | I93: =NA() ->  | L93: 1987 | M93: 1987-02-01 | T93: 1987 | U93: 1987-02-01 | V93: 0.0838 | Y93: 0.0965
A94: 1987 | B94: 1987-03-01 | C94: 7.55 | D94: 0.0755 | G94: 1987 | H94: 1987-03-01 | I94: =NA() ->  | L94: 1987 | M94: 1987-03-01 | T94: 1987 | U94: 1987-03-01 | V94: 0.0836 | Y94: 0.0961
A95: 1987 | B95: 1987-04-01 | C95: 8.25 | D95: 0.0825 | G95: 1987 | H95: 1987-04-01 | I95: =NA() ->  | L95: 1987 | M95: 1987-04-01 | T95: 1987 | U95: 1987-04-01 | V95: 0.0885 | Y95: 0.1004
A96: 1987 | B96: 1987-05-01 | C96: 8.78 | D96: 0.0878 | G96: 1987 | H96: 1987-05-01 | I96: =NA() ->  | L96: 1987 | M96: 1987-05-01 | T96: 1987 | U96: 1987-05-01 | V96: 0.0933 | Y96: 0.1051
A97: 1987 | B97: 1987-06-01 | C97: 8.57 | D97: 0.0857 | G97: 1987 | H97: 1987-06-01 | I97: =NA() ->  | L97: 1987 | M97: 1987-06-01 | T97: 1987 | U97: 1987-06-01 | V97: 0.0932 | Y97: 0.1052
A98: 1987 | B98: 1987-07-01 | C98: 8.64 | D98: 0.0864 | G98: 1987 | H98: 1987-07-01 | I98: =NA() ->  | L98: 1987 | M98: 1987-07-01 | T98: 1987 | U98: 1987-07-01 | V98: 0.0942 | Y98: 0.1061
A99: 1987 | B99: 1987-08-01 | C99: 8.97 | D99: 0.0897 | G99: 1987 | H99: 1987-08-01 | I99: =NA() ->  | L99: 1987 | M99: 1987-08-01 | T99: 1987 | U99: 1987-08-01 | V99: 0.0967 | Y99: 0.108
A100: 1987 | B100: 1987-09-01 | C100: 9.59 | D100: 0.0959 | G100: 1987 | H100: 1987-09-01 | I100: =NA() ->  | L100: 1987 | M100: 1987-09-01 | T100: 1987 | U100: 1987-09-01 | V100: 0.1018 | Y100: 0.1131
A101: 1987 | B101: 1987-10-01 | C101: 9.61 | D101: 0.0961 | G101: 1987 | H101: 1987-10-01 | I101: =NA() ->  | L101: 1987 | M101: 1987-10-01 | T101: 1987 | U101: 1987-10-01 | V101: 0.1052 | Y101: 0.1162
A102: 1987 | B102: 1987-11-01 | C102: 8.95 | D102: 0.0895 | G102: 1987 | H102: 1987-11-01 | I102: =NA() ->  | L102: 1987 | M102: 1987-11-01 | T102: 1987 | U102: 1987-11-01 | V102: 0.1001 | Y102: 0.1123
A103: 1987 | B103: 1987-12-01 | C103: 9.12 | D103: 0.0912 | G103: 1987 | H103: 1987-12-01 | I103: =NA() ->  | L103: 1987 | M103: 1987-12-01 | T103: 1987 | U103: 1987-12-01 | V103: 0.1011 | Y103: 0.1129
A104: 1988 | B104: 1988-01-01 | C104: 8.83 | D104: 0.0883 | G104: 1988 | H104: 1988-01-01 | I104: =NA() ->  | L104: 1988 | M104: 1988-01-01 | T104: 1988 | U104: 1988-01-01 | V104: 0.0988 | Y104: 0.1107
A105: 1988 | B105: 1988-02-01 | C105: 8.43 | D105: 0.0843 | G105: 1988 | H105: 1988-02-01 | I105: =NA() ->  | L105: 1988 | M105: 1988-02-01 | T105: 1988 | U105: 1988-02-01 | V105: 0.094 | Y105: 0.1062
A106: 1988 | B106: 1988-03-01 | C106: 8.63 | D106: 0.0863 | G106: 1988 | H106: 1988-03-01 | I106: =NA() ->  | L106: 1988 | M106: 1988-03-01 | T106: 1988 | U106: 1988-03-01 | V106: 0.0939 | Y106: 0.1057
A107: 1988 | B107: 1988-04-01 | C107: 8.95 | D107: 0.0895 | G107: 1988 | H107: 1988-04-01 | I107: =NA() ->  | L107: 1988 | M107: 1988-04-01 | T107: 1988 | U107: 1988-04-01 | V107: 0.0967 | Y107: 0.109
A108: 1988 | B108: 1988-05-01 | C108: 9.23 | D108: 0.0923 | G108: 1988 | H108: 1988-05-01 | I108: =NA() ->  | L108: 1988 | M108: 1988-05-01 | T108: 1988 | U108: 1988-05-01 | V108: 0.099 | Y108: 0.1104
A109: 1988 | B109: 1988-06-01 | C109: 9 | D109: 0.09 | G109: 1988 | H109: 1988-06-01 | I109: =NA() ->  | L109: 1988 | M109: 1988-06-01 | T109: 1988 | U109: 1988-06-01 | V109: 0.0986 | Y109: 0.11
A110: 1988 | B110: 1988-07-01 | C110: 9.14 | D110: 0.0914 | G110: 1988 | H110: 1988-07-01 | I110: =NA() ->  | L110: 1988 | M110: 1988-07-01 | T110: 1988 | U110: 1988-07-01 | V110: 0.0996 | Y110: 0.1111
A111: 1988 | B111: 1988-08-01 | C111: 9.32 | D111: 0.0932 | G111: 1988 | H111: 1988-08-01 | I111: =NA() ->  | L111: 1988 | M111: 1988-08-01 | T111: 1988 | U111: 1988-08-01 | V111: 0.1011 | Y111: 0.1121
A112: 1988 | B112: 1988-09-01 | C112: 9.06 | D112: 0.0906 | G112: 1988 | H112: 1988-09-01 | I112: =NA() ->  | L112: 1988 | M112: 1988-09-01 | T112: 1988 | U112: 1988-09-01 | V112: 0.0982 | Y112: 0.109
A113: 1988 | B113: 1988-10-01 | C113: 8.89 | D113: 0.0889 | G113: 1988 | H113: 1988-10-01 | I113: =NA() ->  | L113: 1988 | M113: 1988-10-01 | T113: 1988 | U113: 1988-10-01 | V113: 0.0951 | Y113: 0.1041
A114: 1988 | B114: 1988-11-01 | C114: 9.02 | D114: 0.0902 | G114: 1988 | H114: 1988-11-01 | I114: =NA() ->  | L114: 1988 | M114: 1988-11-01 | T114: 1988 | U114: 1988-11-01 | V114: 0.0945 | Y114: 0.1048
A115: 1988 | B115: 1988-12-01 | C115: 9.01 | D115: 0.0901 | G115: 1988 | H115: 1988-12-01 | I115: =NA() ->  | L115: 1988 | M115: 1988-12-01 | T115: 1988 | U115: 1988-12-01 | V115: 0.0957 | Y115: 0.1065
A116: 1989 | B116: 1989-01-01 | C116: 8.93 | D116: 0.0893 | G116: 1989 | H116: 1989-01-01 | I116: =NA() ->  | L116: 1989 | M116: 1989-01-01 | T116: 1989 | U116: 1989-01-01 | V116: 0.0962 | Y116: 0.1065
A117: 1989 | B117: 1989-02-01 | C117: 9.01 | D117: 0.0901 | G117: 1989 | H117: 1989-02-01 | I117: =NA() ->  | L117: 1989 | M117: 1989-02-01 | T117: 1989 | U117: 1989-02-01 | V117: 0.0964 | Y117: 0.1061
A118: 1989 | B118: 1989-03-01 | C118: 9.17 | D118: 0.0917 | G118: 1989 | H118: 1989-03-01 | I118: =NA() ->  | L118: 1989 | M118: 1989-03-01 | T118: 1989 | U118: 1989-03-01 | V118: 0.098 | Y118: 0.1067
A119: 1989 | B119: 1989-04-01 | C119: 9.03 | D119: 0.0903 | G119: 1989 | H119: 1989-04-01 | I119: =NA() ->  | L119: 1989 | M119: 1989-04-01 | T119: 1989 | U119: 1989-04-01 | V119: 0.0979 | Y119: 0.1061
A120: 1989 | B120: 1989-05-01 | C120: 8.83 | D120: 0.0883 | G120: 1989 | H120: 1989-05-01 | I120: =NA() ->  | L120: 1989 | M120: 1989-05-01 | T120: 1989 | U120: 1989-05-01 | V120: 0.0957 | Y120: 0.1046
A121: 1989 | B121: 1989-06-01 | C121: 8.27 | D121: 0.0827 | G121: 1989 | H121: 1989-06-01 | I121: =NA() ->  | L121: 1989 | M121: 1989-06-01 | T121: 1989 | U121: 1989-06-01 | V121: 0.091 | Y121: 0.1003
A122: 1989 | B122: 1989-07-01 | C122: 8.08 | D122: 0.0808 | G122: 1989 | H122: 1989-07-01 | I122: =NA() ->  | L122: 1989 | M122: 1989-07-01 | T122: 1989 | U122: 1989-07-01 | V122: 0.0893 | Y122: 0.0987
A123: 1989 | B123: 1989-08-01 | C123: 8.12 | D123: 0.0812 | G123: 1989 | H123: 1989-08-01 | I123: =NA() ->  | L123: 1989 | M123: 1989-08-01 | T123: 1989 | U123: 1989-08-01 | V123: 0.0896 | Y123: 0.0988
A124: 1989 | B124: 1989-09-01 | C124: 8.15 | D124: 0.0815 | G124: 1989 | H124: 1989-09-01 | I124: =NA() ->  | L124: 1989 | M124: 1989-09-01 | T124: 1989 | U124: 1989-09-01 | V124: 0.0901 | Y124: 0.0991
A125: 1989 | B125: 1989-10-01 | C125: 8 | D125: 0.08 | G125: 1989 | H125: 1989-10-01 | I125: =NA() ->  | L125: 1989 | M125: 1989-10-01 | T125: 1989 | U125: 1989-10-01 | V125: 0.0892 | Y125: 0.0981
A126: 1989 | B126: 1989-11-01 | C126: 7.9 | D126: 0.079 | G126: 1989 | H126: 1989-11-01 | I126: =NA() ->  | L126: 1989 | M126: 1989-11-01 | T126: 1989 | U126: 1989-11-01 | V126: 0.0889 | Y126: 0.0981
A127: 1989 | B127: 1989-12-01 | C127: 7.9 | D127: 0.079 | G127: 1989 | H127: 1989-12-01 | I127: =NA() ->  | L127: 1989 | M127: 1989-12-01 | T127: 1989 | U127: 1989-12-01 | V127: 0.0886 | Y127: 0.0982
A128: 1990 | B128: 1990-01-01 | C128: 8.26 | D128: 0.0826 | G128: 1990 | H128: 1990-01-01 | I128: =NA() ->  | L128: 1990 | M128: 1990-01-01 | T128: 1990 | U128: 1990-01-01 | V128: 0.0899 | Y128: 0.0994
A129: 1990 | B129: 1990-02-01 | C129: 8.5 | D129: 0.085 | G129: 1990 | H129: 1990-02-01 | I129: =NA() ->  | L129: 1990 | M129: 1990-02-01 | T129: 1990 | U129: 1990-02-01 | V129: 0.0922 | Y129: 0.1014
A130: 1990 | B130: 1990-03-01 | C130: 8.56 | D130: 0.0856 | G130: 1990 | H130: 1990-03-01 | I130: =NA() ->  | L130: 1990 | M130: 1990-03-01 | T130: 1990 | U130: 1990-03-01 | V130: 0.0937 | Y130: 0.1021
A131: 1990 | B131: 1990-04-01 | C131: 8.76 | D131: 0.0876 | G131: 1990 | H131: 1990-04-01 | I131: =NA() ->  | L131: 1990 | M131: 1990-04-01 | T131: 1990 | U131: 1990-04-01 | V131: 0.0946 | Y131: 0.103
A132: 1990 | B132: 1990-05-01 | C132: 8.73 | D132: 0.0873 | G132: 1990 | H132: 1990-05-01 | I132: =NA() ->  | L132: 1990 | M132: 1990-05-01 | T132: 1990 | U132: 1990-05-01 | V132: 0.0947 | Y132: 0.1041
A133: 1990 | B133: 1990-06-01 | C133: 8.46 | D133: 0.0846 | G133: 1990 | H133: 1990-06-01 | I133: =NA() ->  | L133: 1990 | M133: 1990-06-01 | T133: 1990 | U133: 1990-06-01 | V133: 0.0926 | Y133: 0.1022
A134: 1990 | B134: 1990-07-01 | C134: 8.5 | D134: 0.085 | G134: 1990 | H134: 1990-07-01 | I134: =NA() ->  | L134: 1990 | M134: 1990-07-01 | T134: 1990 | U134: 1990-07-01 | V134: 0.0924 | Y134: 0.102
A135: 1990 | B135: 1990-08-01 | C135: 8.86 | D135: 0.0886 | G135: 1990 | H135: 1990-08-01 | I135: =NA() ->  | L135: 1990 | M135: 1990-08-01 | T135: 1990 | U135: 1990-08-01 | V135: 0.0941 | Y135: 0.1041
A136: =YEAR(B136) -> 1990 | B136: 1990-09-01 | C136: 9.03 | D136: =IF(ISNUMBER(C136),C136/100,"") -> 0.0903 | G136: =YEAR(H136) -> 1990 | H136: 1990-09-01 | I136: =NA() ->  | J136: =IF(ISNUMBER(I136),I136/100,"") ->  | L136: =TRUNC(YEAR(M136)) -> 1990 | M136: 1990-09-01 | T136: =L136 -> 1990 | U136: 1990-09-01 | V136: 0.0956 | Y136: 0.1064
A137: 1990 | B137: 1990-10-01 | C137: 8.86 | D137: 0.0886 | G137: 1990 | H137: 1990-10-01 | I137: =NA() ->  | L137: 1990 | M137: 1990-10-01 | T137: 1990 | U137: 1990-10-01 | V137: 0.0953 | Y137: 0.1074
A138: 1990 | B138: 1990-11-01 | C138: 8.54 | D138: 0.0854 | G138: 1990 | H138: 1990-11-01 | I138: =NA() ->  | L138: 1990 | M138: 1990-11-01 | T138: 1990 | U138: 1990-11-01 | V138: 0.093 | Y138: 0.1062
A139: 1990 | B139: 1990-12-01 | C139: 8.24 | D139: 0.0824 | G139: 1990 | H139: 1990-12-01 | I139: =NA() ->  | L139: 1990 | M139: 1990-12-01 | T139: 1990 | U139: 1990-12-01 | V139: 0.0905 | Y139: 0.1043
A140: 1991 | B140: 1991-01-01 | C140: 8.27 | D140: 0.0827 | G140: 1991 | H140: 1991-01-01 | I140: =NA() ->  | L140: 1991 | M140: 1991-01-01 | T140: 1991 | U140: 1991-01-01 | V140: 0.0904 | Y140: 0.1045
A141: 1991 | B141: 1991-02-01 | C141: 8.03 | D141: 0.0803 | G141: 1991 | H141: 1991-02-01 | I141: =NA() ->  | L141: 1991 | M141: 1991-02-01 | T141: 1991 | U141: 1991-02-01 | V141: 0.0883 | Y141: 0.1007
A142: 1991 | B142: 1991-03-01 | C142: 8.29 | D142: 0.0829 | G142: 1991 | H142: 1991-03-01 | I142: =NA() ->  | L142: 1991 | M142: 1991-03-01 | T142: 1991 | U142: 1991-03-01 | V142: 0.0893 | Y142: 0.1009
A143: 1991 | B143: 1991-04-01 | C143: 8.21 | D143: 0.0821 | G143: 1991 | H143: 1991-04-01 | I143: =NA() ->  | L143: 1991 | M143: 1991-04-01 | T143: 1991 | U143: 1991-04-01 | V143: 0.0886 | Y143: 0.0994
A144: 1991 | B144: 1991-05-01 | C144: 8.27 | D144: 0.0827 | G144: 1991 | H144: 1991-05-01 | I144: =NA() ->  | L144: 1991 | M144: 1991-05-01 | T144: 1991 | U144: 1991-05-01 | V144: 0.0886 | Y144: 0.0986
A145: 1991 | B145: 1991-06-01 | C145: 8.47 | D145: 0.0847 | G145: 1991 | H145: 1991-06-01 | I145: =NA() ->  | L145: 1991 | M145: 1991-06-01 | T145: 1991 | U145: 1991-06-01 | V145: 0.0901 | Y145: 0.0996
A146: 1991 | B146: 1991-07-01 | C146: 8.45 | D146: 0.0845 | G146: 1991 | H146: 1991-07-01 | I146: =NA() ->  | L146: 1991 | M146: 1991-07-01 | T146: 1991 | U146: 1991-07-01 | V146: 0.09 | Y146: 0.0989
A147: 1991 | B147: 1991-08-01 | C147: 8.14 | D147: 0.0814 | G147: 1991 | H147: 1991-08-01 | I147: =NA() ->  | L147: 1991 | M147: 1991-08-01 | T147: 1991 | U147: 1991-08-01 | V147: 0.0875 | Y147: 0.0965
A148: 1991 | B148: 1991-09-01 | C148: 7.95 | D148: 0.0795 | G148: 1991 | H148: 1991-09-01 | I148: =NA() ->  | L148: 1991 | M148: 1991-09-01 | T148: 1991 | U148: 1991-09-01 | V148: 0.0861 | Y148: 0.0951
A149: 1991 | B149: 1991-10-01 | C149: 7.93 | D149: 0.0793 | G149: 1991 | H149: 1991-10-01 | I149: =NA() ->  | L149: 1991 | M149: 1991-10-01 | T149: 1991 | U149: 1991-10-01 | V149: 0.0855 | Y149: 0.0949
A150: 1991 | B150: 1991-11-01 | C150: 7.92 | D150: 0.0792 | G150: 1991 | H150: 1991-11-01 | I150: =NA() ->  | L150: 1991 | M150: 1991-11-01 | T150: 1991 | U150: 1991-11-01 | V150: 0.0848 | Y150: 0.0945
A151: 1991 | B151: 1991-12-01 | C151: 7.7 | D151: 0.077 | G151: 1991 | H151: 1991-12-01 | I151: =NA() ->  | L151: 1991 | M151: 1991-12-01 | T151: 1991 | U151: 1991-12-01 | V151: 0.0831 | Y151: 0.0926
A152: 1992 | B152: 1992-01-01 | C152: 7.58 | D152: 0.0758 | G152: 1992 | H152: 1992-01-01 | I152: =NA() ->  | L152: 1992 | M152: 1992-01-01 | T152: 1992 | U152: 1992-01-01 | V152: 0.082 | Y152: 0.0913
A153: 1992 | B153: 1992-02-01 | C153: 7.85 | D153: 0.0785 | G153: 1992 | H153: 1992-02-01 | I153: =NA() ->  | L153: 1992 | M153: 1992-02-01 | T153: 1992 | U153: 1992-02-01 | V153: 0.0829 | Y153: 0.0923
A154: 1992 | B154: 1992-03-01 | C154: 7.97 | D154: 0.0797 | G154: 1992 | H154: 1992-03-01 | I154: =NA() ->  | L154: 1992 | M154: 1992-03-01 | T154: 1992 | U154: 1992-03-01 | V154: 0.0835 | Y154: 0.0925
A155: 1992 | B155: 1992-04-01 | C155: 7.96 | D155: 0.0796 | G155: 1992 | H155: 1992-04-01 | I155: =NA() ->  | L155: 1992 | M155: 1992-04-01 | T155: 1992 | U155: 1992-04-01 | V155: 0.0833 | Y155: 0.0921
A156: 1992 | B156: 1992-05-01 | C156: 7.89 | D156: 0.0789 | G156: 1992 | H156: 1992-05-01 | I156: =NA() ->  | L156: 1992 | M156: 1992-05-01 | T156: 1992 | U156: 1992-05-01 | V156: 0.0828 | Y156: 0.0913
A157: 1992 | B157: 1992-06-01 | C157: 7.84 | D157: 0.0784 | G157: 1992 | H157: 1992-06-01 | I157: =NA() ->  | L157: 1992 | M157: 1992-06-01 | T157: 1992 | U157: 1992-06-01 | V157: 0.0822 | Y157: 0.0905
A158: 1992 | B158: 1992-07-01 | C158: 7.6 | D158: 0.076 | G158: 1992 | H158: 1992-07-01 | I158: =NA() ->  | L158: 1992 | M158: 1992-07-01 | T158: 1992 | U158: 1992-07-01 | V158: 0.0807 | Y158: 0.0884
A159: 1992 | B159: 1992-08-01 | C159: 7.39 | D159: 0.0739 | G159: 1992 | H159: 1992-08-01 | I159: =NA() ->  | L159: 1992 | M159: 1992-08-01 | T159: 1992 | U159: 1992-08-01 | V159: 0.0795 | Y159: 0.0865
A160: 1992 | B160: 1992-09-01 | C160: 7.34 | D160: 0.0734 | G160: 1992 | H160: 1992-09-01 | I160: =NA() ->  | L160: 1992 | M160: 1992-09-01 | T160: 1992 | U160: 1992-09-01 | V160: 0.0792 | Y160: 0.0862
A161: 1992 | B161: 1992-10-01 | C161: 7.53 | D161: 0.0753 | G161: 1992 | H161: 1992-10-01 | I161: =NA() ->  | L161: 1992 | M161: 1992-10-01 | T161: 1992 | U161: 1992-10-01 | V161: 0.0799 | Y161: 0.0884
A162: 1992 | B162: 1992-11-01 | C162: 7.61 | D162: 0.0761 | G162: 1992 | H162: 1992-11-01 | I162: =NA() ->  | L162: 1992 | M162: 1992-11-01 | T162: 1992 | U162: 1992-11-01 | V162: 0.081 | Y162: 0.0896
A163: 1992 | B163: 1992-12-01 | C163: 7.44 | D163: 0.0744 | G163: 1992 | H163: 1992-12-01 | I163: =NA() ->  | L163: 1992 | M163: 1992-12-01 | T163: 1992 | U163: 1992-12-01 | V163: 0.0798 | Y163: 0.0881
A164: 1993 | B164: 1993-01-01 | C164: 7.34 | D164: 0.0734 | G164: 1993 | H164: 1993-01-01 | I164: =NA() ->  | L164: 1993 | M164: 1993-01-01 | T164: 1993 | U164: 1993-01-01 | V164: 0.0791 | Y164: 0.0867
A165: 1993 | B165: 1993-02-01 | C165: 7.09 | D165: 0.0709 | G165: 1993 | H165: 1993-02-01 | I165: =NA() ->  | L165: 1993 | M165: 1993-02-01 | T165: 1993 | U165: 1993-02-01 | V165: 0.0771 | Y165: 0.0839
A166: 1993 | B166: 1993-03-01 | C166: 6.82 | D166: 0.0682 | G166: 1993 | H166: 1993-03-01 | I166: =NA() ->  | L166: 1993 | M166: 1993-03-01 | T166: 1993 | U166: 1993-03-01 | V166: 0.0758 | Y166: 0.0815
A167: 1993 | B167: 1993-04-01 | C167: 6.85 | D167: 0.0685 | G167: 1993 | H167: 1993-04-01 | I167: =NA() ->  | L167: 1993 | M167: 1993-04-01 | T167: 1993 | U167: 1993-04-01 | V167: 0.0746 | Y167: 0.0814
A168: 1993 | B168: 1993-05-01 | C168: 6.92 | D168: 0.0692 | G168: 1993 | H168: 1993-05-01 | I168: =NA() ->  | L168: 1993 | M168: 1993-05-01 | T168: 1993 | U168: 1993-05-01 | V168: 0.0743 | Y168: 0.0821
A169: 1993 | B169: 1993-06-01 | C169: 6.81 | D169: 0.0681 | G169: 1993 | H169: 1993-06-01 | I169: =NA() ->  | L169: 1993 | M169: 1993-06-01 | T169: 1993 | U169: 1993-06-01 | V169: 0.0733 | Y169: 0.0807
A170: 1993 | B170: 1993-07-01 | C170: 6.63 | D170: 0.0663 | G170: 1993 | H170: 1993-07-01 | I170: =NA() ->  | L170: 1993 | M170: 1993-07-01 | T170: 1993 | U170: 1993-07-01 | V170: 0.0717 | Y170: 0.0793
A171: 1993 | B171: 1993-08-01 | C171: 6.32 | D171: 0.0632 | G171: 1993 | H171: 1993-08-01 | I171: =NA() ->  | L171: 1993 | M171: 1993-08-01 | T171: 1993 | U171: 1993-08-01 | V171: 0.0685 | Y171: 0.076
A172: 1993 | B172: 1993-09-01 | C172: 6 | D172: 0.06 | G172: 1993 | H172: 1993-09-01 | I172: =NA() ->  | L172: 1993 | M172: 1993-09-01 | T172: 1993 | U172: 1993-09-01 | V172: 0.0666 | Y172: 0.0734
A173: 1993 | B173: 1993-10-01 | C173: 5.94 | D173: 0.0594 | G173: 1993 | H173: 1993-10-01 | I173: 6.07 | J173: 0.0607 | L173: 1993 | M173: 1993-10-01 | T173: 1993 | U173: 1993-10-01 | V173: 0.0667 | Y173: 0.0731
A174: 1993 | B174: 1993-11-01 | C174: 6.21 | D174: 0.0621 | G174: 1993 | H174: 1993-11-01 | I174: 6.38 | J174: 0.0638 | L174: 1993 | M174: 1993-11-01 | T174: 1993 | U174: 1993-11-01 | V174: 0.0693 | Y174: 0.0766
A175: 1993 | B175: 1993-12-01 | C175: 6.25 | D175: 0.0625 | G175: 1993 | H175: 1993-12-01 | I175: 6.4 | J175: 0.064 | L175: 1993 | M175: 1993-12-01 | T175: 1993 | U175: 1993-12-01 | V175: 0.0693 | Y175: 0.0769
A176: 1994 | B176: 1994-01-01 | C176: 6.29 | D176: 0.0629 | G176: 1994 | H176: 1994-01-01 | I176: 6.39 | J176: 0.0639 | L176: 1994 | M176: 1994-01-01 | T176: 1994 | U176: 1994-01-01 | V176: 0.0692 | Y176: 0.0765
A177: 1994 | B177: 1994-02-01 | C177: 6.49 | D177: 0.0649 | G177: 1994 | H177: 1994-02-01 | I177: 6.57 | J177: 0.0657 | L177: 1994 | M177: 1994-02-01 | T177: 1994 | U177: 1994-02-01 | V177: 0.0708 | Y177: 0.0776
A178: 1994 | B178: 1994-03-01 | C178: 6.91 | D178: 0.0691 | G178: 1994 | H178: 1994-03-01 | I178: 7 | J178: 0.07 | L178: 1994 | M178: 1994-03-01 | T178: 1994 | U178: 1994-03-01 | V178: 0.0748 | Y178: 0.0813
A179: 1994 | B179: 1994-04-01 | C179: 7.27 | D179: 0.0727 | G179: 1994 | H179: 1994-04-01 | I179: 7.4 | J179: 0.074 | L179: 1994 | M179: 1994-04-01 | T179: 1994 | U179: 1994-04-01 | V179: 0.0788 | Y179: 0.0852
A180: 1994 | B180: 1994-05-01 | C180: 7.41 | D180: 0.0741 | G180: 1994 | H180: 1994-05-01 | I180: 7.54 | J180: 0.0754 | L180: 1994 | M180: 1994-05-01 | T180: 1994 | U180: 1994-05-01 | V180: 0.0799 | Y180: 0.0862
A181: 1994 | B181: 1994-06-01 | C181: 7.4 | D181: 0.074 | G181: 1994 | H181: 1994-06-01 | I181: 7.51 | J181: 0.0751 | L181: 1994 | M181: 1994-06-01 | T181: 1994 | U181: 1994-06-01 | V181: 0.0797 | Y181: 0.0865
A182: 1994 | B182: 1994-07-01 | C182: 7.58 | D182: 0.0758 | G182: 1994 | H182: 1994-07-01 | I182: 7.67 | J182: 0.0767 | L182: 1994 | M182: 1994-07-01 | T182: 1994 | U182: 1994-07-01 | V182: 0.0811 | Y182: 0.088
A183: 1994 | B183: 1994-08-01 | C183: 7.49 | D183: 0.0749 | G183: 1994 | H183: 1994-08-01 | I183: 7.62 | J183: 0.0762 | L183: 1994 | M183: 1994-08-01 | T183: 1994 | U183: 1994-08-01 | V183: 0.0807 | Y183: 0.0874
A184: 1994 | B184: 1994-09-01 | C184: 7.71 | D184: 0.0771 | G184: 1994 | H184: 1994-09-01 | I184: 7.87 | J184: 0.0787 | L184: 1994 | M184: 1994-09-01 | T184: 1994 | U184: 1994-09-01 | V184: 0.0834 | Y184: 0.0898
A185: 1994 | B185: 1994-10-01 | C185: 7.94 | D185: 0.0794 | G185: 1994 | H185: 1994-10-01 | I185: 8.08 | J185: 0.0808 | L185: 1994 | M185: 1994-10-01 | T185: 1994 | U185: 1994-10-01 | V185: 0.0857 | Y185: 0.092
A186: 1994 | B186: 1994-11-01 | C186: 8.08 | D186: 0.0808 | G186: 1994 | H186: 1994-11-01 | I186: 8.2 | J186: 0.082 | L186: 1994 | M186: 1994-11-01 | T186: 1994 | U186: 1994-11-01 | V186: 0.0868 | Y186: 0.0932
A187: 1994 | B187: 1994-12-01 | C187: 7.87 | D187: 0.0787 | G187: 1994 | H187: 1994-12-01 | I187: 7.99 | J187: 0.0799 | L187: 1994 | M187: 1994-12-01 | T187: 1994 | U187: 1994-12-01 | V187: 0.0846 | Y187: 0.091
A188: 1995 | B188: 1995-01-01 | C188: 7.85 | D188: 0.0785 | G188: 1995 | H188: 1995-01-01 | I188: 7.97 | J188: 0.0797 | L188: 1995 | M188: 1995-01-01 | T188: 1995 | U188: 1995-01-01 | V188: 0.0846 | Y188: 0.0908
A189: 1995 | B189: 1995-02-01 | C189: 7.61 | D189: 0.0761 | G189: 1995 | H189: 1995-02-01 | I189: 7.73 | J189: 0.0773 | L189: 1995 | M189: 1995-02-01 | T189: 1995 | U189: 1995-02-01 | V189: 0.0826 | Y189: 0.0885
A190: 1995 | B190: 1995-03-01 | C190: 7.45 | D190: 0.0745 | G190: 1995 | H190: 1995-03-01 | I190: 7.57 | J190: 0.0757 | L190: 1995 | M190: 1995-03-01 | T190: 1995 | U190: 1995-03-01 | V190: 0.0812 | Y190: 0.087
A191: 1995 | B191: 1995-04-01 | C191: 7.36 | D191: 0.0736 | G191: 1995 | H191: 1995-04-01 | I191: 7.45 | J191: 0.0745 | L191: 1995 | M191: 1995-04-01 | T191: 1995 | U191: 1995-04-01 | V191: 0.0803 | Y191: 0.086
A192: 1995 | B192: 1995-05-01 | C192: 6.95 | D192: 0.0695 | G192: 1995 | H192: 1995-05-01 | I192: 7.01 | J192: 0.0701 | L192: 1995 | M192: 1995-05-01 | T192: 1995 | U192: 1995-05-01 | V192: 0.0765 | Y192: 0.082
A193: 1995 | B193: 1995-06-01 | C193: 6.57 | D193: 0.0657 | G193: 1995 | H193: 1995-06-01 | I193: 6.59 | J193: 0.0659 | L193: 1995 | M193: 1995-06-01 | T193: 1995 | U193: 1995-06-01 | V193: 0.073 | Y193: 0.079
A194: 1995 | B194: 1995-07-01 | C194: 6.72 | D194: 0.0672 | G194: 1995 | H194: 1995-07-01 | I194: 6.74 | J194: 0.0674 | L194: 1995 | M194: 1995-07-01 | T194: 1995 | U194: 1995-07-01 | V194: 0.0741 | Y194: 0.0804
A195: 1995 | B195: 1995-08-01 | C195: 6.86 | D195: 0.0686 | G195: 1995 | H195: 1995-08-01 | I195: 6.92 | J195: 0.0692 | L195: 1995 | M195: 1995-08-01 | T195: 1995 | U195: 1995-08-01 | V195: 0.0757 | Y195: 0.0819
A196: 1995 | B196: 1995-09-01 | C196: 6.55 | D196: 0.0655 | G196: 1995 | H196: 1995-09-01 | I196: 6.65 | J196: 0.0665 | L196: 1995 | M196: 1995-09-01 | T196: 1995 | U196: 1995-09-01 | V196: 0.0732 | Y196: 0.0793
A197: 1995 | B197: 1995-10-01 | C197: 6.37 | D197: 0.0637 | G197: 1995 | H197: 1995-10-01 | I197: 6.45 | J197: 0.0645 | L197: 1995 | M197: 1995-10-01 | T197: 1995 | U197: 1995-10-01 | V197: 0.0712 | Y197: 0.0775
A198: 1995 | B198: 1995-11-01 | C198: 6.26 | D198: 0.0626 | G198: 1995 | H198: 1995-11-01 | I198: 6.33 | J198: 0.0633 | L198: 1995 | M198: 1995-11-01 | T198: 1995 | U198: 1995-11-01 | V198: 0.0702 | Y198: 0.0768
A199: 1995 | B199: 1995-12-01 | C199: 6.06 | D199: 0.0606 | G199: 1995 | H199: 1995-12-01 | I199: 6.12 | J199: 0.0612 | L199: 1995 | M199: 1995-12-01 | T199: 1995 | U199: 1995-12-01 | V199: 0.0682 | Y199: 0.0749
A200: =YEAR(B200) -> 1996 | B200: 1996-01-01 | C200: 6.05 | D200: =IF(ISNUMBER(C200),C200/100,"") -> 0.0605 | G200: =YEAR(H200) -> 1996 | H200: 1996-01-01 | I200: 6.11 | J200: =IF(ISNUMBER(I200),I200/100,"") -> 0.0611 | L200: =TRUNC(YEAR(M200)) -> 1996 | M200: 1996-01-01 | T200: =L200 -> 1996 | U200: 1996-01-01 | V200: 0.0681 | Y200: 0.0747
... 350 more rows

Sheet ROE Period Annual Yields (WP)
A1: Note: 2002 - 2005=20-Yr T-Bill avg
A2: 30-Year T-Bills | D2: Aaa Corporate Bonds | G2: Baa Corporate Bonds | J2: A Utility Bonds | M2: Baa Utility Bonds
A3: Year | B3: Annual Yield | D3: Year | E3: Annual Yield | G3: Year | H3: Annual Yield | J3: Year | K3: Annual Yield | M3: Year | N3: Annual Yield
A6: 1980 | B6: =IF(OR(A6<2002,A6>2005),AVERAGEIF('GR Period Monthly Yields (WP)'!$A$9:$A$716,'ROE Period Annual Yields (WP)'!A6,'GR Period Monthly Yields (WP)'!$D$9:$D$716),AVERAGEIF('GR Period Monthly Yields (WP)'!$G$9:$G$901,'ROE Period Annual Yields (WP)'!A6,'GR Period Monthly Yields (WP)'!$J$9:$J$901)) -> 0.1129833333 | D6: 1980 | E6: =AVERAGEIF('GR Period Monthly Yields (WP)'!$T$9:$T$716,'ROE Period Annual Yields (WP)'!D6,'GR Period Monthly Yields (WP)'!$V$9:$V$716) -> 0.1193833333 | G6: 1980 | H6: =AVERAGEIF('GR Period Monthly Yields (WP)'!$T$9:$T$716,'ROE Period Annual Yields (WP)'!D6,'GR Period Monthly Yields (WP)'!$Y$9:$Y$716) -> 0.1366833333 | J6: 1980 | K6: 0.1334 | M6: 1980 | N6: 0.1395
A7: 1981 | B7: =IF(OR(A7<2002,A7>2005),AVERAGEIF('GR Period Monthly Yields (WP)'!$A$9:$A$716,'ROE Period Annual Yields (WP)'!A7,'GR Period Monthly Yields (WP)'!$D$9:$D$716),AVERAGEIF('GR Period Monthly Yields (WP)'!$G$9:$G$901,'ROE Period Annual Yields (WP)'!A7,'GR Period Monthly Yields (WP)'!$J$9:$J$901)) -> 0.1344166667 | D7: 1981 | E7: =AVERAGEIF('GR Period Monthly Yields (WP)'!$T$9:$T$716,'ROE Period Annual Yields (WP)'!D7,'GR Period Monthly Yields (WP)'!$V$9:$V$716) -> 0.1417083333 | G7: 1981 | H7: =AVERAGEIF('GR Period Monthly Yields (WP)'!$T$9:$T$716,'ROE Period Annual Yields (WP)'!D7,'GR Period Monthly Yields (WP)'!$Y$9:$Y$716) -> 0.1604416667 | J7: 1981 | K7: 0.1595 | M7: 1981 | N7: 0.166
A8: 1982 | B8: =IF(OR(A8<2002,A8>2005),AVERAGEIF('GR Period Monthly Yields (WP)'!$A$9:$A$716,'ROE Period Annual Yields (WP)'!A8,'GR Period Monthly Yields (WP)'!$D$9:$D$716),AVERAGEIF('GR Period Monthly Yields (WP)'!$G$9:$G$901,'ROE Period Annual Yields (WP)'!A8,'GR Period Monthly Yields (WP)'!$J$9:$J$901)) -> 0.1276166667 | D8: 1982 | E8: =AVERAGEIF('GR Period Monthly Yields (WP)'!$T$9:$T$716,'ROE Period Annual Yields (WP)'!D8,'GR Period Monthly Yields (WP)'!$V$9:$V$716) -> 0.137875 | G8: 1982 | H8: =AVERAGEIF('GR Period Monthly Yields (WP)'!$T$9:$T$716,'ROE Period Annual Yields (WP)'!D8,'GR Period Monthly Yields (WP)'!$Y$9:$Y$716) -> 0.1611333333 | J8: 1982 | K8: 0.1586 | M8: 1982 | N8: 0.1645
A9: 1983 | B9: =IF(OR(A9<2002,A9>2005),AVERAGEIF('GR Period Monthly Yields (WP)'!$A$9:$A$716,'ROE Period Annual Yields (WP)'!A9,'GR Period Monthly Yields (WP)'!$D$9:$D$716),AVERAGEIF('GR Period Monthly Yields (WP)'!$G$9:$G$901,'ROE Period Annual Yields (WP)'!A9,'GR Period Monthly Yields (WP)'!$J$9:$J$901)) -> 0.1117833333 | D9: 1983 | E9: =AVERAGEIF('GR Period Monthly Yields (WP)'!$T$9:$T$716,'ROE Period Annual Yields (WP)'!D9,'GR Period Monthly Yields (WP)'!$V$9:$V$716) -> 0.1204166667 | G9: 1983 | H9: =AVERAGEIF('GR Period Monthly Yields (WP)'!$T$9:$T$716,'ROE Period Annual Yields (WP)'!D9,'GR Period Monthly Yields (WP)'!$Y$9:$Y$716) -> 0.1355416667 | J9: 1983 | K9: 0.1366 | M9: 1983 | N9: 0.142
A10: 1984 | B10: =IF(OR(A10<2002,A10>2005),AVERAGEIF('GR Period Monthly Yields (WP)'!$A$9:$A$716,'ROE Period Annual Yields (WP)'!A10,'GR Period Monthly Yields (WP)'!$D$9:$D$716),AVERAGEIF('GR Period Monthly Yields (WP)'!$G$9:$G$901,'ROE Period Annual Yields (WP)'!A10,'GR Period Monthly Yields (WP)'!$J$9:$J$901)) -> 0.1239166667 | D10: 1984 | E10: =AVERAGEIF('GR Period Monthly Yields (WP)'!$T$9:$T$716,'ROE Period Annual Yields (WP)'!D10,'GR Period Monthly Yields (WP)'!$V$9:$V$716) -> 0.1270916667 | G10: 1984 | H10: =AVERAGEIF('GR Period Monthly Yields (WP)'!$T$9:$T$716,'ROE Period Annual Yields (WP)'!D10,'GR Period Monthly Yields (WP)'!$Y$9:$Y$716) -> 0.1419 | J10: 1984 | K10: 0.1403 | M10: 1984 | N10: 0.1453
A11: 1985 | B11: =IF(OR(A11<2002,A11>2005),AVERAGEIF('GR Period Monthly Yields (WP)'!$A$9:$A$716,'ROE Period Annual Yields (WP)'!A11,'GR Period Monthly Yields (WP)'!$D$9:$D$716),AVERAGEIF('GR Period Monthly Yields (WP)'!$G$9:$G$901,'ROE Period Annual Yields (WP)'!A11,'GR Period Monthly Yields (WP)'!$J$9:$J$901)) -> 0.1078916667 | D11: 1985 | E11: =AVERAGEIF('GR Period Monthly Yields (WP)'!$T$9:$T$716,'ROE Period Annual Yields (WP)'!D11,'GR Period Monthly Yields (WP)'!$V$9:$V$716) -> 0.1137333333 | G11: 1985 | H11: =AVERAGEIF('GR Period Monthly Yields (WP)'!$T$9:$T$716,'ROE Period Annual Yields (WP)'!D11,'GR Period Monthly Yields (WP)'!$Y$9:$Y$716) -> 0.12715 | J11: 1985 | K11: 0.1247 | M11: 1985 | N11: 0.1296
A12: 1986 | B12: =IF(OR(A12<2002,A12>2005),AVERAGEIF('GR Period Monthly Yields (WP)'!$A$9:$A$716,'ROE Period Annual Yields (WP)'!A12,'GR Period Monthly Yields (WP)'!$D$9:$D$716),AVERAGEIF('GR Period Monthly Yields (WP)'!$G$9:$G$901,'ROE Period Annual Yields (WP)'!A12,'GR Period Monthly Yields (WP)'!$J$9:$J$901)) -> 0.07798333333 | D12: 1986 | E12: =AVERAGEIF('GR Period Monthly Yields (WP)'!$T$9:$T$716,'ROE Period Annual Yields (WP)'!D12,'GR Period Monthly Yields (WP)'!$V$9:$V$716) -> 0.09020833333 | G12: 1986 | H12: =AVERAGEIF('GR Period Monthly Yields (WP)'!$T$9:$T$716,'ROE Period Annual Yields (WP)'!D12,'GR Period Monthly Yields (WP)'!$Y$9:$Y$716) -> 0.1039083333 | J12: 1986 | K12: 0.0958 | M12: 1986 | N12: 0.1
A13: 1987 | B13: =IF(OR(A13<2002,A13>2005),AVERAGEIF('GR Period Monthly Yields (WP)'!$A$9:$A$716,'ROE Period Annual Yields (WP)'!A13,'GR Period Monthly Yields (WP)'!$D$9:$D$716),AVERAGEIF('GR Period Monthly Yields (WP)'!$G$9:$G$901,'ROE Period Annual Yields (WP)'!A13,'GR Period Monthly Yields (WP)'!$J$9:$J$901)) -> 0.0858 | D13: 1987 | E13: =AVERAGEIF('GR Period Monthly Yields (WP)'!$T$9:$T$716,'ROE Period Annual Yields (WP)'!D13,'GR Period Monthly Yields (WP)'!$V$9:$V$716) -> 0.09375833333 | G13: 1987 | H13: =AVERAGEIF('GR Period Monthly Yields (WP)'!$T$9:$T$716,'ROE Period Annual Yields (WP)'!D13,'GR Period Monthly Yields (WP)'!$Y$9:$Y$716) -> 0.1057583333 | J13: 1987 | K13: 0.101 | M13: 1987 | N13: 0.1053
A14: 1988 | B14: =IF(OR(A14<2002,A14>2005),AVERAGEIF('GR Period Monthly Yields (WP)'!$A$9:$A$716,'ROE Period Annual Yields (WP)'!A14,'GR Period Monthly Yields (WP)'!$D$9:$D$716),AVERAGEIF('GR Period Monthly Yields (WP)'!$G$9:$G$901,'ROE Period Annual Yields (WP)'!A14,'GR Period Monthly Yields (WP)'!$J$9:$J$901)) -> 0.08959166667 | D14: 1988 | E14: =AVERAGEIF('GR Period Monthly Yields (WP)'!$T$9:$T$716,'ROE Period Annual Yields (WP)'!D14,'GR Period Monthly Yields (WP)'!$V$9:$V$716) -> 0.0971 | G14: 1988 | H14: =AVERAGEIF('GR Period Monthly Yields (WP)'!$T$9:$T$716,'ROE Period Annual Yields (WP)'!D14,'GR Period Monthly Yields (WP)'!$Y$9:$Y$716) -> 0.1083 | J14: 1988 | K14: 0.1049 | M14: 1988 | N14: 0.11
A15: 1989 | B15: =IF(OR(A15<2002,A15>2005),AVERAGEIF('GR Period Monthly Yields (WP)'!$A$9:$A$716,'ROE Period Annual Yields (WP)'!A15,'GR Period Monthly Yields (WP)'!$D$9:$D$716),AVERAGEIF('GR Period Monthly Yields (WP)'!$G$9:$G$901,'ROE Period Annual Yields (WP)'!A15,'GR Period Monthly Yields (WP)'!$J$9:$J$901)) -> 0.08449166667 | D15: 1989 | E15: =AVERAGEIF('GR Period Monthly Yields (WP)'!$T$9:$T$716,'ROE Period Annual Yields (WP)'!D15,'GR Period Monthly Yields (WP)'!$V$9:$V$716) -> 0.092575 | G15: 1989 | H15: =AVERAGEIF('GR Period Monthly Yields (WP)'!$T$9:$T$716,'ROE Period Annual Yields (WP)'!D15,'GR Period Monthly Yields (WP)'!$Y$9:$Y$716) -> 0.101775 | J15: 1989 | K15: 0.0977 | M15: 1989 | N15: 0.0997
A16: 1990 | B16: =IF(OR(A16<2002,A16>2005),AVERAGEIF('GR Period Monthly Yields (WP)'!$A$9:$A$716,'ROE Period Annual Yields (WP)'!A16,'GR Period Monthly Yields (WP)'!$D$9:$D$716),AVERAGEIF('GR Period Monthly Yields (WP)'!$G$9:$G$901,'ROE Period Annual Yields (WP)'!A16,'GR Period Monthly Yields (WP)'!$J$9:$J$901)) -> 0.08608333333 | D16: 1990 | E16: =AVERAGEIF('GR Period Monthly Yields (WP)'!$T$9:$T$716,'ROE Period Annual Yields (WP)'!D16,'GR Period Monthly Yields (WP)'!$V$9:$V$716) -> 0.09321666667 | G16: 1990 | H16: =AVERAGEIF('GR Period Monthly Yields (WP)'!$T$9:$T$716,'ROE Period Annual Yields (WP)'!D16,'GR Period Monthly Yields (WP)'!$Y$9:$Y$716) -> 0.10355 | J16: 1990 | K16: 0.0986 | M16: 1990 | N16: 0.1006
A17: 1991 | B17: =IF(OR(A17<2002,A17>2005),AVERAGEIF('GR Period Monthly Yields (WP)'!$A$9:$A$716,'ROE Period Annual Yields (WP)'!A17,'GR Period Monthly Yields (WP)'!$D$9:$D$716),AVERAGEIF('GR Period Monthly Yields (WP)'!$G$9:$G$901,'ROE Period Annual Yields (WP)'!A17,'GR Period Monthly Yields (WP)'!$J$9:$J$901)) -> 0.08135833333 | D17: 1991 | E17: =AVERAGEIF('GR Period Monthly Yields (WP)'!$T$9:$T$716,'ROE Period Annual Yields (WP)'!D17,'GR Period Monthly Yields (WP)'!$V$9:$V$716) -> 0.08769166667 | G17: 1991 | H17: =AVERAGEIF('GR Period Monthly Yields (WP)'!$T$9:$T$716,'ROE Period Annual Yields (WP)'!D17,'GR Period Monthly Yields (WP)'!$Y$9:$Y$716) -> 0.09801666667 | J17: 1991 | K17: 0.0936 | M17: 1991 | N17: 0.0955
A18: 1992 | B18: =IF(OR(A18<2002,A18>2005),AVERAGEIF('GR Period Monthly Yields (WP)'!$A$9:$A$716,'ROE Period Annual Yields (WP)'!A18,'GR Period Monthly Yields (WP)'!$D$9:$D$716),AVERAGEIF('GR Period Monthly Yields (WP)'!$G$9:$G$901,'ROE Period Annual Yields (WP)'!A18,'GR Period Monthly Yields (WP)'!$J$9:$J$901)) -> 0.07666666667 | D18: 1992 | E18: =AVERAGEIF('GR Period Monthly Yields (WP)'!$T$9:$T$716,'ROE Period Annual Yields (WP)'!D18,'GR Period Monthly Yields (WP)'!$V$9:$V$716) -> 0.0814 | G18: 1992 | H18: =AVERAGEIF('GR Period Monthly Yields (WP)'!$T$9:$T$716,'ROE Period Annual Yields (WP)'!D18,'GR Period Monthly Yields (WP)'!$Y$9:$Y$716) -> 0.08976666667 | J18: 1992 | K18: 0.0869 | M18: 1992 | N18: 0.0886
A19: 1993 | B19: =IF(OR(A19<2002,A19>2005),AVERAGEIF('GR Period Monthly Yields (WP)'!$A$9:$A$716,'ROE Period Annual Yields (WP)'!A19,'GR Period Monthly Yields (WP)'!$D$9:$D$716),AVERAGEIF('GR Period Monthly Yields (WP)'!$G$9:$G$901,'ROE Period Annual Yields (WP)'!A19,'GR Period Monthly Yields (WP)'!$J$9:$J$901)) -> 0.06598333333 | D19: 1993 | E19: =AVERAGEIF('GR Period Monthly Yields (WP)'!$T$9:$T$716,'ROE Period Annual Yields (WP)'!D19,'GR Period Monthly Yields (WP)'!$V$9:$V$716) -> 0.07219166667 | G19: 1993 | H19: =AVERAGEIF('GR Period Monthly Yields (WP)'!$T$9:$T$716,'ROE Period Annual Yields (WP)'!D19,'GR Period Monthly Yields (WP)'!$Y$9:$Y$716) -> 0.0793 | J19: 1993 | K19: 0.0759 | M19: 1993 | N19: 0.0791
A20: 1994 | B20: =IF(OR(A20<2002,A20>2005),AVERAGEIF('GR Period Monthly Yields (WP)'!$A$9:$A$716,'ROE Period Annual Yields (WP)'!A20,'GR Period Monthly Yields (WP)'!$D$9:$D$716),AVERAGEIF('GR Period Monthly Yields (WP)'!$G$9:$G$901,'ROE Period Annual Yields (WP)'!A20,'GR Period Monthly Yields (WP)'!$J$9:$J$901)) -> 0.0737 | D20: 1994 | E20: =AVERAGEIF('GR Period Monthly Yields (WP)'!$T$9:$T$716,'ROE Period Annual Yields (WP)'!D20,'GR Period Monthly Yields (WP)'!$V$9:$V$716) -> 0.079625 | G20: 1994 | H20: =AVERAGEIF('GR Period Monthly Yields (WP)'!$T$9:$T$716,'ROE Period Annual Yields (WP)'!D20,'GR Period Monthly Yields (WP)'!$Y$9:$Y$716) -> 0.086225 | J20: 1994 | K20: 0.0831 | M20: 1994 | N20: 0.0863
A21: 1995 | B21: =IF(OR(A21<2002,A21>2005),AVERAGEIF('GR Period Monthly Yields (WP)'!$A$9:$A$716,'ROE Period Annual Yields (WP)'!A21,'GR Period Monthly Yields (WP)'!$D$9:$D$716),AVERAGEIF('GR Period Monthly Yields (WP)'!$G$9:$G$901,'ROE Period Annual Yields (WP)'!A21,'GR Period Monthly Yields (WP)'!$J$9:$J$901)) -> 0.06884166667 | D21: 1995 | E21: =AVERAGEIF('GR Period Monthly Yields (WP)'!$T$9:$T$716,'ROE Period Annual Yields (WP)'!D21,'GR Period Monthly Yields (WP)'!$V$9:$V$716) -> 0.0759 | G21: 1995 | H21: =AVERAGEIF('GR Period Monthly Yields (WP)'!$T$9:$T$716,'ROE Period Annual Yields (WP)'!D21,'GR Period Monthly Yields (WP)'!$Y$9:$Y$716) -> 0.08200833333 | J21: 1995 | K21: 0.0789 | M21: 1995 | N21: 0.0829
A22: 1996 | B22: =IF(OR(A22<2002,A22>2005),AVERAGEIF('GR Period Monthly Yields (WP)'!$A$9:$A$716,'ROE Period Annual Yields (WP)'!A22,'GR Period Monthly Yields (WP)'!$D$9:$D$716),AVERAGEIF('GR Period Monthly Yields (WP)'!$G$9:$G$901,'ROE Period Annual Yields (WP)'!A22,'GR Period Monthly Yields (WP)'!$J$9:$J$901)) -> 0.06700833333 | D22: 1996 | E22: =AVERAGEIF('GR Period Monthly Yields (WP)'!$T$9:$T$716,'ROE Period Annual Yields (WP)'!D22,'GR Period Monthly Yields (WP)'!$V$9:$V$716) -> 0.0737 | G22: 1996 | H22: =AVERAGEIF('GR Period Monthly Yields (WP)'!$T$9:$T$716,'ROE Period Annual Yields (WP)'!D22,'GR Period Monthly Yields (WP)'!$Y$9:$Y$716) -> 0.08054166667 | J22: 1996 | K22: 0.0775 | M22: 1996 | N22: 0.0817
A23: 1997 | B23: =IF(OR(A23<2002,A23>2005),AVERAGEIF('GR Period Monthly Yields (WP)'!$A$9:$A$716,'ROE Period Annual Yields (WP)'!A23,'GR Period Monthly Yields (WP)'!$D$9:$D$716),AVERAGEIF('GR Period Monthly Yields (WP)'!$G$9:$G$901,'ROE Period Annual Yields (WP)'!A23,'GR Period Monthly Yields (WP)'!$J$9:$J$901)) -> 0.06605833333 | D23: 1997 | E23: =AVERAGEIF('GR Period Monthly Yields (WP)'!$T$9:$T$716,'ROE Period Annual Yields (WP)'!D23,'GR Period Monthly Yields (WP)'!$V$9:$V$716) -> 0.07261666667 | G23: 1997 | H23: =AVERAGEIF('GR Period Monthly Yields (WP)'!$T$9:$T$716,'ROE Period Annual Yields (WP)'!D23,'GR Period Monthly Yields (WP)'!$Y$9:$Y$716) -> 0.078625 | J23: 1997 | K23: 0.076 | M23: 1997 | N23: 0.0795
A24: 1998 | B24: =IF(OR(A24<2002,A24>2005),AVERAGEIF('GR Period Monthly Yields (WP)'!$A$9:$A$716,'ROE Period Annual Yields (WP)'!A24,'GR Period Monthly Yields (WP)'!$D$9:$D$716),AVERAGEIF('GR Period Monthly Yields (WP)'!$G$9:$G$901,'ROE Period Annual Yields (WP)'!A24,'GR Period Monthly Yields (WP)'!$J$9:$J$901)) -> 0.05578333333 | D24: 1998 | E24: =AVERAGEIF('GR Period Monthly Yields (WP)'!$T$9:$T$716,'ROE Period Annual Yields (WP)'!D24,'GR Period Monthly Yields (WP)'!$V$9:$V$716) -> 0.06531666667 | G24: 1998 | H24: =AVERAGEIF('GR Period Monthly Yields (WP)'!$T$9:$T$716,'ROE Period Annual Yields (WP)'!D24,'GR Period Monthly Yields (WP)'!$Y$9:$Y$716) -> 0.07220833333 | J24: 1998 | K24: 0.0704 | M24: 1998 | N24: 0.0726
A25: 1999 | B25: =IF(OR(A25<2002,A25>2005),AVERAGEIF('GR Period Monthly Yields (WP)'!$A$9:$A$716,'ROE Period Annual Yields (WP)'!A25,'GR Period Monthly Yields (WP)'!$D$9:$D$716),AVERAGEIF('GR Period Monthly Yields (WP)'!$G$9:$G$901,'ROE Period Annual Yields (WP)'!A25,'GR Period Monthly Yields (WP)'!$J$9:$J$901)) -> 0.05865833333 | D25: 1999 | E25: =AVERAGEIF('GR Period Monthly Yields (WP)'!$T$9:$T$716,'ROE Period Annual Yields (WP)'!D25,'GR Period Monthly Yields (WP)'!$V$9:$V$716) -> 0.07041666667 | G25: 1999 | H25: =AVERAGEIF('GR Period Monthly Yields (WP)'!$T$9:$T$716,'ROE Period Annual Yields (WP)'!D25,'GR Period Monthly Yields (WP)'!$Y$9:$Y$716) -> 0.07870833333 | J25: 1999 | K25: 0.0762 | M25: 1999 | N25: 0.0788
A26: 2000 | B26: =IF(OR(A26<2002,A26>2005),AVERAGEIF('GR Period Monthly Yields (WP)'!$A$9:$A$716,'ROE Period Annual Yields (WP)'!A26,'GR Period Monthly Yields (WP)'!$D$9:$D$716),AVERAGEIF('GR Period Monthly Yields (WP)'!$G$9:$G$901,'ROE Period Annual Yields (WP)'!A26,'GR Period Monthly Yields (WP)'!$J$9:$J$901)) -> 0.059425 | D26: 2000 | E26: =AVERAGEIF('GR Period Monthly Yields (WP)'!$T$9:$T$716,'ROE Period Annual Yields (WP)'!D26,'GR Period Monthly Yields (WP)'!$V$9:$V$716) -> 0.076225 | G26: 2000 | H26: =AVERAGEIF('GR Period Monthly Yields (WP)'!$T$9:$T$716,'ROE Period Annual Yields (WP)'!D26,'GR Period Monthly Yields (WP)'!$Y$9:$Y$716) -> 0.08364166667 | J26: 2000 | K26: 0.08244166667 | M26: 2000 | N26: 0.08359166667
A27: 2001 | B27: =IF(OR(A27<2002,A27>2005),AVERAGEIF('GR Period Monthly Yields (WP)'!$A$9:$A$716,'ROE Period Annual Yields (WP)'!A27,'GR Period Monthly Yields (WP)'!$D$9:$D$716),AVERAGEIF('GR Period Monthly Yields (WP)'!$G$9:$G$901,'ROE Period Annual Yields (WP)'!A27,'GR Period Monthly Yields (WP)'!$J$9:$J$901)) -> 0.05493333333 | D27: 2001 | E27: =AVERAGEIF('GR Period Monthly Yields (WP)'!$T$9:$T$716,'ROE Period Annual Yields (WP)'!D27,'GR Period Monthly Yields (WP)'!$V$9:$V$716) -> 0.070825 | G27: 2001 | H27: =AVERAGEIF('GR Period Monthly Yields (WP)'!$T$9:$T$716,'ROE Period Annual Yields (WP)'!D27,'GR Period Monthly Yields (WP)'!$Y$9:$Y$716) -> 0.079475 | J27: 2001 | K27: =AVERAGEIF('GR Period Monthly Yields (WP)'!$L$9:$S$716,'ROE Period Annual Yields (WP)'!J27,'GR Period Monthly Yields (WP)'!$P$9:$P$716) -> 0.077625 | M27: 2001 | N27: =AVERAGEIF('GR Period Monthly Yields (WP)'!$L$9:$L$716,'ROE Period Annual Yields (WP)'!M27,'GR Period Monthly Yields (WP)'!$Q$9:$Q$716) -> 0.08028333333
A28: 2002 | B28: =IF(OR(A28<2002,A28>2005),AVERAGEIF('ROE Period Monthly Yields (WP)'!$A$8:$A$715,'ROE Period Annual Yields (WP)'!A28,'ROE Period Monthly Yields (WP)'!$D$8:$D$715),AVERAGEIF('ROE Period Monthly Yields (WP)'!$G$8:$G$900,'ROE Period Annual Yields (WP)'!A28,'ROE Period Monthly Yields (WP)'!$J$8:$J$900)) -> 0.0543 | D28: 2002 | E28: =AVERAGEIF('ROE Period Monthly Yields (WP)'!$T$8:$T$715,'ROE Period Annual Yields (WP)'!D28,'ROE Period Monthly Yields (WP)'!$V$8:$V$715) -> 0.06491666667 | G28: 2002 | H28: =AVERAGEIF('ROE Period Monthly Yields (WP)'!$T$8:$T$715,'ROE Period Annual Yields (WP)'!D28,'ROE Period Monthly Yields (WP)'!$Y$8:$Y$715) -> 0.07801666667 | J28: 2002 | K28: =AVERAGEIF('ROE Period Monthly Yields (WP)'!$L$8:$S$715,'ROE Period Annual Yields (WP)'!J28,'ROE Period Monthly Yields (WP)'!$P$8:$P$715) -> 0.073725 | M28: 2002 | N28: =AVERAGEIF('ROE Period Monthly Yields (WP)'!$L$8:$L$715,'ROE Period Annual Yields (WP)'!M28,'ROE Period Monthly Yields (WP)'!$Q$8:$Q$715) -> 0.08023333333
A29: 2003 | B29: =IF(OR(A29<2002,A29>2005),AVERAGEIF('ROE Period Monthly Yields (WP)'!$A$8:$A$715,'ROE Period Annual Yields (WP)'!A29,'ROE Period Monthly Yields (WP)'!$D$8:$D$715),AVERAGEIF('ROE Period Monthly Yields (WP)'!$G$8:$G$900,'ROE Period Annual Yields (WP)'!A29,'ROE Period Monthly Yields (WP)'!$J$8:$J$900)) -> 0.049575 | D29: 2003 | E29: =AVERAGEIF('ROE Period Monthly Yields (WP)'!$T$8:$T$715,'ROE Period Annual Yields (WP)'!D29,'ROE Period Monthly Yields (WP)'!$V$8:$V$715) -> 0.05666666667 | G29: 2003 | H29: =AVERAGEIF('ROE Period Monthly Yields (WP)'!$T$8:$T$715,'ROE Period Annual Yields (WP)'!D29,'ROE Period Monthly Yields (WP)'!$Y$8:$Y$715) -> 0.06765833333 | J29: 2003 | K29: =AVERAGEIF('ROE Period Monthly Yields (WP)'!$L$8:$S$715,'ROE Period Annual Yields (WP)'!J29,'ROE Period Monthly Yields (WP)'!$P$8:$P$715) -> 0.06580833333 | M29: 2003 | N29: =AVERAGEIF('ROE Period Monthly Yields (WP)'!$L$8:$L$715,'ROE Period Annual Yields (WP)'!M29,'ROE Period Monthly Yields (WP)'!$Q$8:$Q$715) -> 0.068425
A30: 2004 | B30: =IF(OR(A30<2002,A30>2005),AVERAGEIF('ROE Period Monthly Yields (WP)'!$A$8:$A$715,'ROE Period Annual Yields (WP)'!A30,'ROE Period Monthly Yields (WP)'!$D$8:$D$715),AVERAGEIF('ROE Period Monthly Yields (WP)'!$G$8:$G$900,'ROE Period Annual Yields (WP)'!A30,'ROE Period Monthly Yields (WP)'!$J$8:$J$900)) -> 0.05046666667 | D30: 2004 | E30: =AVERAGEIF('ROE Period Monthly Yields (WP)'!$T$8:$T$715,'ROE Period Annual Yields (WP)'!D30,'ROE Period Monthly Yields (WP)'!$V$8:$V$715) -> 0.05628333333 | G30: 2004 | H30: =AVERAGEIF('ROE Period Monthly Yields (WP)'!$T$8:$T$715,'ROE Period Annual Yields (WP)'!D30,'ROE Period Monthly Yields (WP)'!$Y$8:$Y$715) -> 0.06393333333 | J30: 2004 | K30: =AVERAGEIF('ROE Period Monthly Yields (WP)'!$L$8:$S$715,'ROE Period Annual Yields (WP)'!J30,'ROE Period Monthly Yields (WP)'!$P$8:$P$715) -> 0.0616 | M30: 2004 | N30: =AVERAGEIF('ROE Period Monthly Yields (WP)'!$L$8:$L$715,'ROE Period Annual Yields (WP)'!M30,'ROE Period Monthly Yields (WP)'!$Q$8:$Q$715) -> 0.06395
A31: 2005 | B31: =IF(OR(A31<2002,A31>2005),AVERAGEIF('ROE Period Monthly Yields (WP)'!$A$8:$A$715,'ROE Period Annual Yields (WP)'!A31,'ROE Period Monthly Yields (WP)'!$D$8:$D$715),AVERAGEIF('ROE Period Monthly Yields (WP)'!$G$8:$G$900,'ROE Period Annual Yields (WP)'!A31,'ROE Period Monthly Yields (WP)'!$J$8:$J$900)) -> 0.04645833333 | D31: 2005 | E31: =AVERAGEIF('ROE Period Monthly Yields (WP)'!$T$8:$T$715,'ROE Period Annual Yields (WP)'!D31,'ROE Period Monthly Yields (WP)'!$V$8:$V$715) -> 0.05235 | G31: 2005 | H31: =AVERAGEIF('ROE Period Monthly Yields (WP)'!$T$8:$T$715,'ROE Period Annual Yields (WP)'!D31,'ROE Period Monthly Yields (WP)'!$Y$8:$Y$715) -> 0.06064166667 | J31: 2005 | K31: =AVERAGEIF('ROE Period Monthly Yields (WP)'!$L$8:$S$715,'ROE Period Annual Yields (WP)'!J31,'ROE Period Monthly Yields (WP)'!$P$8:$P$715) -> 0.05649166667 | M31: 2005 | N31: =AVERAGEIF('ROE Period Monthly Yields (WP)'!$L$8:$L$715,'ROE Period Annual Yields (WP)'!M31,'ROE Period Monthly Yields (WP)'!$Q$8:$Q$715) -> 0.05925
A32: 2006 | B32: =IF(OR(A32<2002,A32>2005),AVERAGEIF('ROE Period Monthly Yields (WP)'!$A$8:$A$715,'ROE Period Annual Yields (WP)'!A32,'ROE Period Monthly Yields (WP)'!$D$8:$D$715),AVERAGEIF('ROE Period Monthly Yields (WP)'!$G$8:$G$900,'ROE Period Annual Yields (WP)'!A32,'ROE Period Monthly Yields (WP)'!$J$8:$J$900)) -> 0.04873333333 | D32: 2006 | E32: =AVERAGEIF('ROE Period Monthly Yields (WP)'!$T$8:$T$715,'ROE Period Annual Yields (WP)'!D32,'ROE Period Monthly Yields (WP)'!$V$8:$V$715) -> 0.05584166667 | G32: 2006 | H32: =AVERAGEIF('ROE Period Monthly Yields (WP)'!$T$8:$T$715,'ROE Period Annual Yields (WP)'!D32,'ROE Period Monthly Yields (WP)'!$Y$8:$Y$715) -> 0.06479166667 | J32: 2006 | K32: =AVERAGEIF('ROE Period Monthly Yields (WP)'!$L$8:$S$715,'ROE Period Annual Yields (WP)'!J32,'ROE Period Monthly Yields (WP)'!$P$8:$P$715) -> 0.06068333333 | M32: 2006 | N32: =AVERAGEIF('ROE Period Monthly Yields (WP)'!$L$8:$L$715,'ROE Period Annual Yields (WP)'!M32,'ROE Period Monthly Yields (WP)'!$Q$8:$Q$715) -> 0.06316666667
A33: 2007 | B33: =IF(OR(A33<2002,A33>2005),AVERAGEIF('ROE Period Monthly Yields (WP)'!$A$8:$A$715,'ROE Period Annual Yields (WP)'!A33,'ROE Period Monthly Yields (WP)'!$D$8:$D$715),AVERAGEIF('ROE Period Monthly Yields (WP)'!$G$8:$G$900,'ROE Period Annual Yields (WP)'!A33,'ROE Period Monthly Yields (WP)'!$J$8:$J$900)) -> 0.04834166667 | D33: 2007 | E33: =AVERAGEIF('ROE Period Monthly Yields (WP)'!$T$8:$T$715,'ROE Period Annual Yields (WP)'!D33,'ROE Period Monthly Yields (WP)'!$V$8:$V$715) -> 0.05555833333 | G33: 2007 | H33: =AVERAGEIF('ROE Period Monthly Yields (WP)'!$T$8:$T$715,'ROE Period Annual Yields (WP)'!D33,'ROE Period Monthly Yields (WP)'!$Y$8:$Y$715) -> 0.064825 | J33: 2007 | K33: =AVERAGEIF('ROE Period Monthly Yields (WP)'!$L$8:$S$715,'ROE Period Annual Yields (WP)'!J33,'ROE Period Monthly Yields (WP)'!$P$8:$P$715) -> 0.06073333333 | M33: 2007 | N33: =AVERAGEIF('ROE Period Monthly Yields (WP)'!$L$8:$L$715,'ROE Period Annual Yields (WP)'!M33,'ROE Period Monthly Yields (WP)'!$Q$8:$Q$715) -> 0.0633
A34: 2008 | B34: =IF(OR(A34<2002,A34>2005),AVERAGEIF('ROE Period Monthly Yields (WP)'!$A$8:$A$715,'ROE Period Annual Yields (WP)'!A34,'ROE Period Monthly Yields (WP)'!$D$8:$D$715),AVERAGEIF('ROE Period Monthly Yields (WP)'!$G$8:$G$900,'ROE Period Annual Yields (WP)'!A34,'ROE Period Monthly Yields (WP)'!$J$8:$J$900)) -> 0.04279166667 | D34: 2008 | E34: =AVERAGEIF('ROE Period Monthly Yields (WP)'!$T$8:$T$715,'ROE Period Annual Yields (WP)'!D34,'ROE Period Monthly Yields (WP)'!$V$8:$V$715) -> 0.056325 | G34: 2008 | H34: =AVERAGEIF('ROE Period Monthly Yields (WP)'!$T$8:$T$715,'ROE Period Annual Yields (WP)'!D34,'ROE Period Monthly Yields (WP)'!$Y$8:$Y$715) -> 0.074475 | J34: 2008 | K34: =AVERAGEIF('ROE Period Monthly Yields (WP)'!$L$8:$S$715,'ROE Period Annual Yields (WP)'!J34,'ROE Period Monthly Yields (WP)'!$P$8:$P$715) -> 0.06528333333 | M34: 2008 | N34: =AVERAGEIF('ROE Period Monthly Yields (WP)'!$L$8:$L$715,'ROE Period Annual Yields (WP)'!M34,'ROE Period Monthly Yields (WP)'!$Q$8:$Q$715) -> 0.07245833333
A35: 2009 | B35: =IF(OR(A35<2002,A35>2005),AVERAGEIF('ROE Period Monthly Yields (WP)'!$A$8:$A$715,'ROE Period Annual Yields (WP)'!A35,'ROE Period Monthly Yields (WP)'!$D$8:$D$715),AVERAGEIF('ROE Period Monthly Yields (WP)'!$G$8:$G$900,'ROE Period Annual Yields (WP)'!A35,'ROE Period Monthly Yields (WP)'!$J$8:$J$900)) -> 0.04069166667 | D35: 2009 | E35: =AVERAGEIF('ROE Period Monthly Yields (WP)'!$T$8:$T$715,'ROE Period Annual Yields (WP)'!D35,'ROE Period Monthly Yields (WP)'!$V$8:$V$715) -> 0.05313333333 | G35: 2009 | H35: =AVERAGEIF('ROE Period Monthly Yields (WP)'!$T$8:$T$715,'ROE Period Annual Yields (WP)'!D35,'ROE Period Monthly Yields (WP)'!$Y$8:$Y$715) -> 0.07295833333 | J35: 2009 | K35: =AVERAGEIF('ROE Period Monthly Yields (WP)'!$L$8:$S$715,'ROE Period Annual Yields (WP)'!J35,'ROE Period Monthly Yields (WP)'!$P$8:$P$715) -> 0.06039166667 | M35: 2009 | N35: =AVERAGEIF('ROE Period Monthly Yields (WP)'!$L$8:$L$715,'ROE Period Annual Yields (WP)'!M35,'ROE Period Monthly Yields (WP)'!$Q$8:$Q$715) -> 0.07055
A36: 2010 | B36: =IF(OR(A36<2002,A36>2005),AVERAGEIF('ROE Period Monthly Yields (WP)'!$A$8:$A$715,'ROE Period Annual Yields (WP)'!A36,'ROE Period Monthly Yields (WP)'!$D$8:$D$715),AVERAGEIF('ROE Period Monthly Yields (WP)'!$G$8:$G$900,'ROE Period Annual Yields (WP)'!A36,'ROE Period Monthly Yields (WP)'!$J$8:$J$900)) -> 0.04250833333 | D36: 2010 | E36: =AVERAGEIF('ROE Period Monthly Yields (WP)'!$T$8:$T$715,'ROE Period Annual Yields (WP)'!D36,'ROE Period Monthly Yields (WP)'!$V$8:$V$715) -> 0.04943333333 | G36: 2010 | H36: =AVERAGEIF('ROE Period Monthly Yields (WP)'!$T$8:$T$715,'ROE Period Annual Yields (WP)'!D36,'ROE Period Monthly Yields (WP)'!$Y$8:$Y$715) -> 0.06038333333 | J36: 2010 | K36: =AVERAGEIF('ROE Period Monthly Yields (WP)'!$L$8:$S$715,'ROE Period Annual Yields (WP)'!J36,'ROE Period Monthly Yields (WP)'!$P$8:$P$715) -> 0.05463333333 | M36: 2010 | N36: =AVERAGEIF('ROE Period Monthly Yields (WP)'!$L$8:$L$715,'ROE Period Annual Yields (WP)'!M36,'ROE Period Monthly Yields (WP)'!$Q$8:$Q$715) -> 0.05961666667
A37: 2011 | B37: =IF(OR(A37<2002,A37>2005),AVERAGEIF('ROE Period Monthly Yields (WP)'!$A$8:$A$715,'ROE Period Annual Yields (WP)'!A37,'ROE Period Monthly Yields (WP)'!$D$8:$D$715),AVERAGEIF('ROE Period Monthly Yields (WP)'!$G$8:$G$900,'ROE Period Annual Yields (WP)'!A37,'ROE Period Monthly Yields (WP)'!$J$8:$J$900)) -> 0.03910833333 | D37: 2011 | E37: =AVERAGEIF('ROE Period Monthly Yields (WP)'!$T$8:$T$715,'ROE Period Annual Yields (WP)'!D37,'ROE Period Monthly Yields (WP)'!$V$8:$V$715) -> 0.04639166667 | G37: 2011 | H37: =AVERAGEIF('ROE Period Monthly Yields (WP)'!$T$8:$T$715,'ROE Period Annual Yields (WP)'!D37,'ROE Period Monthly Yields (WP)'!$Y$8:$Y$715) -> 0.05664166667 | J37: 2011 | K37: =AVERAGEIF('ROE Period Monthly Yields (WP)'!$L$8:$S$715,'ROE Period Annual Yields (WP)'!J37,'ROE Period Monthly Yields (WP)'!$P$8:$P$715) -> 0.0504 | M37: 2011 | N37: =AVERAGEIF('ROE Period Monthly Yields (WP)'!$L$8:$L$715,'ROE Period Annual Yields (WP)'!M37,'ROE Period Monthly Yields (WP)'!$Q$8:$Q$715) -> 0.05565833333
A38: 2012 | B38: =IF(OR(A38<2002,A38>2005),AVERAGEIF('ROE Period Monthly Yields (WP)'!$A$8:$A$715,'ROE Period Annual Yields (WP)'!A38,'ROE Period Monthly Yields (WP)'!$D$8:$D$715),AVERAGEIF('ROE Period Monthly Yields (WP)'!$G$8:$G$900,'ROE Period Annual Yields (WP)'!A38,'ROE Period Monthly Yields (WP)'!$J$8:$J$900)) -> 0.02920833333 | D38: 2012 | E38: =AVERAGEIF('ROE Period Monthly Yields (WP)'!$T$8:$T$715,'ROE Period Annual Yields (WP)'!D38,'ROE Period Monthly Yields (WP)'!$V$8:$V$715) -> 0.03673333333 | G38: 2012 | H38: =AVERAGEIF('ROE Period Monthly Yields (WP)'!$T$8:$T$715,'ROE Period Annual Yields (WP)'!D38,'ROE Period Monthly Yields (WP)'!$Y$8:$Y$715) -> 0.04935 | J38: 2012 | K38: =AVERAGEIF('ROE Period Monthly Yields (WP)'!$L$8:$S$715,'ROE Period Annual Yields (WP)'!J38,'ROE Period Monthly Yields (WP)'!$P$8:$P$715) -> 0.0413 | M38: 2012 | N38: =AVERAGEIF('ROE Period Monthly Yields (WP)'!$L$8:$L$715,'ROE Period Annual Yields (WP)'!M38,'ROE Period Monthly Yields (WP)'!$Q$8:$Q$715) -> 0.04855
A39: 2013 | B39: =IF(OR(A39<2002,A39>2005),AVERAGEIF('ROE Period Monthly Yields (WP)'!$A$8:$A$715,'ROE Period Annual Yields (WP)'!A39,'ROE Period Monthly Yields (WP)'!$D$8:$D$715),AVERAGEIF('ROE Period Monthly Yields (WP)'!$G$8:$G$900,'ROE Period Annual Yields (WP)'!A39,'ROE Period Monthly Yields (WP)'!$J$8:$J$900)) -> 0.03448333333 | D39: 2013 | E39: =AVERAGEIF('ROE Period Monthly Yields (WP)'!$T$8:$T$715,'ROE Period Annual Yields (WP)'!D39,'ROE Period Monthly Yields (WP)'!$V$8:$V$715) -> 0.04235 | G39: 2013 | H39: =AVERAGEIF('ROE Period Monthly Yields (WP)'!$T$8:$T$715,'ROE Period Annual Yields (WP)'!D39,'ROE Period Monthly Yields (WP)'!$Y$8:$Y$715) -> 0.05101666667 | J39: 2013 | K39: =AVERAGEIF('ROE Period Monthly Yields (WP)'!$L$8:$S$715,'ROE Period Annual Yields (WP)'!J39,'ROE Period Monthly Yields (WP)'!$P$8:$P$715) -> 0.04476666667 | M39: 2013 | N39: =AVERAGEIF('ROE Period Monthly Yields (WP)'!$L$8:$L$715,'ROE Period Annual Yields (WP)'!M39,'ROE Period Monthly Yields (WP)'!$Q$8:$Q$715) -> 0.04983333333
A40: 2014 | B40: =IF(OR(A40<2002,A40>2005),AVERAGEIF('ROE Period Monthly Yields (WP)'!$A$8:$A$715,'ROE Period Annual Yields (WP)'!A40,'ROE Period Monthly Yields (WP)'!$D$8:$D$715),AVERAGEIF('ROE Period Monthly Yields (WP)'!$G$8:$G$900,'ROE Period Annual Yields (WP)'!A40,'ROE Period Monthly Yields (WP)'!$J$8:$J$900)) -> 0.0334 | D40: 2014 | E40: =AVERAGEIF('ROE Period Monthly Yields (WP)'!$T$8:$T$715,'ROE Period Annual Yields (WP)'!D40,'ROE Period Monthly Yields (WP)'!$V$8:$V$715) -> 0.041625 | G40: 2014 | H40: =AVERAGEIF('ROE Period Monthly Yields (WP)'!$T$8:$T$715,'ROE Period Annual Yields (WP)'!D40,'ROE Period Monthly Yields (WP)'!$Y$8:$Y$715) -> 0.04854166667 | J40: 2014 | K40: =AVERAGEIF('ROE Period Monthly Yields (WP)'!$L$8:$S$715,'ROE Period Annual Yields (WP)'!J40,'ROE Period Monthly Yields (WP)'!$P$8:$P$715) -> 0.042775 | M40: 2014 | N40: =AVERAGEIF('ROE Period Monthly Yields (WP)'!$L$8:$L$715,'ROE Period Annual Yields (WP)'!M40,'ROE Period Monthly Yields (WP)'!$Q$8:$Q$715) -> 0.04799166667
A41: 2015 | B41: =IF(OR(A41<2002,A41>2005),AVERAGEIF('ROE Period Monthly Yields (WP)'!$A$8:$A$715,'ROE Period Annual Yields (WP)'!A41,'ROE Period Monthly Yields (WP)'!$D$8:$D$715),AVERAGEIF('ROE Period Monthly Yields (WP)'!$G$8:$G$900,'ROE Period Annual Yields (WP)'!A41,'ROE Period Monthly Yields (WP)'!$J$8:$J$900)) -> 0.02840833333 | D41: 2015 | E41: =AVERAGEIF('ROE Period Monthly Yields (WP)'!$T$8:$T$715,'ROE Period Annual Yields (WP)'!D41,'ROE Period Monthly Yields (WP)'!$V$8:$V$715) -> 0.03886666667 | G41: 2015 | H41: =AVERAGEIF('ROE Period Monthly Yields (WP)'!$T$8:$T$715,'ROE Period Annual Yields (WP)'!D41,'ROE Period Monthly Yields (WP)'!$Y$8:$Y$715) -> 0.04999166667 | J41: 2015 | K41: =AVERAGEIF('ROE Period Monthly Yields (WP)'!$L$8:$S$715,'ROE Period Annual Yields (WP)'!J41,'ROE Period Monthly Yields (WP)'!$P$8:$P$715) -> 0.04115 | M41: 2015 | N41: =AVERAGEIF('ROE Period Monthly Yields (WP)'!$L$8:$L$715,'ROE Period Annual Yields (WP)'!M41,'ROE Period Monthly Yields (WP)'!$Q$8:$Q$715) -> 0.05029166667
A42: 2016 | B42: =IF(OR(A42<2002,A42>2005),AVERAGEIF('ROE Period Monthly Yields (WP)'!$A$8:$A$715,'ROE Period Annual Yields (WP)'!A42,'ROE Period Monthly Yields (WP)'!$D$8:$D$715),AVERAGEIF('ROE Period Monthly Yields (WP)'!$G$8:$G$900,'ROE Period Annual Yields (WP)'!A42,'ROE Period Monthly Yields (WP)'!$J$8:$J$900)) -> 0.025975 | D42: 2016 | E42: =AVERAGEIF('ROE Period Monthly Yields (WP)'!$T$8:$T$715,'ROE Period Annual Yields (WP)'!D42,'ROE Period Monthly Yields (WP)'!$V$8:$V$715) -> 0.03665833333 | G42: 2016 | H42: =AVERAGEIF('ROE Period Monthly Yields (WP)'!$T$8:$T$715,'ROE Period Annual Yields (WP)'!D42,'ROE Period Monthly Yields (WP)'!$Y$8:$Y$715) -> 0.047175 | J42: =TRUNC(2016) -> 2016 | K42: =AVERAGEIF('ROE Period Monthly Yields (WP)'!$L$8:$S$715,'ROE Period Annual Yields (WP)'!J42,'ROE Period Monthly Yields (WP)'!$P$8:$P$715) -> 0.039325 | M42: 2016 | N42: =AVERAGEIF('ROE Period Monthly Yields (WP)'!$L$8:$L$715,'ROE Period Annual Yields (WP)'!M42,'ROE Period Monthly Yields (WP)'!$Q$8:$Q$715) -> 0.04675833333
A43: 2017 | B43: =IF(OR(A43<2002,A43>2005),AVERAGEIF('ROE Period Monthly Yields (WP)'!$A$8:$A$715,'ROE Period Annual Yields (WP)'!A43,'ROE Period Monthly Yields (WP)'!$D$8:$D$715),AVERAGEIF('ROE Period Monthly Yields (WP)'!$G$8:$G$900,'ROE Period Annual Yields (WP)'!A43,'ROE Period Monthly Yields (WP)'!$J$8:$J$900)) -> 0.02895 | D43: 2017 | E43: =AVERAGEIF('ROE Period Monthly Yields (WP)'!$T$8:$T$715,'ROE Period Annual Yields (WP)'!D43,'ROE Period Monthly Yields (WP)'!$V$8:$V$715) -> 0.03743333333 | G43: 2017 | H43: =AVERAGEIF('ROE Period Monthly Yields (WP)'!$T$8:$T$715,'ROE Period Annual Yields (WP)'!D43,'ROE Period Monthly Yields (WP)'!$Y$8:$Y$715) -> 0.0444 | J43: 2017 | K43: =AVERAGEIF('ROE Period Monthly Yields (WP)'!$L$8:$S$715,'ROE Period Annual Yields (WP)'!J43,'ROE Period Monthly Yields (WP)'!$P$8:$P$715) -> 0.03998333333 | M43: 2017 | N43: =AVERAGEIF('ROE Period Monthly Yields (WP)'!$L$8:$L$715,'ROE Period Annual Yields (WP)'!M43,'ROE Period Monthly Yields (WP)'!$Q$8:$Q$715) -> 0.04378333333
A44: 2018 | B44: =IF(OR(A44<2002,A44>2005),AVERAGEIF('ROE Period Monthly Yields (WP)'!$A$8:$A$715,'ROE Period Annual Yields (WP)'!A44,'ROE Period Monthly Yields (WP)'!$D$8:$D$715),AVERAGEIF('ROE Period Monthly Yields (WP)'!$G$8:$G$900,'ROE Period Annual Yields (WP)'!A44,'ROE Period Monthly Yields (WP)'!$J$8:$J$900)) -> 0.031125 | D44: 2018 | E44: =AVERAGEIF('ROE Period Monthly Yields (WP)'!$T$8:$T$715,'ROE Period Annual Yields (WP)'!D44,'ROE Period Monthly Yields (WP)'!$V$8:$V$715) -> 0.0393 | G44: 2018 | H44: =AVERAGEIF('ROE Period Monthly Yields (WP)'!$T$8:$T$715,'ROE Period Annual Yields (WP)'!D44,'ROE Period Monthly Yields (WP)'!$Y$8:$Y$715) -> 0.048 | J44: 2018 | K44: =AVERAGEIF('ROE Period Monthly Yields (WP)'!$L$8:$S$715,'ROE Period Annual Yields (WP)'!J44,'ROE Period Monthly Yields (WP)'!$P$8:$P$715) -> 0.04249166667 | M44: 2018 | N44: =AVERAGEIF('ROE Period Monthly Yields (WP)'!$L$8:$L$715,'ROE Period Annual Yields (WP)'!M44,'ROE Period Monthly Yields (WP)'!$Q$8:$Q$715) -> 0.04669166667
A45: 2019 | B45: =IF(OR(A45<2002,A45>2005),AVERAGEIF('ROE Period Monthly Yields (WP)'!$A$8:$A$715,'ROE Period Annual Yields (WP)'!A45,'ROE Period Monthly Yields (WP)'!$D$8:$D$715),AVERAGEIF('ROE Period Monthly Yields (WP)'!$G$8:$G$900,'ROE Period Annual Yields (WP)'!A45,'ROE Period Monthly Yields (WP)'!$J$8:$J$900)) -> 0.025825 | D45: 2019 | E45: =AVERAGEIF('ROE Period Monthly Yields (WP)'!$T$8:$T$715,'ROE Period Annual Yields (WP)'!D45,'ROE Period Monthly Yields (WP)'!$V$8:$V$715) -> 0.033875 | G45: 2019 | H45: =AVERAGEIF('ROE Period Monthly Yields (WP)'!$T$8:$T$715,'ROE Period Annual Yields (WP)'!D45,'ROE Period Monthly Yields (WP)'!$Y$8:$Y$715) -> 0.04375833333 | J45: 2019 | K45: =AVERAGEIF('ROE Period Monthly Yields (WP)'!$L$8:$S$715,'ROE Period Annual Yields (WP)'!J45,'ROE Period Monthly Yields (WP)'!$P$8:$P$715) -> 0.037675 | M45: 2019 | N45: =AVERAGEIF('ROE Period Monthly Yields (WP)'!$L$8:$L$715,'ROE Period Annual Yields (WP)'!M45,'ROE Period Monthly Yields (WP)'!$Q$8:$Q$715) -> 0.04194166667
A46: 2020 | B46: =IF(OR(A46<2002,A46>2005),AVERAGEIF('ROE Period Monthly Yields (WP)'!$A$8:$A$715,'ROE Period Annual Yields (WP)'!A46,'ROE Period Monthly Yields (WP)'!$D$8:$D$715),AVERAGEIF('ROE Period Monthly Yields (WP)'!$G$8:$G$900,'ROE Period Annual Yields (WP)'!A46,'ROE Period Monthly Yields (WP)'!$J$8:$J$900)) -> 0.01561666667 | D46: 2020 | E46: =AVERAGEIF('ROE Period Monthly Yields (WP)'!$T$8:$T$715,'ROE Period Annual Yields (WP)'!D46,'ROE Period Monthly Yields (WP)'!$V$8:$V$715) -> 0.02475833333 | G46: 2020 | H46: =AVERAGEIF('ROE Period Monthly Yields (WP)'!$T$8:$T$715,'ROE Period Annual Yields (WP)'!D46,'ROE Period Monthly Yields (WP)'!$Y$8:$Y$715) -> 0.036025 | J46: 2020 | K46: =AVERAGEIF('ROE Period Monthly Yields (WP)'!$L$8:$S$715,'ROE Period Annual Yields (WP)'!J46,'ROE Period Monthly Yields (WP)'!$P$8:$P$715) -> 0.03015 | M46: 2020 | N46: =AVERAGEIF('ROE Period Monthly Yields (WP)'!$L$8:$L$715,'ROE Period Annual Yields (WP)'!M46,'ROE Period Monthly Yields (WP)'!$Q$8:$Q$715) -> 0.0339
A47: 2021 | B47: =IF(OR(A47<2002,A47>2005),AVERAGEIF('ROE Period Monthly Yields (WP)'!$A$8:$A$715,'ROE Period Annual Yields (WP)'!A47,'ROE Period Monthly Yields (WP)'!$D$8:$D$715),AVERAGEIF('ROE Period Monthly Yields (WP)'!$G$8:$G$900,'ROE Period Annual Yields (WP)'!A47,'ROE Period Monthly Yields (WP)'!$J$8:$J$900)) -> 0.020525 | D47: 2021 | E47: =AVERAGEIF('ROE Period Monthly Yields (WP)'!$T$8:$T$715,'ROE Period Annual Yields (WP)'!D47,'ROE Period Monthly Yields (WP)'!$V$8:$V$715) -> 0.02708333333 | G47: 2021 | H47: =AVERAGEIF('ROE Period Monthly Yields (WP)'!$T$8:$T$715,'ROE Period Annual Yields (WP)'!D47,'ROE Period Monthly Yields (WP)'!$Y$8:$Y$715) -> 0.03398333333 | J47: 2021 | K47: =AVERAGEIF('ROE Period Monthly Yields (WP)'!$L$8:$S$715,'ROE Period Annual Yields (WP)'!J47,'ROE Period Monthly Yields (WP)'!$P$8:$P$715) -> 0.03110833333 | M47: 2021 | N47: =AVERAGEIF('ROE Period Monthly Yields (WP)'!$L$8:$L$715,'ROE Period Annual Yields (WP)'!M47,'ROE Period Monthly Yields (WP)'!$Q$8:$Q$715) -> 0.03361666667
A48: 2022 | B48: =IF(OR(A48<2002,A48>2005),AVERAGEIF('ROE Period Monthly Yields (WP)'!$A$8:$A$715,'ROE Period Annual Yields (WP)'!A48,'ROE Period Monthly Yields (WP)'!$D$8:$D$715),AVERAGEIF('ROE Period Monthly Yields (WP)'!$G$8:$G$900,'ROE Period Annual Yields (WP)'!A48,'ROE Period Monthly Yields (WP)'!$J$8:$J$900)) -> 0.03115 | D48: 2022 | E48: =AVERAGEIF('ROE Period Monthly Yields (WP)'!$T$8:$T$715,'ROE Period Annual Yields (WP)'!D48,'ROE Period Monthly Yields (WP)'!$V$8:$V$715) -> 0.04085833333 | G48: 2022 | H48: =AVERAGEIF('ROE Period Monthly Yields (WP)'!$T$8:$T$715,'ROE Period Annual Yields (WP)'!D48,'ROE Period Monthly Yields (WP)'!$Y$8:$Y$715) -> 0.05080833333 | J48: 2022 | K48: =AVERAGEIF('ROE Period Monthly Yields (WP)'!$L$8:$S$715,'ROE Period Annual Yields (WP)'!J48,'ROE Period Monthly Yields (WP)'!$P$8:$P$715) -> 0.04720833333 | M48: 2022 | N48: =AVERAGEIF('ROE Period Monthly Yields (WP)'!$L$8:$L$715,'ROE Period Annual Yields (WP)'!M48,'ROE Period Monthly Yields (WP)'!$Q$8:$Q$715) -> 0.05029166667
A49: 2023 | B49: =IF(OR(A49<2002,A49>2005),AVERAGEIF('ROE Period Monthly Yields (WP)'!$A$8:$A$715,'ROE Period Annual Yields (WP)'!A49,'ROE Period Monthly Yields (WP)'!$D$8:$D$715),AVERAGEIF('ROE Period Monthly Yields (WP)'!$G$8:$G$900,'ROE Period Annual Yields (WP)'!A49,'ROE Period Monthly Yields (WP)'!$J$8:$J$900)) -> 0.04091666667 | D49: 2023 | E49: =AVERAGEIF('ROE Period Monthly Yields (WP)'!$T$8:$T$715,'ROE Period Annual Yields (WP)'!D49,'ROE Period Monthly Yields (WP)'!$V$8:$V$715) -> 0.048375 | G49: 2023 | H49: =AVERAGEIF('ROE Period Monthly Yields (WP)'!$T$8:$T$715,'ROE Period Annual Yields (WP)'!D49,'ROE Period Monthly Yields (WP)'!$Y$8:$Y$715) -> 0.058525 | J49: 2023 | K49: =AVERAGEIF('ROE Period Monthly Yields (WP)'!$L$8:$S$715,'ROE Period Annual Yields (WP)'!J49,'ROE Period Monthly Yields (WP)'!$P$8:$P$715) -> 0.055375 | M49: 2023 | N49: =AVERAGEIF('ROE Period Monthly Yields (WP)'!$L$8:$L$715,'ROE Period Annual Yields (WP)'!M49,'ROE Period Monthly Yields (WP)'!$Q$8:$Q$715) -> 0.05839166667
A50: 2024 | B50: =IF(OR(A50<2002,A50>2005),AVERAGEIF('ROE Period Monthly Yields (WP)'!$A$8:$A$715,'ROE Period Annual Yields (WP)'!A50,'ROE Period Monthly Yields (WP)'!$D$8:$D$715),AVERAGEIF('ROE Period Monthly Yields (WP)'!$G$8:$G$900,'ROE Period Annual Yields (WP)'!A50,'ROE Period Monthly Yields (WP)'!$J$8:$J$900)) -> 0.04405833333 | D50: 2024 | E50: =AVERAGEIF('ROE Period Monthly Yields (WP)'!$T$8:$T$715,'ROE Period Annual Yields (WP)'!D50,'ROE Period Monthly Yields (WP)'!$V$8:$V$715) -> 0.05044166667 | G50: 2024 | H50: =AVERAGEIF('ROE Period Monthly Yields (WP)'!$T$8:$T$715,'ROE Period Annual Yields (WP)'!D50,'ROE Period Monthly Yields (WP)'!$Y$8:$Y$715) -> 0.05753333333 | J50: 2024 | K50: =AVERAGEIF('ROE Period Monthly Yields (WP)'!$L$8:$S$715,'ROE Period Annual Yields (WP)'!J50,'ROE Period Monthly Yields (WP)'!$P$8:$P$715) -> 0.05540833333 | M50: 2024 | N50: =AVERAGEIF('ROE Period Monthly Yields (WP)'!$L$8:$L$715,'ROE Period Annual Yields (WP)'!M50,'ROE Period Monthly Yields (WP)'!$Q$8:$Q$715) -> 0.05760833333
A51: 2025 | B51: =IF(OR(A51<2002,A51>2005),AVERAGEIF('ROE Period Monthly Yields (WP)'!$A$8:$A$715,'ROE Period Annual Yields (WP)'!A51,'ROE Period Monthly Yields (WP)'!$D$8:$D$715),AVERAGEIF('ROE Period Monthly Yields (WP)'!$G$8:$G$900,'ROE Period Annual Yields (WP)'!A51,'ROE Period Monthly Yields (WP)'!$J$8:$J$900)) -> 0.0471 | D51: 2025 | E51: =AVERAGEIF('ROE Period Monthly Yields (WP)'!$T$8:$T$715,'ROE Period Annual Yields (WP)'!D51,'ROE Period Monthly Yields (WP)'!$V$8:$V$715) -> 0.05356666667 | G51: 2025 | H51: =AVERAGEIF('ROE Period Monthly Yields (WP)'!$T$8:$T$715,'ROE Period Annual Yields (WP)'!D51,'ROE Period Monthly Yields (WP)'!$Y$8:$Y$715) -> 0.05976666667 | J51: 2025 | K51: =AVERAGEIF('ROE Period Monthly Yields (WP)'!$L$8:$S$715,'ROE Period Annual Yields (WP)'!J51,'ROE Period Monthly Yields (WP)'!$P$8:$P$715) -> 0.05773333333 | M51: 2025 | N51: =AVERAGEIF('ROE Period Monthly Yields (WP)'!$L$8:$L$715,'ROE Period Annual Yields (WP)'!M51,'ROE Period Monthly Yields (WP)'!$Q$8:$Q$715) -> 0.05953333333
